﻿fille_objet;libelle_departement;fille_localisation_libelle;fille_identifiant_operation;pere_identifiant_operation;fille_montant_subventionnable;fille_montant_vote;montant_mandate;fille_insee;fille_att_nom_tiers;fille_sess_date_session_initiale;fille_numero_demande_portail;montant_te;nom_epci;objectid;st_length_shape;dep_epci;st_area_shape;date;gml_id;ctr_nom;etiq_epci;type;code_insee;code_departement;fille_numero_dossier_courant;localisation;date_racc;id_commun
L'aménagement et la sécurisation du lotissement les Rives de l'Acheneau - CTR 2020 - CA Pornic Coeur Pays de Retz;Loire-Atlantique;PORT-SAINT-PERE;18I02011;17I08233;205000;33948;33948;44133;COMMUNE DE PORT SAINT PERE;2018-02-16;00036918;0;Pornic Agglo Pays de Retz;33;137060.38656142;44;451066582.29291;Septembre 2017;sig.territoires.pdl_ctr.33;Communauté d'Agglomération de Pornic Cœur Pays de Retz;Pornic Agglo Pays de Retz;CTR;44133;44;2018_00211;47.1406810974, -1.76837740762;09/2017;127
L'aménagement rue des Sports - CTR 2020 - CC Estuaire et Sillon;Loire-Atlantique;CAMPBON;18I00838;17I09760;197230;47890;47890;44025;COMMUNE DE CAMPBON;2018-02-16;00041311;0;Estuaire et Sillon;61;112337.65867316;44;313121598.740399;Novembre 2017;sig.territoires.pdl_ctr.61;Communauté de communes d'Estuaire et Sillon;Estuaire et Sillon;CTR;44025;44;2018_00187;47.4160977851, -1.96776519689;11/2017;129
l'extension de la salle omnisports;Maine-et-Loire;JARZE VILLAGES;18I03724;17I06491;656952;131390;131390;49163;COMMUNE NOUVELLE JARZE VILLAGES;2018-04-20;00039761;0;Anjou Loir et Sarthe;26;172077.9474839;49;457111657.097573;Juillet 2017;sig.territoires.pdl_ctr.26;Communauté de Communes Anjou Loir et Sarthe;Anjou Loir et Sarthe;CTR;49163;49;2018_04335;47.5576434301, -0.24007574412;07/2017;119
L'extension et l'aménagement du boulodrome - CTR  2020 - Communauté de communes de Pont Château Saint Gildas des Bois;Loire-Atlantique;MISSILLAC;18I03756;17I06805;119645;10000;10000;44098;COMMUNE DE MISSILLAC;2018-04-20;00044045;0;Pays de Pontchâteau St Gildas des Bois;1;130121.86476614;44;327059918.271195;Juillet 2017;sig.territoires.pdl_ctr.1;Communauté de communes de Pont Château Saint Gildas des Bois;Pays de Pontchâteau St Gildas des Bois;CTR;44098;44;2018_04377;47.4881482821, -2.17765365439;07/2017;115
L'aménagement des abords et équipements annexes du lycée de Nort-sur-Erdre - CTR 2020 - Erdre et Gesvres;Loire-Atlantique;NORT-SUR-ERDRE;18I05638;17I04913;2521912;100000;100000;44110;COMMUNE DE NORT SUR ERDRE;2018-05-25;00039479;0;Erdre et Gesvres;13;166735.21638325;44;509712555.822317;Mai 2017;sig.territoires.pdl_ctr.13;Communauté de communes d'Erdre et Gesvres;Erdre et Gesvres;CTR;44110;44;2018_06827;47.447122285, -1.51824792558;05/2017;113
Favoriser l'accueil d'entreprises par le développement d'un espace tertiaire- Craon-53-CTR CC Craon;Mayenne;CRAON;19I00450;17I09006;226000;60000;60000;53084;CC DU PAYS DE CRAON;2018-07-13;00039379;0;Pays de Craon;62;169901.29669863;53;646041148.74744;Septembre 2017;sig.territoires.pdl_ctr.62;Pays de Craon;Pays de Craon;CTR;53084;53;2018_08550_00;47.8454412251, -0.943066490216;09/2017;77
le renouvellement des habitations légères de loisirs (HLL) sur le camping municipal - EVRON-53-CTR de la CC Coëvrons;Mayenne;EVRON;18I07149;18I01923;333334;150000;117720;53097;COMMUNE D EVRON;2018-07-13;00040061;0;Les Coëvrons;2;193924.72196165;53;788955843.049511;Février 2018;sig.territoires.pdl_ctr.2;Les Coëvrons;Les Coëvrons;CTR;53097;53;2018_08556_01;48.1520198351, -0.389270176708;02/2018;81
Le plateau sportif  - COMMUNAUTE DE COMMUNES REGION DE NOZAY (44) - CTR 2020;Loire-Atlantique;NOZAY;18I07156;18I03759;397542;100000;100000;44113;COMMUNAUTE DE COMMUNES REGION DE NOZAY;2018-07-13;00040220;0;Région de Nozay;23;98766.52204624;44;275618396.875015;Avril 2018;sig.territoires.pdl_ctr.23;Région de Nozay;Région de Nozay;CTR;44113;44;2018_09255;47.5728858483, -1.60097664616;04/2018;130
l'aménagement de la rue Georges Clemenceau-Saint Révérend-85-CTR 2020 de la CC Pays de Saint-Gilles Croix de Vie;Vendée;SAINT-REVEREND;18I07628;18I07458;102219;53035;53035;85268;COMMUNE DE SAINT REVEREND;2018-07-13;85000152;0;Pays de St Gilles-Croix-de-Vie;4;126534.03790467;85;293800477.999917;Avril 2018;sig.territoires.pdl_ctr.4;Communauté de communes du Pays de St Gilles-Croix-de-Vie;Pays de St Gilles-Croix-de-Vie;CTR;85268;85;2018_08916;46.7057741864, -1.83155480996;04/2018;105
la mise aux normes et accessibilité de la salle omnisports et installation d'un city stadeSud Vendée Littoral - MAGNILS-REIGNIERS -53- CTR 2020 de la CC Sud Vendée Littoral;Vendée;LES MAGNILS-REIGNIERS;18I07627;18I07459;258236;68151;68151;85131;COMMUNE DES MAGNILS REIGNIERS;2018-07-13;85000144;0;Sud Vendée Littoral;48;297801.82823589;85;950717267.472634;Juillet 2018;sig.territoires.pdl_ctr.48;CC Sud Vendée Littoral;Sud Vendée Littoral;CTR;85131;85;2018_08915;46.4635045649, -1.210635375;07/2018;106
La création du parc d'activité la Belle Etoile;Loire-Atlantique;GRANDCHAMPS-DES-FONTAINES;18I08838;17I04913;2000000;330941;330941;44066;COMMUNAUTE DE COMMUNES D ERDRE GESVRES;2018-09-28;00041241;0;Erdre et Gesvres;13;166735.21638325;44;509712555.822317;Mai 2017;sig.territoires.pdl_ctr.13;Communauté de communes d'Erdre et Gesvres;Erdre et Gesvres;CTR;44066;44;2018_10161_02;47.3606796643, -1.61754475868;05/2017;113
La création d'une médiathèque - COMMUNE LES LUCS SUR BOULOGNE - 85 - CTR 2020 CC Vie et Boulogne;Vendée;LES LUCS-SUR-BOULOGNE;18I08863;18I02800;734766;68500;68500;85129;COMMUNE DE LES LUCS SUR BOULOGNE;2018-09-28;85000175;68500;Vie et Boulogne;37;148814.1881539;85;492534760.430236;Avril 2018;sig.territoires.pdl_ctr.37;Vie et Boulogne;Vie et Boulogne;CTR;85129;85;2018_11232_00;46.8527299002, -1.48398928084;04/2018;102
La réhabilitation de l'Espace Villeneuve en Pôle culturel - COMMUNE D'AIZENAY - 85 - CTR 2020 CC Vie et Boulogne;Vendée;AIZENAY;18I08864;18I02800;2607407;320205;320205;85003;COMMUNE D AIZENAY;2018-09-28;85000196;325000;Vie et Boulogne;37;148814.1881539;85;492534760.430236;Avril 2018;sig.territoires.pdl_ctr.37;Vie et Boulogne;Vie et Boulogne;CTR;85003;85;2018_11239_00;46.7384516809, -1.62702889721;04/2018;102
La création d'une maison de santé pluridisciplinaire - COMMUNE DE CANDE - 49 - CTR 2020 - CC Anjou Bleu Communauté;Maine-et-Loire;CANDE;18I08793;18I05642;2029000;418986;418986;49054;COMMUNE DE CANDE;2018-09-28;00041303;0;Anjou Bleu Communauté;57;184223.75006092;49;654967768.886332;Mai 2018;sig.territoires.pdl_ctr.57;Anjou Bleu Communauté;Anjou Bleu Communauté;CTR;49054;49;2018_10119;47.5585230813, -1.03503351449;05/2018;118
la construction de vestiaires du stade communal et d'une salle de convivialité - COMMUNE DE SOULAIRE ET BOURG - 49 - CDM Angers Loire Métropole;Maine-et-Loire;SOULAIRE-ET-BOURG;18I08784;18I06680;508570;140000;140000;49339;COMMUNE DE SOULAIRE ET BOURG;2018-09-28;00041514;140000;Angers Loire Métropole;10;192445.630446;49;676496020.936854;Juillet 2018;sig.territoires.pdl_ctr.10;Angers Loire Métropole;Angers Loire Métropole;CDM;49339;49;2018_11102;47.5798701651, -0.542933611394;07/2018;116
Les travaux d'aménagement extérieurs du pôle enfance et jeunesse - Commune du Bignon - 44 - CTR 2020 de la Communauté de communes de Grand-Lieu;Loire-Atlantique;LE BIGNON;18I08845;18I06807;320816;121900;121900;44014;COMMUNE LE BIGNON;2018-09-28;00041336;0;Grand Lieu;7;107565.11514829;44;300535663.006993;Juillet 2018;sig.territoires.pdl_ctr.7;Grand Lieu;Grand Lieu;CTR;44014;44;2018_10182;47.1004098153, -1.50942309254;07/2018;131
La construction d'une salle de sports - Commune de Saint-André-des-Eaux - 44 - CTR 2020 de la CA de la CARENE;Loire-Atlantique;SAINT-ANDRE-DES-EAUX;18I08847;18I08406;1922719;346089;346089;44151;COMMUNE DE SAINT ANDRE DES EAUX;2018-09-28;00041354;0;CARENE;59;128866.92125478;44;316957860.724649;Septembre 2018;sig.territoires.pdl_ctr.59;CARENE;CARENE;CTR;44151;44;2018_10195;47.3234376088, -2.31269060612;09/2018;133
La rénovation énergétique de la mairie de Petit-Mars -  COMMUNE DE PETIT-MARS  - 44 - CTR 2020 CC D'ERDRE ET GESVRES;Loire-Atlantique;PETIT-MARS;18I10714;17I04913;432136;30000;30000;44122;COMMUNE DE PETIT MARS;2018-11-23;00043079;30000;Erdre et Gesvres;13;166735.21638325;44;509712555.822317;Mai 2017;sig.territoires.pdl_ctr.13;Communauté de communes d'Erdre et Gesvres;Erdre et Gesvres;CTR;44122;44;2018_12531;47.4051549703, -1.45655214384;05/2017;113
44 - PONT CHATEAU ST GILDAS DES BOIS - MME ROCHET MARIE-JOËLLE - Ecoconstruction à la maison éclusière de Guenrouët;Loire-Atlantique;GUENROUET;18I10716;17I06805;0;0;;44068;ROCHET MARIE JOELLE;2018-11-23;00041535;0;Pays de Pontchâteau St Gildas des Bois;1;130121.86476614;44;327059918.271195;Juillet 2017;sig.territoires.pdl_ctr.1;Communauté de communes de Pont Château Saint Gildas des Bois;Pays de Pontchâteau St Gildas des Bois;CTR;44068;44;2018_12724_00;47.5034137503, -1.95561601434;07/2017;115
L'écoplage - COMMUNE DE LA BAULE - 44 - CTR 2020 -  CA CAP ATLANTIQUE;Loire-Atlantique;LA BAULE-ESCOUBLAC;18I10720;17I09003;1520000;287401;287401;44055;COMMUNE DE LA BAULE ESCOUBLAC;2018-11-23;00041922;304000;Cap Atlantique;41;145725.47329518;44;395838108.965296;Septembre 2017;sig.territoires.pdl_ctr.41;Cap Atlantique;Cap Atlantique;CTR;44055;44;2018_12762_00;47.2909720179, -2.3538291745;09/2017;125
La restructuration aire d'accueil permanent des gens du voyage - CAP ATLANTIQUE - 44 - CTR 2020;Loire-Atlantique;LE POULIGUEN;18I10721;17I09003;96979;19396;19396;44135;COMMUNAUTE D AGGLOMERATION DE LA PRESQU ILE DE GUERANDE ATLANTIQUE;2018-11-23;00041930;0;Cap Atlantique;41;145725.47329518;44;395838108.965296;Septembre 2017;sig.territoires.pdl_ctr.41;Cap Atlantique;Cap Atlantique;CTR;44135;44;2018_12765;47.2716208982, -2.43210265977;09/2017;125
L'amélioration des performances acoustiques et thermiques de la salle Emeraude du complexe sportif - COMMUNE DES LANDES GENUSSON - 85 - CTR 2020 Pays de Mortagne;Vendée;LES LANDES-GENUSSON;18I10393;17I09578;160222;72987;72987;85119;COMMUNE DE LES LANDES GENUSSON;2018-11-23;85000263;72987;Pays de Mortagne;18;126807.36564022;85;228566018.366052;Novembre 2017;sig.territoires.pdl_ctr.18;Pays de Mortagne;Pays de Mortagne;CTR;85119;85;2018_13313_00;46.9663828627, -1.12900644447;11/2017;95
L'aménagement d'une voie mixte piétons cyclistes le long de la RD 323 - COMMUNE DE DURTAL - 49 - CTR 2020 ANJOU LOIR ET SARTHE;Maine-et-Loire;DURTAL;19I01572;17I06491;342723;68545;68545;49127;COMMUNE DE DURTAL;2019-02-08;00044729;68545;Anjou Loir et Sarthe;26;172077.9474839;49;457111657.097573;Juillet 2017;sig.territoires.pdl_ctr.26;Communauté de Communes Anjou Loir et Sarthe;Anjou Loir et Sarthe;CTR;49127;49;2019_00875;47.6780515421, -0.254608332885;07/2017;119
La restructuration et l'extension de la salle polyvalente - COMMUNE DE FALLERON - 85 - CTR 2020 CC Vie et Boulogne;;;19I01576;18I02800;909493;85050;85050;;COMMUNE DE FALLERON;2019-02-08;85000341;;Vie et Boulogne;37;148814.1881539;85;492534760.430236;Avril 2018;sig.territoires.pdl_ctr.37;Vie et Boulogne;Vie et Boulogne;CTR;;;2019_00879_00;;04/2018;102
la création de la zone d'activités de Lesbois  - COMMUNAUTE DE COMMUNES DU BOCAGE MAYENNAIS - 53 - CTR 2020 CC BOCAGE MAYENNAIS;Mayenne;LESBOIS;19I01616;18I07457;114087;90000;90000;53131;COMMUNAUTE DE COMMUNES DU BOCAGE MAYENNAIS;2019-02-08;00044822;0;Bocage Mayennais;9;189865.43542796;53;529745022.271069;Juillet 2018;sig.territoires.pdl_ctr.9;Communauté de communes du Bocage Mayennais;Bocage Mayennais;CTR;53131;53;2019_01057;48.4514022952, -0.793461282551;07/2018;83
la rénovation du bâtiment de la voilerie et buvette de la base de loisirs - COMMUNAUTÉ DE COMMUNES DES VALLÉES DE LA BRAYE ET DE L'ANILLE -72 - CTR 2020 PAYS PERCHE SARTHOIS;Sarthe;LAVARE;19I01627;19I00771;256796;155436;155436;72158;COMMUNAUTE DE COMMUNES DES VALLEES DE LA BRAYE ET DE L ANILLE;2019-02-08;00045365;0;CC du Pays de l'Huisne Sarthoise;35;265241.4780676;72;1290421266.50866;Février 2019;sig.territoires.pdl_ctr.35;Pays du Perche Sarthois;Pays du Perche Sarthois;CTR;72158;72;2019_01145;48.0582643991, 0.657147028816;02/2019;88
l'installation de panneaux photovoltaïques sur la salle communale des associations-53 - CONGRIER - CTR 2020 DU PAYS DE CRAON;Mayenne;CONGRIER;19I03616;17I09006;34000;9768;9768;53073;COMMUNE DE CONGRIER;2019-04-05;00045829;10200;Pays de Craon;62;169901.29669863;53;646041148.74744;Septembre 2017;sig.territoires.pdl_ctr.62;Pays de Craon;Pays de Craon;CTR;53073;53;2019_04558_00;47.802801926, -1.12483688372;09/2017;77
La rénovation et la réhabilitation de l'ancien presbytère en maison des associations - Commue de Chanverrie;Vendée;CHANVERRIE;19I03828;17I09578;500000;97764;97764;85302;COMMUNE DE CHANVERRIE;2019-04-05;85000336;97764;Pays de Mortagne;18;126807.36564022;85;228566018.366052;Novembre 2017;sig.territoires.pdl_ctr.18;Pays de Mortagne;Pays de Mortagne;CTR;85302;85;2019_04152;46.9634774521, -0.985340006089;11/2017;95
Les travaux d'aménagement d'un espace public en entrée de bourg - Commune de la Merlatière;Vendée;LA MERLATIERE;19I03832;18I01087;60210;20830;20830;85142;COMMUNE DE LA MERLATIERE;2019-04-05;85000322;0;Pays de Saint-Fulgent – Les Essarts;36;123566.51305289;85;326545965.188948;Février 2018;sig.territoires.pdl_ctr.36;Pays de Saint-Fulgent – Les Essarts;Pays de Saint-Fulgent – Les Essarts;CTR;85142;85;2019_04156_00;46.7557703112, -1.29794577;02/2018;99
La valorisation du site sportif de Tressé à Pouancé et la construction de tribunes et vestiaires - Commune d'Ombrée d'Anjou;Maine-et-Loire;OMBREE D'ANJOU;19I03600;18I05642;625000;150000;150000;49248;COMMUNE DE OMBREE D ANJOU;2019-04-05;00045897;0;Anjou Bleu Communauté;57;184223.75006092;49;654967768.886332;Mai 2018;sig.territoires.pdl_ctr.57;Anjou Bleu Communauté;Anjou Bleu Communauté;CTR;49248;49;2019_04260;47.7629344972, -1.19300189799;05/2018;118
L'aménagement sécuritaire de la rue de la Jarrie à Montbert;Loire-Atlantique;MONTBERT;19I03592;18I06807;520000;144100;144100;44102;COMMUNE DE MONTBERT;2019-04-05;00046125;0;Grand Lieu;7;107565.11514829;44;300535663.006993;Juillet 2018;sig.territoires.pdl_ctr.7;Grand Lieu;Grand Lieu;CTR;44102;44;2019_04228;47.0679433931, -1.4701852733;07/2018;131
l'Aménagement et la mise en accessibilité du bâtiment de la mairie- 85- Saint-Juire-Champgillon - CTR 2020 Sud Vendée Littoral;Vendée;SAINT-JUIRE-CHAMPGILLON;19I03627;18I07459;112457;39006;39006;85235;SAINT JUIRE CHAMPGILLON;2019-04-05;85000328;0;Sud Vendée Littoral;48;297801.82823589;85;950717267.472634;Juillet 2018;sig.territoires.pdl_ctr.48;CC Sud Vendée Littoral;Sud Vendée Littoral;CTR;85235;85;2019_04573;46.5882648491, -1.00959676911;07/2018;106
L'aménagement et la rénovation de l'hôtel de ville;Loire-Atlantique;BLAIN;19I06310;17I04912;121128;71392;71392;44015;COMMUNE DE BLAIN;2019-06-06;00046645;0;Région de Blain;12;104466.22577119;44;214288660.02636;Mai 2017;sig.territoires.pdl_ctr.12;Communauté de communes de la Région de Blain;Région de Blain;CTR;44015;44;2019_06488;47.4628210409, -1.76789479614;05/2017;112
Le projet d'aménagement de voiries à Notre-Dame-des-Landes pour favoriser les mobilité actives;Loire-Atlantique;NOTRE-DAME-DES-LANDES;19I06320;17I04913;174232;40000;40000;44111;COMMUNE DE NOTRE DAME DES LANDES;2019-06-06;00047327;40000;Erdre et Gesvres;13;166735.21638325;44;509712555.822317;Mai 2017;sig.territoires.pdl_ctr.13;Communauté de communes d'Erdre et Gesvres;Erdre et Gesvres;CTR;44111;44;2019_06507;47.3753590043, -1.71598291146;05/2017;113
La rénovation patrimoniale du manoir de la Chataigneraie;Loire-Atlantique;SUCE-SUR-ERDRE;19I06331;17I04913;941559;100000;100000;44201;COMMUNE DE SUCE SUR ERDRE;2019-06-06;00043594;0;Erdre et Gesvres;13;166735.21638325;44;509712555.822317;Mai 2017;sig.territoires.pdl_ctr.13;Communauté de communes d'Erdre et Gesvres;Erdre et Gesvres;CTR;44201;44;2019_06606;47.3536547402, -1.51945689724;05/2017;113
La construction d'une maison de santé pluridisciplinaire à Cossé le Vivien;Mayenne;COSSE LE VIVIEN;19I06173;17I09006;1875800;335320;335320;53077;CC DU PAYS DE CRAON;2019-06-06;00047169;58000;Pays de Craon;62;169901.29669863;53;646041148.74744;Septembre 2017;sig.territoires.pdl_ctr.62;Pays de Craon;Pays de Craon;CTR;53077;53;2019_06505_00;47.94585879, -0.934606329089;09/2017;77
La rénovation d'un local pour la création d'un commerce multiservices;Sarthe;ETIVAL-LES-LE-MANS;19I06179;17I09882;98000;25000;25000;72127;COMMUNE ETIVAL LES LE MANS;2019-06-06;00044900;25000;;;;;;;;;;;72127;72;2019_06532;47.9634415619, 0.077249958248;;
Le réaménagement d'un bâtiment pour un projet culturel;Vendée;L'AIGUILLON-SUR-VIE;19I06210;18I07458;135000;53035;53035;85002;COMMUNE DE L AIGUILLON SUR VIE;2019-06-06;85000395;0;Pays de St Gilles-Croix-de-Vie;4;126534.03790467;85;293800477.999917;Avril 2018;sig.territoires.pdl_ctr.4;Communauté de communes du Pays de St Gilles-Croix-de-Vie;Pays de St Gilles-Croix-de-Vie;CTR;85002;85;2019_06573;46.6706426618, -1.82599992318;04/2018;105
La modernisation des halles couvertes;;;19I06215;18I07459;344078;63120;63120;;COMMUNE DE SAINT MICHEL EN L HERM;2019-06-06;85000324;;Sud Vendée Littoral;48;297801.82823589;85;950717267.472634;Juillet 2018;sig.territoires.pdl_ctr.48;CC Sud Vendée Littoral;Sud Vendée Littoral;CTR;;;2019_06578_00;;07/2018;106
La requalification de l'Entrée nord de l'agglomération - Boulevard de l'Atlantique;Loire-Atlantique;SAINT-NAZAIRE;19I06328;18I08406;11401370;1230000;1228032;44184;COMMUNAUTE D AGGLO DE LA REGION NAZAIRIENNE ET DE L ESTUAIRE;2019-06-06;00047357;0;CARENE;59;128866.92125478;44;316957860.724649;Septembre 2018;sig.territoires.pdl_ctr.59;CARENE;CARENE;CTR;44184;44;2019_06598_01;47.2802857028, -2.25379927249;09/2018;133
L'agrandissement de l'hôtel communautaire;Sarthe;SAINT-CALAIS;19I06178;19I00771;142905;89817;89817;72269;COMMUNAUTE DE COMMUNES DES VALLEES DE LA BRAYE ET DE L ANILLE;2019-06-06;00046688;0;CC du Pays de l'Huisne Sarthoise;35;265241.4780676;72;1290421266.50866;Février 2019;sig.territoires.pdl_ctr.35;Pays du Perche Sarthois;Pays du Perche Sarthois;CTR;72269;72;2019_06517_00;47.9250578354, 0.747660967628;02/2019;88
La création d'une Maison des associations;Vendée;SAINT-HILAIRE-DES-LOGES;19I06216;19I00773;0;0;;85227;MAIRIE DE SAINT HILAIRE DES LOGES;2019-06-06;85000393;0;Vendée Sèvre Autise;22;164911.17006129;85;300390165.394669;Février 2019;sig.territoires.pdl_ctr.22;Communauté de communes de Vendée Sèvre Autise;Vendée Sèvre Autise;CTR;85227;85;2019_06581_00;46.4747117878, -0.650611151998;02/2019;109
L'aménagement d'un terrain multisports;;;19I06217;19I00773;228023;79032;79032;;MAIRIE DE MAILLEZAIS;2019-06-06;85000411;;Vendée Sèvre Autise;22;164911.17006129;85;300390165.394669;Février 2019;sig.territoires.pdl_ctr.22;Communauté de communes de Vendée Sèvre Autise;Vendée Sèvre Autise;CTR;;;2019_06590_00;;02/2019;109
L'acquisition d'un véhicule utilitaire électrique par la Commune de Notre-Dame-des-Landes;Loire-Atlantique;NOTRE-DAME-DES-LANDES;19I07531;17I04913;14808;11846;11846;44111;COMMUNE DE NOTRE DAME DES LANDES;2019-07-12;00048610;11846;Erdre et Gesvres;13;166735.21638325;44;509712555.822317;Mai 2017;sig.territoires.pdl_ctr.13;Communauté de communes d'Erdre et Gesvres;Erdre et Gesvres;CTR;44111;44;2019_08528_00;47.3753590043, -1.71598291146;05/2017;113
L'amélioration de la performance énergétique de la salle Poitevin à Daumeray;Maine-et-Loire;MORANNES SUR SARTHE-DAUMERAY;19I07475;17I06491;84039;16808;16808;49220;COMMUNE DE MORANNES SUR SARTHE DAUMERAY;2019-07-12;00048499;16808;Anjou Loir et Sarthe;26;172077.9474839;49;457111657.097573;Juillet 2017;sig.territoires.pdl_ctr.26;Communauté de Communes Anjou Loir et Sarthe;Anjou Loir et Sarthe;CTR;49220;49;2019_07835;47.725500783, -0.403190245491;07/2017;119
La restructuration de bâtiments communaux pour regrouper les services des deux anciennes Communes à Chaumes-en-Retz;Loire-Atlantique;CHAUMES-EN-RETZ;19I07520;17I08233;1007288;137303;137303;44005;COMMUNE DE CHAUMES EN RETZ;2019-07-12;00048536;0;Pornic Agglo Pays de Retz;33;137060.38656142;44;451066582.29291;Septembre 2017;sig.territoires.pdl_ctr.33;Communauté d'Agglomération de Pornic Cœur Pays de Retz;Pornic Agglo Pays de Retz;CTR;44005;44;2019_08500;47.1592162214, -1.95412512421;09/2017;127
L'acquisition d'un véhicule électrique;Loire-Atlantique;NOZAY;19I07534;18I03759;31286;11008;11008;44113;COMMUNAUTE DE COMMUNES REGION DE NOZAY;2019-07-12;00048362;12000;Région de Nozay;23;98766.52204624;44;275618396.875015;Avril 2018;sig.territoires.pdl_ctr.23;Région de Nozay;Région de Nozay;CTR;44113;44;2019_08642_00;47.5728858483, -1.60097664616;04/2018;130
L'aménagement et la sécurisation du bourg;Vendée;PEAULT;19I07517;18I07459;202500;47364;47364;85171;COMMUNE DE PEAULT;2019-07-12;85000398;0;Sud Vendée Littoral;48;297801.82823589;85;950717267.472634;Juillet 2018;sig.territoires.pdl_ctr.48;CC Sud Vendée Littoral;Sud Vendée Littoral;CTR;85171;85;2019_08740;46.502029199, -1.22708559855;07/2018;106
Les travaux de sécurisation des axes périphériques de l'école communale;Vendée;PUYRAVAULT;19I07519;18I07459;119530;49612;49612;85185;COMMUNE DE PUYRAVAULT;2019-07-12;85000440;0;Sud Vendée Littoral;48;297801.82823589;85;950717267.472634;Juillet 2018;sig.territoires.pdl_ctr.48;CC Sud Vendée Littoral;Sud Vendée Littoral;CTR;85185;85;2019_08742;46.3653834101, -1.09115660367;07/2018;106
La construction de vestiaires de football;Mayenne;ENTRAMMES;19I07501;19I00770;335740;58515;58515;53094;COMMUNE D ENTRAMMES;2019-07-12;00048468;0;Laval Agglomération;53;160270.39281569;53;438471285.378152;Février 2019;sig.territoires.pdl_ctr.53;Laval Agglomération;Laval Agglomération;CTR;53094;53;2019_08596_00;47.9934210518, -0.715102434492;02/2019;84
La requalification de la rue du Haut Bourg;Mayenne;SAINT-BERTHEVIN;19I07506;19I00770;296046;80000;80000;53201;COMMUNE DE SAINT BERTHEVIN;2019-07-12;00048391;0;Laval Agglomération;53;160270.39281569;53;438471285.378152;Février 2019;sig.territoires.pdl_ctr.53;Laval Agglomération;Laval Agglomération;CTR;53201;53;2019_08603;48.0702234162, -0.845217269922;02/2019;84
L'aménagement de la place de l'Eglise pour l'implantation d'un pôle commercial;Loire-Atlantique;CHAUVE;19I09031;17I08233;408460;91687;91687;44038;COMMUNE DE CHAUVE;2019-09-27;00049434;0;Pornic Agglo Pays de Retz;33;137060.38656142;44;451066582.29291;Septembre 2017;sig.territoires.pdl_ctr.33;Communauté d'Agglomération de Pornic Cœur Pays de Retz;Pornic Agglo Pays de Retz;CTR;44038;44;2019_11113;47.1588661346, -2.01200123653;09/2017;127
La réhabilitation de la déchetterie de Kéraline;Loire-Atlantique;HERBIGNAC;19I09036;17I09003;710000;142000;142000;44072;COMMUNAUTE D AGGLOMERATION DE LA PRESQU ILE DE GUERANDE ATLANTIQUE;2019-09-27;00045932;0;Cap Atlantique;41;145725.47329518;44;395838108.965296;Septembre 2017;sig.territoires.pdl_ctr.41;Cap Atlantique;Cap Atlantique;CTR;44072;44;2019_11855;47.4472411995, -2.31338629512;09/2017;125
L'acquisition de véhicules électriques;Vendée;INTERCOMMUNALE;19I08937;18I02799;80000;41200;41200;85234;COMMUNAUTE DE COMMUNES OCEAN MARAIS DE MONTS;2019-09-27;85000459;41200;Océan Marais de Monts;43;97448.69013118;85;184686424.300016;Avril 2018;sig.territoires.pdl_ctr.43;Océan Marais de Monts;Océan Marais de Monts;CTR;85234;85;2019_11050;46.8021968737, -2.04839789308;04/2018;101
Le 1er Réinventer Rural : l'appel à projets;Loire-Atlantique;NOZAY;19I09038;18I03759;76450;10000;10000;44113;COMMUNAUTE DE COMMUNES REGION DE NOZAY;2019-09-27;00049331;0;Région de Nozay;23;98766.52204624;44;275618396.875015;Avril 2018;sig.territoires.pdl_ctr.23;Région de Nozay;Région de Nozay;CTR;44113;44;2019_13145;47.5728858483, -1.60097664616;04/2018;130
La construction d'un groupe scolaire dans la ZAC du Champs de Manoeuvre;Loire-Atlantique;NANTES;19I08947;18I06834;8498000;2289053;2289053;44109;COMMUNE DE NANTES;2019-09-27;00049367;2289053;Nantes Métropole;6;181264.28832122;44;534212730.160229;Juillet 2018;sig.territoires.pdl_ctr.6;Nantes Métropole;Nantes Métropole;CDM;44109;44;2019_10951;47.2316356767, -1.54831008605;07/2018;132
La création d'une maison de santé pluridisciplinaire pour le sud du Pays de Saint-Gilles-Croix-de-Vie;;;19I08932;18I07458;1864319;51990;51990;;COMMUNE DE BRETIGNOLLES SUR MER;2019-09-27;85000456;;Pays de St Gilles-Croix-de-Vie;4;126534.03790467;85;293800477.999917;Avril 2018;sig.territoires.pdl_ctr.4;Communauté de communes du Pays de St Gilles-Croix-de-Vie;Pays de St Gilles-Croix-de-Vie;CTR;;;2019_10392_00;;04/2018;105
L'aménagement et la sécurisation du centre-bourg;;;19I08934;18I07459;140000;30979;30979;;SAINT ETIENNE DE BRILLOUET;2019-09-27;85000486;;Sud Vendée Littoral;48;297801.82823589;85;950717267.472634;Juillet 2018;sig.territoires.pdl_ctr.48;CC Sud Vendée Littoral;Sud Vendée Littoral;CTR;;;2019_10396_00;;07/2018;106
La réhabilitation d'un atelier en équipement sportif;Sarthe;SILLE-LE-GUILLAUME;19I08915;18I09952;383000;57450;57450;72334;COMMUNE DE SILLE LE GUILLAUME;2019-09-27;00049479;0;;;;;;;;;;;72145;72;2019_10349;48.1864769196, -0.132591918679;;
La construction du foyer des jeunes - pôle associatif;Mayenne;BONCHAMP-LES-LAVAL;19I08903;19I00770;1314331;99140;99140;53034;COMMUNE DE BONCHAMP LES LAVAL;2019-09-27;00048830;0;Laval Agglomération;53;160270.39281569;53;438471285.378152;Février 2019;sig.territoires.pdl_ctr.53;Laval Agglomération;Laval Agglomération;CTR;53034;53;2019_10327_00;48.067608658, -0.698304870899;02/2019;84
La création de points d'informations touristiques;Sarthe;INTERCOMMUNALE;19I08920;19I03413;51142;21000;21000;72124;COMMUNAUTE DE COMMUNES DE L OREE DE BERCE BELINOIS;2019-09-27;00049299;0;Pays du Mans;55;211770.96933046;72;515795064.742766;;sig.territoires.pdl_ctr.55;Pays du Mans;Pays du Mans;CTR;72124;72;2019_10366;47.8249669123, 0.284900847455;;89
L'animation territoriale PCAET;Sarthe;INTERCOMMUNALE;19I08921;19I03413;130000;65000;65000;72181;SYNDICAT MIXTE DU PAYS DU MANS;2019-09-27;00049300;65000;Pays du Mans;55;211770.96933046;72;515795064.742766;;sig.territoires.pdl_ctr.55;Pays du Mans;Pays du Mans;CTR;72181;72;2019_10367;47.9885256718, 0.200030493539;;89
La création d'une unité de méthanisation sur la station d'épuration de la Chauvinière;Sarthe;LE MANS;19I08899;19I04948;5000000;300000;300000;72181;LE MANS METROPOLE COMMUNAUTE URBAINE;2019-09-27;00049179;300000;CU Le Mans Métropole;20;141570.43537983;72;268048561.841433;Juin 2019;sig.territoires.pdl_ctr.20;CU Le Mans Métropole;CU Le Mans Métropole;CDM;72181;72;2019_10337;47.9885256718, 0.200030493539;06/2019;91
La construction de halles commerçantes;Loire-Atlantique;MASSERAC;19I09034;19I06781;83333;25000;25000;44092;COMMUNE DE MASSERAC;2019-09-27;00048995;0;Redon Bretagne Sud;58;222098.45592879;44;975206076.430979;Juillet 2019;sig.territoires.pdl_ctr.58;Redon Bretagne Sud;Redon Bretagne Sud;CTR;44092;44;2019_11481;47.6758102411, -1.90458344966;07/2019;136
Les travaux d'aménagement, de mise en sécurité et de mise en valeur de l'allée de la Loire à Rochefort;Maine-et-Loire;ROCHEFORT SUR LOIRE;19I10534;17I08581;125709;47475;47475;49259;CC LOIRE LAYON AUBANCE;2019-11-15;00051819;0;Loire Layon Aubance;29;220718.82914478;49;613435516.735679;Septembre 2017;sig.territoires.pdl_ctr.29;Loire Layon Aubance;Loire Layon Aubance;CTR;49259;49;2019_15594_00;47.3508366008, -0.65047354418;09/2017;121
La rénovation de la  salle des fêtes;Mayenne;LOIRON-RUILLE;19I10545;18I00770;251570;43190;43190;53137;COMMUNE DE LOIRON RUILLE;2019-11-15;00049680;43190;Pays de Loiron;63;104558.05453473;53;256504826.222709;Février 2018;sig.territoires.pdl_ctr.63;Pays de Loiron;Pays de Loiron;CTR;53137;53;2019_15289;48.0630179288, -0.919282481771;02/2018;80
La rénovation du bâtiment cantine/garderie;Mayenne;BOURGON;19I10546;18I00770;89771;24000;24000;53040;COMMUNE DE BOURGON;2019-11-15;00051306;24000;Pays de Loiron;63;104558.05453473;53;256504826.222709;Février 2018;sig.territoires.pdl_ctr.63;Pays de Loiron;Pays de Loiron;CTR;53040;53;2019_15290;48.1603649988, -1.04536225795;02/2018;80
Animation de la démarche Cit'ergie;Loire-Atlantique;NOZAY;19I10736;18I03759;57000;45000;45000;44113;COMMUNAUTE DE COMMUNES REGION DE NOZAY;2019-11-15;00052109;45000;Région de Nozay;23;98766.52204624;44;275618396.875015;Avril 2018;sig.territoires.pdl_ctr.23;Région de Nozay;Région de Nozay;CTR;44113;44;2019_15544;47.5728858483, -1.60097664616;04/2018;130
L'élaboration du Plan Climat Air Energie Territorial;;;19I10842;18I07459;70837;49756;49756;;COMMUNAUTE DE COMMUNES SUD VENDEE LITTORAL;2019-11-15;85000531;;Sud Vendée Littoral;48;297801.82823589;85;950717267.472634;Juillet 2018;sig.territoires.pdl_ctr.48;CC Sud Vendée Littoral;Sud Vendée Littoral;CTR;;;2019_15811_00;;07/2018;106
Les travaux d'aménagement et de sécurité routière des rue JB. Robin et G. Landais;Mayenne;AHUILLE;19I10551;19I00770;376500;50956;50956;53001;COMMUNE D AHUILLE;2019-11-15;00049897;0;Laval Agglomération;53;160270.39281569;53;438471285.378152;Février 2019;sig.territoires.pdl_ctr.53;Laval Agglomération;Laval Agglomération;CTR;53001;53;2019_15300_00;48.0242749675, -0.872848003304;02/2019;84
La construction d'une salle polyvalente;Vendée;BOUILLE COURDAULT;19I10845;19I00773;851980;60000;60000;85028;COMMUNE DE BOUILLE COURDAULT;2019-11-15;85000533;0;Vendée Sèvre Autise;22;164911.17006129;85;300390165.394669;Février 2019;sig.territoires.pdl_ctr.22;Communauté de communes de Vendée Sèvre Autise;Vendée Sèvre Autise;CTR;85028;85;2019_15815;46.3847932448, -0.684917815779;02/2019;109
L'aménagement des allées du cimetière;Loire-Atlantique;BLAIN;20I02230;17I04912;47700;36473;36473;44015;COMMUNE DE BLAIN;2020-02-14;00052435;;Région de Blain;12;104466.22577119;44;214288660.02636;Mai 2017;sig.territoires.pdl_ctr.12;Communauté de communes de la Région de Blain;Région de Blain;CTR;44015;44;2020_00913_00;47.4628210409, -1.76789479614;05/2017;112
La réalisation d'une épicerie sociale;Loire-Atlantique;BLAIN;20I02232;17I04912;83333;14575;14575;44015;COMMUNE DE BLAIN;2020-02-14;00052437;;Région de Blain;12;104466.22577119;44;214288660.02636;Mai 2017;sig.territoires.pdl_ctr.12;Communauté de communes de la Région de Blain;Région de Blain;CTR;44015;44;2020_00915_00;47.4628210409, -1.76789479614;05/2017;112
La construction d'une école de musique avec chaufferie bois à Châteauneuf-sur-Sarthe;Maine-et-Loire;CHATEAUNEUF SUR SARTHE;20I02271;18I02797;1147101;800000;800000;49080;CC DES VALLEES DU HAUT ANJOU;2020-02-14;00053965;238054;Vallées du Haut-Anjou;30;216414.19412737;49;658684300.095436;Avril 2018;sig.territoires.pdl_ctr.30;Vallées du Haut-Anjou;Vallées du Haut-Anjou;CTR;49080;49;2020_01081;47.6841712906, -0.495930395639;04/2018;124
L'implantation et l'aménagement de terrains multi-sports;Maine-et-Loire;LE LION D'ANGERS;20I02272;18I02797;693903;429699;429699;49176;CC DES VALLEES DU HAUT ANJOU;2020-02-14;00053972;0;Vallées du Haut-Anjou;30;216414.19412737;49;658684300.095436;Avril 2018;sig.territoires.pdl_ctr.30;Vallées du Haut-Anjou;Vallées du Haut-Anjou;CTR;49176;49;2020_01083_00;47.6307737346, -0.749881925184;04/2018;124
La création du Parc d'Activité La Mine;;;20I02289;18I04046;418995;190000;148333;;COMMUNAUTE DE COMMUNES DE L ERNEE;2020-02-14;00052760;;L'Ernée;8;134446.67084716;53;485109090.730026;Avril 2018;sig.territoires.pdl_ctr.8;L'Ernée;L'Ernée;CTR;;;2020_01288;;04/2018;82
La restructuration du quartier de la Croix-Verte;;;20I02280;18I05643;1802823;297580;297580;;COMMUNE DE SAUMUR;2020-02-14;00052887;;Saumur Val de Loire;28;222936.82254543;49;1244790494.62575;Mai 2018;sig.territoires.pdl_ctr.28;Saumur Val de Loire;Saumur Val de Loire;CTR;;;2020_01106_00;;05/2018;123
La rénovation thermique de la mairie;Vendée;SAINT MARTIN DES NOYERS;20I02253;18I06678;216038;22630;22630;85246;COMMUNE DE SAINT MARTIN DES NOYERS;2020-02-14;85000586;22630;Pays de Chantonnay;44;130417.27851046;85;319474713.690402;Avril 2018;sig.territoires.pdl_ctr.44;Pays de Chantonnay;Pays de Chantonnay;CTR;85246;85;2020_01758;46.7239461187, -1.20379080965;04/2018;103
La réhabilitation du groupe scolaire Jacqueline AURIOL;Loire-Atlantique;SAINT-HERBLAIN;20I02262;18I06834;2973917;338346;338346;44162;COMMUNE DE SAINT HERBLAIN;2020-02-14;00054040;52763;Nantes Métropole;6;181264.28832122;44;534212730.160229;Juillet 2018;sig.territoires.pdl_ctr.6;Nantes Métropole;Nantes Métropole;CDM;44162;44;2020_01012_00;47.2243762412, -1.63434818692;07/2018;132
La construction de la nouvelle déchetterie d'Ambrières-les-Vallées;Mayenne;AMBRIERES LES VALLEES;20I02287;18I07457;476993;175000;175000;53003;COMMUNAUTE DE COMMUNES DU BOCAGE MAYENNAIS;2020-02-14;00054502;0;Bocage Mayennais;9;189865.43542796;53;529745022.271069;Juillet 2018;sig.territoires.pdl_ctr.9;Communauté de communes du Bocage Mayennais;Bocage Mayennais;CTR;53003;53;2020_01286;48.4227200634, -0.624160085775;07/2018;83
La rénovation de la salle polyvalente;Sarthe;LE GREZ;20I02300;18I09952;34551;17435;17435;72145;COMMUNE DE LE GREZ;2020-02-14;00052546;0;;;;;;;;;;;72145;72;2020_01327;48.189214849, -0.15566536803;;
L'extension du bâtiment 50 site Quartier Ferrié;Mayenne;LAVAL;20I02314;19I00770;189009;150000;150000;53130;CCAS VILLE DE LAVAL;2020-02-14;00054535;0;Laval Agglomération;53;160270.39281569;53;438471285.378152;Février 2019;sig.territoires.pdl_ctr.53;Laval Agglomération;Laval Agglomération;CTR;53130;53;2020_02452;48.0608565468, -0.766005687142;02/2019;84
La construction d'ateliers-relais sur les Communes de Plessé et Guémené-Penfao :;;;20I02244;19I06781;879825;149430;149430;;CA REDON AGGLOMERATION;2020-02-14;00052705;;Redon Bretagne Sud;58;222098.45592879;44;975206076.430979;Juillet 2019;sig.territoires.pdl_ctr.58;Redon Bretagne Sud;Redon Bretagne Sud;CTR;;;2020_00931_00;;07/2019;136
Les travaux de mise aux normes sanitaires et accessibilité du petit bassin d'apprentissage et des vestiaires de la piscine du Louet;Maine-et-Loire;ROCHEFORT SUR LOIRE;20I04489;17I08581;216928;40000;40000;49259;ROCHEFORT SUR LOIRE;2020-04-30;00055538;0;Loire Layon Aubance;29;220718.82914478;49;613435516.735679;Septembre 2017;sig.territoires.pdl_ctr.29;Loire Layon Aubance;Loire Layon Aubance;CTR;49259;49;2020_04368;47.3508366008, -0.65047354418;09/2017;121
La création du pôle sportif du Complexe Aquatique Patinoire (nouvelle tranche);Vendée;LA ROCHE-SUR-YON;20I04633;17I09579;8100000;685224;685224;85191;LA ROCHE SUR YON AGGLOMERATION;2020-04-30;85000609;0;La Roche Sur Yon Agglomération;16;155815.38916483;85;500779101.845023;Novembre 2017;sig.territoires.pdl_ctr.16;La Roche Sur Yon Agglomération;La Roche Sur Yon Agglomération;CTR;85191;85;2020_04372;46.6675261644, -1.4077954093;11/2017;96
Le renouvellement de la chaudière de la mairie et du logement attenant;Mayenne;LAUNAY VILLIERS;20I04617;18I00770;27452;9151;9151;53129;LAUNAY VILLIERS;2020-04-30;00054917;0;Pays de Loiron;63;104558.05453473;53;256504826.222709;Février 2018;sig.territoires.pdl_ctr.63;Pays de Loiron;Pays de Loiron;CTR;53129;53;2020_04880_00;48.1329122905, -1.0116324097;02/2018;80
La création d'une liaison douce entre Vivy et Neuillé;Maine-et-Loire;VIVY;20I04487;18I05643;174403;43600;;49378;COMMUNE DE VIVY;2020-04-30;00055283;43600;Saumur Val de Loire;28;222936.82254543;49;1244790494.62575;Mai 2018;sig.territoires.pdl_ctr.28;Saumur Val de Loire;Saumur Val de Loire;CTR;49378;49;2020_04358;47.3228206835, -0.0669608639815;05/2018;123
L'élaboration du programme local de l'habitat (PLH);Maine-et-Loire;SEGRE EN ANJOU BLEU;20I04713;20I03659;78480;52320;52320;49331;CC ANJOU BLEU COMMUNAUTE;2020-04-30;00054870;0;;;;;;;;;;;49331;49;2020_07099;47.7016654227, -0.863354104119;;
Les travaux de rénovation énergétique de la mairie;Maine-et-Loire;CHAMPTOCE SUR LOIRE;20I05934;17I08581;216519;56289;56289;49068;MAIRIE DE CHAMPTOCE SUR LOIRE;2020-05-29;00057616;56289;Loire Layon Aubance;29;220718.82914478;49;613435516.735679;Septembre 2017;sig.territoires.pdl_ctr.29;Loire Layon Aubance;Loire Layon Aubance;CTR;49068;49;2020_06897;47.4299165836, -0.874606992873;09/2017;121
La création d'un terrain de football en gazon synthétique à Saint Macaire en Mauges;Maine-et-Loire;SEVREMOINE;20I05937;17I08582;1133968;451623;451623;49301;COMMUNE DE SEVREMOINE;2020-05-29;00057596;0;Mauges Communauté;5;274965.40485114;49;1318044533.54153;Septembre 2017;sig.territoires.pdl_ctr.5;Mauges Communauté;Mauges Communauté;CTR;49301;49;2020_06901;47.1256560392, -0.998341815021;09/2017;122
La construction d'une Recyclerie;Vendée;L'ILE D YEU;20I05950;18I02798;972375;153000;153000;85113;COMMUNE DE L ILE D YEU;2020-05-29;85000331;0;L'Ile d'Yeu;51;32302.30182464;85;24658739.0;Avril 2018;sig.territoires.pdl_ctr.51;Communauté de communes de l'Île d'Yeu;L'Ile d'Yeu;CTR;85113;85;2020_06986;46.7093514816, -2.34712702345;04/2018;100
La restauration de l'église Saint-Martin;;;20I05927;18I05642;77000;10264;10264;;COMMUNE DE CARBAY;2020-05-29;00057506;;Anjou Bleu Communauté;57;184223.75006092;49;654967768.886332;Mai 2018;sig.territoires.pdl_ctr.57;Anjou Bleu Communauté;Anjou Bleu Communauté;CTR;;;2020_06888_00;;05/2018;118
La réhabilitation énergétique et sanitaire de la salle polyvalente;Sarthe;DEGRE;20I05955;18I09952;81692;20500;20500;72113;COMMUNE DE DEGRE;2020-05-29;00057647;20500;;;;;;;;;;;72113;72;2020_06559;48.0528331198, 0.0735665144485;;
L'aménagement de la maison de quartier d'Avesnières;Mayenne;LAVAL;20I05954;19I00770;97589;40000;40000;53130;COMMUNE DE LAVAL;2020-05-29;00057747;0;Laval Agglomération;53;160270.39281569;53;438471285.378152;Février 2019;sig.territoires.pdl_ctr.53;Laval Agglomération;Laval Agglomération;CTR;53130;53;2020_06557_00;48.0608565468, -0.766005687142;02/2019;84
A la poursuite du temps caché - Tranche 2;Sarthe;VAAS;20I05959;19I03414;190633;126218;64787;72364;PETR PAYS VALLEE DU LOIR;2020-05-29;00057444;0;CC du Pays Fléchois;49;306001.78232882;72;1427230046.65579;;sig.territoires.pdl_ctr.49;PETR Pays Vallée du Loir;Pays Vallée du Loir;CTR;72364;72;2020_07152;47.6723014522, 0.315373744758;;90
La Construction de deux ateliers-relais n°2 et 3 à Montreuil-Bellay - Zone Europe-Champagne;;;20I07261;18I05643;411568;61715;61715;;CA SAUMUR VAL DE LOIRE;2020-07-10;00060342;;Saumur Val de Loire;28;222936.82254543;49;1244790494.62575;Mai 2018;sig.territoires.pdl_ctr.28;Saumur Val de Loire;Saumur Val de Loire;CTR;;;2020_08290_00;;05/2018;123
La Construction de l'usine-relais n°8 à Neuillé - Zone de la Ronde;;;20I07262;18I05643;628805;134208;134208;;CA SAUMUR VAL DE LOIRE;2020-07-10;00059382;;Saumur Val de Loire;28;222936.82254543;49;1244790494.62575;Mai 2018;sig.territoires.pdl_ctr.28;Saumur Val de Loire;Saumur Val de Loire;CTR;;;2020_08291_00;;05/2018;123
L'aménagement d'un parc animalier;Sarthe;BOURG LE ROI;20I07268;18I09842;37474;27950;27950;72043;CC HAUTE SARTHE ALPES MANCELLES;2020-07-10;00060371;0;CC Haute Sarthe Alpes Mancelles;46;208876.08303841;72;922846721.323114;Novembre 2018;sig.territoires.pdl_ctr.46;Pays de la Haute Sarthe;Pays de la Haute Sarthe;CTR;72043;72;2020_08339;48.3460739531, 0.132093521683;11/2018;87
L'animation de la stratégie touristique territoriale du Perche sarthois;Sarthe;LA FERTE-BERNARD;20I07993;20I07062;352694;150000;150000;72132;SYNDICAT MIXTE DU PAYS DU PERCHE SARTHOIS;2020-07-10;00058557;0;;;;;;;;;;;72132;72;2020_10824;48.1842560568, 0.634694806211;;
Les travaux de valorisation paysagère des abords de l'église Saint Maurille en site UNESCO;Maine-et-Loire;CHALONNES SUR LOIRE;20I09133;17I08581;104415;28500;;49063;COMMUNE DE CHALONNES SUR LOIRE;2020-09-25;00062482;0;Loire Layon Aubance;29;220718.82914478;49;613435516.735679;Septembre 2017;sig.territoires.pdl_ctr.29;Loire Layon Aubance;Loire Layon Aubance;CTR;49063;49;2020_09882;47.3494785235, -0.772675582911;09/2017;121
La valorisation patrimoniale et touristique du Château de Baugé;Maine-et-Loire;BAUGE EN ANJOU;20I09137;17I09576;712148;228351;228351;49018;COMMUNE DE BAUGE EN ANJOU;2020-09-25;00069764;0;Baugeois Vallée;27;204904.66931563;49;738271608.292046;Novembre 2017;sig.territoires.pdl_ctr.27;Baugeois Vallée;Baugeois Vallée;CTR;49018;49;2020_09909;47.5466894738, -0.109021794815;11/2017;120
La construction d'une salle des sports intercommunale à Bazougers;Mayenne;BAZOUGERS;20I09167;17I09585;1506300;375000;375000;53025;COMMUNAUTE DE COMMUNES DU PAYS DE MESLAY GREZ;2020-09-25;00062486;0;Pays de Meslay-Grez;11;168628.2873103;53;425452603.464578;Novembre 2017;sig.territoires.pdl_ctr.11;Pays de Meslay-Grez;Pays de Meslay-Grez;CTR;53025;53;2020_10387;48.0261307912, -0.593302561904;11/2017;78
La rénovation de l'éclairage public;Sarthe;MEZERAY;20I09166;17I09882;43895;23479;23479;72195;COMMUNE DE MEZERAY;2020-09-25;00072534;;;;;;;;;;;;72195;72;2020_09922_00;47.8295768885, -0.0158831127316;;
La rénovation de la déchetterie de Parigné-sur-Braye;Mayenne;PARIGNE SUR BRAYE;20I09154;18I00723;439076;76261;76261;53174;MAYENNE COMMUNAUTE;2020-09-25;00072293;0;Mayenne Communauté;3;193726.21308398;53;626754357.991273;Février 2018;sig.territoires.pdl_ctr.3;Mayenne Communauté;Mayenne Communauté;CTR;53174;53;2020_09848;48.3232727343, -0.647230020006;02/2018;79
La réhabilitation et la restructuration du complexe sportif Offard et Stade d'athlétisme;Maine-et-Loire;SAUMUR;20I09128;18I05643;4040460;781187;781187;49328;CA SAUMUR VAL DE LOIRE;2020-09-25;00062725;619500;Saumur Val de Loire;28;222936.82254543;49;1244790494.62575;Mai 2018;sig.territoires.pdl_ctr.28;Saumur Val de Loire;Saumur Val de Loire;CTR;49328;49;2020_09864;47.2673853525, -0.0830410591988;05/2018;123
La création d'un itinéraire cyclable entre Beaurepaire et Les Herbiers - Phase 1;;;20I09327;18I06679;145300;41559;41559;;COMMUNAUTE DE COMMUNES DU PAYS DES HERBIERS;2020-09-25;85000717;;Pays des Herbiers;17;117942.86919888;85;250332696.371675;Juillet 2018;sig.territoires.pdl_ctr.17;Pays des Herbiers;Pays des Herbiers;CTR;;;2020_09832_00;;07/2018;104
L'aménagement de l'entrée de Ville Est;Loire-Atlantique;SAINT NAZAIRE;20I09339;18I08406;1206259;160407;160407;44184;COMMUNE DE SAINT NAZAIRE;2020-09-25;00072463;160407;CARENE;59;128866.92125478;44;316957860.724649;Septembre 2018;sig.territoires.pdl_ctr.59;CARENE;CARENE;CTR;44184;44;2020_10198;47.2802857028, -2.25379927249;09/2018;133
L'aménagement du plan d'eau;Mayenne;ARGENTRE;20I09169;19I00770;109089;84585;84585;53007;COMMUNE D ARGENTRE;2020-09-25;00071794;0;Laval Agglomération;53;160270.39281569;53;438471285.378152;Février 2019;sig.territoires.pdl_ctr.53;Laval Agglomération;Laval Agglomération;CTR;53007;53;2020_10775;48.0906663644, -0.632122843282;02/2019;84
VLa création de deux cabinets médicaux à Damvix et à Rives d'Autise;;;20I09153;19I00773;867530;180620;180620;;COMMUNAUTE DE COMMUNES VENDEE SEVRE AUTISE;2020-09-25;85000706;;Vendée Sèvre Autise;22;164911.17006129;85;300390165.394669;Février 2019;sig.territoires.pdl_ctr.22;Communauté de communes de Vendée Sèvre Autise;Vendée Sèvre Autise;CTR;;;2020_10768_00;;02/2019;109
Les travaux de rénovation de façade de l'ancien presbytère;Maine-et-Loire;AUBIGNE SUR LAYON;20I11788;17I08581;24039;10000;10000;49012;COMMUNE D AUBIGNE SUR LAYON;2020-11-13;00121150;0;Loire Layon Aubance;29;220718.82914478;49;613435516.735679;Septembre 2017;sig.territoires.pdl_ctr.29;Loire Layon Aubance;Loire Layon Aubance;CTR;49012;49;2020_13365;47.2124010372, -0.472931660445;09/2017;121
Les travaux d'extension du parc d'activités Les Fontenelles n°2;Maine-et-Loire;CHARCE-SAINT-ELLIER-SUR-AUBANCE;22I10502;17I08581;886565;455875;275120;49078;ALTER CITES;2020-11-13;00121233;0;Loire Layon Aubance;29;220718.82914478;49;613435516.735679;Septembre 2017;sig.territoires.pdl_ctr.29;Loire Layon Aubance;Loire Layon Aubance;CTR;49050;49;2020_13410_00;47.3522114874, -0.403200268067;09/2017;121
La mise en oeuvre d'un programme de rénovation énergétique du parc social locatif communautaire;Mayenne;ERNEE;20I12008;18I04046;539844;167600;167600;53096;COMMUNAUTE DE COMMUNES DE L ERNEE;2020-11-13;00120910;167600;L'Ernée;8;134446.67084716;53;485109090.730026;Avril 2018;sig.territoires.pdl_ctr.8;L'Ernée;L'Ernée;CTR;53096;53;2020_13690;48.3039992806, -0.93628278715;04/2018;82
La requalification d'espaces délaissés ou en friche dans le cadre du projet de revitalisation du centre-ville de Pouancé;;;20I11782;18I05642;488940;261230;261230;;COMMUNE DE OMBREE D ANJOU;2020-11-13;00120392;;Anjou Bleu Communauté;57;184223.75006092;49;654967768.886332;Mai 2018;sig.territoires.pdl_ctr.57;Anjou Bleu Communauté;Anjou Bleu Communauté;CTR;;;2020_13338_00;;05/2018;118
La construction d'un bâtiment destiné aux services techniques communautaires;;;20I11976;18I06807;1630000;124944;124944;;GRAND LIEU COMMUNAUTE;2020-11-13;00121692;;Grand Lieu;7;107565.11514829;44;300535663.006993;Juillet 2018;sig.territoires.pdl_ctr.7;Grand Lieu;Grand Lieu;CTR;;;2020_13642_00;;07/2018;131
L'aménagement de l'espace associatif;Mayenne;LAVAL;20I12012;19I00770;246554;120000;120000;53130;COMMUNE DE LAVAL;2020-11-13;00114466;0;Laval Agglomération;53;160270.39281569;53;438471285.378152;Février 2019;sig.territoires.pdl_ctr.53;Laval Agglomération;Laval Agglomération;CTR;53130;53;2020_13694;48.0608565468, -0.766005687142;02/2019;84
La construction d'une pépinière d'entreprises tertiaire et artisanale;Sarthe;SPAY;23I02833;17I09882;1473582;241426;241426;72344;COMMUNAUTE DE COMMUNES DU VAL DE SARTHE;2021-02-12;00141533;;;;;;;;;;;;72344;72;2021_04359_01;47.9251136777, 0.151021420961;;
La réalisation d'un boulodrome;;;21I02590;18I05377;319877;41552;41552;;COMMUNE DE MACHECOUL SAINT MEME;2021-02-12;00140335;;Sud Retz Atlantique;25;169463.38998873;44;425092538.170903;Mai 2018;sig.territoires.pdl_ctr.25;Sud Retz Atlantique;Sud Retz Atlantique;CTR;;;2021_04250_00;;05/2018;75
La création d'une bibliothèque;;;23I05102;18I09842;38570;22500;22500;;COMMUNE DE SEGRIE;2021-02-12;00130645;;CC Haute Sarthe Alpes Mancelles;46;208876.08303841;72;922846721.323114;Novembre 2018;sig.territoires.pdl_ctr.46;Pays de la Haute Sarthe;Pays de la Haute Sarthe;CTR;;;2021_04346_01;;11/2018;87
L'aménagement d'un multiservices communal;;;21I02639;19I00771;372089;49495;49495;;COMMUNE DE SEMUR EN VALLON;2021-02-12;00132933;;CC du Pays de l'Huisne Sarthoise;35;265241.4780676;72;1290421266.50866;Février 2019;sig.territoires.pdl_ctr.35;Pays du Perche Sarthois;Pays du Perche Sarthois;CTR;;;2021_04353_00;;02/2019;88
La construction d'un bâtiment dédié aux activités nautiques;Vendée;DAMVIX;21I02578;19I00773;180000;0;;85078;MAIRIE DE DAMVIX;2021-02-12;85000629;0;Vendée Sèvre Autise;22;164911.17006129;85;300390165.394669;Février 2019;sig.territoires.pdl_ctr.22;Communauté de communes de Vendée Sèvre Autise;Vendée Sèvre Autise;CTR;85078;85;2021_04265_00;46.32063079, -0.743504259797;02/2019;109
La réhabilitation et l'extension d'une ancienne école en pôle multi-accueil intercommunal;Sarthe;VAAS;21I02643;19I03414;672155;65850;65850;72364;COMMUNAUTE DE COMMUNES SUD SARTHE;2021-02-12;00114851;65850;CC du Pays Fléchois;49;306001.78232882;72;1427230046.65579;;sig.territoires.pdl_ctr.49;PETR Pays Vallée du Loir;Pays Vallée du Loir;CTR;72364;72;2021_04358;47.6723014522, 0.315373744758;;90
La réhabilitation de la gendarmerie;;;21I04120;18I07459;430729;72369;72369;;COMMUNAUTE DE COMMUNES SUD VENDEE LITTORAL;2021-03-31;85000855;;Sud Vendée Littoral;48;297801.82823589;85;950717267.472634;Juillet 2018;sig.territoires.pdl_ctr.48;CC Sud Vendée Littoral;Sud Vendée Littoral;CTR;;;2021_05374_00;;07/2018;106
La réhabilitation de la maison de quartier des Pommeraies;;;23I02678;19I00770;57855;18540;18540;;COMMUNE DE LAVAL;2021-03-31;;;Laval Agglomération;53;160270.39281569;53;438471285.378152;Février 2019;sig.territoires.pdl_ctr.53;Laval Agglomération;Laval Agglomération;CTR;;;2021_05349_01;;02/2019;84
La création d'un parc de halte touristique;;;23I05095;19I03413;103247;46432;;;COMMUNE D ECOMMOY;2021-03-31;00146143;;Pays du Mans;55;211770.96933046;72;515795064.742766;;sig.territoires.pdl_ctr.55;Pays du Mans;Pays du Mans;CTR;;;2021_05385_01;;;89
l'extension de l'école publique Georges Lapierre sur la commune déléguée d'Andrezé;;;23I02511;17I08582;591282;287338;287338;;COMMUNE DE BEAUPREAU EN MAUGES;2021-05-21;00148114;;Mauges Communauté;5;274965.40485114;49;1318044533.54153;Septembre 2017;sig.territoires.pdl_ctr.5;Mauges Communauté;Mauges Communauté;CTR;;;2021_08055_01;;09/2017;122
La rénovation énergétique des bâtiments communaux;;;21I07882;19I00770;116248;18883;18883;;COMMUNE DE LA CHAPELLE ANTHENAISE;2021-05-21;00148162;;Laval Agglomération;53;160270.39281569;53;438471285.378152;Février 2019;sig.territoires.pdl_ctr.53;Laval Agglomération;Laval Agglomération;CTR;;;2021_08350_00;;02/2019;84
La réhabilitation d'un bâtiment en école de musique;;;23I02686;19I00771;712291;253538;253538;;COMMUNAUTE DE COMMUNES LE GESNOIS BILURIEN;2021-05-21;;;CC du Pays de l'Huisne Sarthoise;35;265241.4780676;72;1290421266.50866;Février 2019;sig.territoires.pdl_ctr.35;Pays du Perche Sarthois;Pays du Perche Sarthois;CTR;;;2021_08436_01;;02/2019;88
La mise aux normes et rénovation des sanitaires et de l'accueil du camping municipal;Loire-Atlantique;SAINT-HILAIRE-DE-CHALEONS;21I10722;17I08233;88390;40000;40000;44164;COMMUNE DE SAINT HILAIRE DE CHALEONS;2021-09-23;00149607;;Pornic Agglo Pays de Retz;33;137060.38656142;44;451066582.29291;Septembre 2017;sig.territoires.pdl_ctr.33;Communauté d'Agglomération de Pornic Cœur Pays de Retz;Pornic Agglo Pays de Retz;CTR;44164;44;2021_11397;47.0958948849, -1.87983637967;09/2017;127
La requalification des parcs d'activités de Beslon et Kergoulinet;Loire-Atlantique;LA BAULE ESCOUBLAC;21I11579;17I09003;635000;213756;213756;44055;COMMUNAUTE D AGGLOMERATION DE LA PRESQU ILE DE GUERANDE ATLANTIQUE;2021-09-23;00148750;;Cap Atlantique;41;145725.47329518;44;395838108.965296;Septembre 2017;sig.territoires.pdl_ctr.41;Cap Atlantique;Cap Atlantique;CTR;44055;44;2021_15030;47.2909720179, -2.3538291745;09/2017;125
Le renouvellement des équipements communaux;Loire-Atlantique;BOUEE;21I10724;17I09760;32930;23380;23380;44019;COMMUNE DE BOUEE;2021-09-23;00150342;;Estuaire et Sillon;61;112337.65867316;44;313121598.740399;Novembre 2017;sig.territoires.pdl_ctr.61;Communauté de communes d'Estuaire et Sillon;Estuaire et Sillon;CTR;44019;44;2021_11401;47.304903513, -1.91266951692;11/2017;129
La rénovation de l'éclairage public;;;23I05118;17I09881;133760;43600;43600;;COMMUNE DE LE BAILLEUL;2021-09-23;00150471;;;;;;;;;;;;;;2021_12422_01;;;
L'aménagement d'un logement d'urgence;;;23I03179;18I03759;100000;80000;64000;;COMMUNAUTE DE COMMUNES REGION DE NOZAY;2021-09-23;00150285;;Région de Nozay;23;98766.52204624;44;275618396.875015;Avril 2018;sig.territoires.pdl_ctr.23;Région de Nozay;Région de Nozay;CTR;;;2021_11405_01;;04/2018;130
Les travaux d'aménagement des locaux autour de la piscine municipale;;;23I05211;18I06679;139053;41715;41715;;COMMUNE DES EPESSES;2021-09-23;85000890;;Pays des Herbiers;17;117942.86919888;85;250332696.371675;Juillet 2018;sig.territoires.pdl_ctr.17;Pays des Herbiers;Pays des Herbiers;CTR;;;2021_11110_01;;07/2018;104
Les aménagements complémentaires des maisons de santé pluriprofessionnelles de Marolles les Braults et du Saosnois;;;23I05123;18I06858;31882;22300;17614;;COMMUNAUTE DE COMMUNES MAINE SAOSNOIS;2021-09-23;00150533;;CC Maine Saosnois;31;160838.92939288;72;582200983.266689;Juillet 2018;sig.territoires.pdl_ctr.31;CC Maine Saosnois;CC Maine Saosnois;CTR;;;2021_12417_01;;07/2018;86
La viabilisation de la Zone d'Activités de Fougerolles-du-Plessis;Mayenne;FOUGEROLLES DU PLESSIS;21I10785;18I07457;70000;50000;50000;53100;COMMUNAUTE DE COMMUNES DU BOCAGE MAYENNAIS;2021-09-23;00150493;;Bocage Mayennais;9;189865.43542796;53;529745022.271069;Juillet 2018;sig.territoires.pdl_ctr.9;Communauté de communes du Bocage Mayennais;Bocage Mayennais;CTR;53100;53;2021_12431;48.4830723517, -0.945714822072;07/2018;83
Les travaux d'aménagement du centre-bourg;;;23I05120;18I07458;2152750;53000;17479;;MAIRIE LE FENOUILLER;2021-09-23;85000946;;Pays de St Gilles-Croix-de-Vie;4;126534.03790467;85;293800477.999917;Avril 2018;sig.territoires.pdl_ctr.4;Communauté de communes du Pays de St Gilles-Croix-de-Vie;Pays de St Gilles-Croix-de-Vie;CTR;;;2021_12445_01;;04/2018;105
La réhabilitation de la salle omnisports;;;23I05077;18I08141;1721921;50000;50000;;COMMUNE DE LA MEILLERAIE TILLAY;2021-09-23;85000940;;Pays de Pouzauges;60;109218.55751266;85;320861396.374744;Septembre 2018;sig.territoires.pdl_ctr.60;Communauté de communes du Pays de Pouzauges;Pays de Pouzauges;CTR;;;2021_11119_01;;09/2018;107
La rénovation des ateliers municipaux;;;23I05109;18I09952;34000;15000;15000;;COMMUNE DE SAINTE SABINE SUR LONGEVE;2021-09-23;00150170;;;;;;;;;;;;;;2021_12413_01;;;
La reconstruction d'un restaurant;;;23I05039;19I00771;552000;60000;;;COMMUNE DE MONTMIRAIL;2021-09-23;00150675;;CC du Pays de l'Huisne Sarthoise;35;265241.4780676;72;1290421266.50866;Février 2019;sig.territoires.pdl_ctr.35;Pays du Perche Sarthois;Pays du Perche Sarthois;CTR;;;2021_12402_01;;02/2019;88
L'aménagement du lac (phase 1);;;23I05040;19I00771;362200;131100;53056;;COMMUNE DE SAINT CALAIS;2021-09-23;00150453;;CC du Pays de l'Huisne Sarthoise;35;265241.4780676;72;1290421266.50866;Février 2019;sig.territoires.pdl_ctr.35;Pays du Perche Sarthois;Pays du Perche Sarthois;CTR;;;2021_12403_02;;02/2019;88
La construction d'un établissement d'accueil du jeune enfant;;;23I05041;19I00771;652000;178498;;;COMMUNAUTE DE COMMUNES LE GESNOIS BILURIEN;2021-09-23;00150605;;CC du Pays de l'Huisne Sarthoise;35;265241.4780676;72;1290421266.50866;Février 2019;sig.territoires.pdl_ctr.35;Pays du Perche Sarthois;Pays du Perche Sarthois;CTR;;;2021_12404_01;;02/2019;88
La construction d'un nouveau centre de transfert;;;23I04989;19I06781;1870000;147444;;;CA REDON AGGLOMERATION;2021-09-23;00150580;;Redon Bretagne Sud;58;222098.45592879;44;975206076.430979;Juillet 2019;sig.territoires.pdl_ctr.58;Redon Bretagne Sud;Redon Bretagne Sud;CTR;;;2021_11418_01;;07/2019;136
La réalisation d'une nouvelle mairie dans un bâtiment communal existant;;;23I05213;19I06781;500000;50000;50000;;COMMUNE DE MASSERAC;2021-09-23;00055039;;Redon Bretagne Sud;58;222098.45592879;44;975206076.430979;Juillet 2019;sig.territoires.pdl_ctr.58;Redon Bretagne Sud;Redon Bretagne Sud;CTR;;;2021_11420_01;;07/2019;136
L'acquisition foncière pour le futur parc éolien - CTR 2020 - CA Pornic Coeur Pays de Retz;Loire-Atlantique;ROUANS;18I02251;17I08233;29300;10000;10000;44145;COMMUNE DE ROUANS;2018-02-16;00041235;10000;Pornic Agglo Pays de Retz;33;137060.38656142;44;451066582.29291;Septembre 2017;sig.territoires.pdl_ctr.33;Communauté d'Agglomération de Pornic Cœur Pays de Retz;Pornic Agglo Pays de Retz;CTR;44145;44;2018_00193;47.1763592414, -1.84313535499;09/2017;127
Les aménagements d'entrée et de traversée de bourg - CTR 2020 - Communauté de communes de Pont Château Saint Gildas des Bois;Loire-Atlantique;DREFFEAC;18I03755;17I06805;569340;86610;86610;44053;MAIRIE DE DREFFEAC;2018-04-20;00044035;0;Pays de Pontchâteau St Gildas des Bois;1;130121.86476614;44;327059918.271195;Juillet 2017;sig.territoires.pdl_ctr.1;Communauté de communes de Pont Château Saint Gildas des Bois;Pays de Pontchâteau St Gildas des Bois;CTR;44053;44;2018_04371;47.4684630967, -2.05940448032;07/2017;115
44 - ESTUAIRE ET SILLON - COMMUNE DE PRINQUIAU - Projet d'aménagement de la rue du Clos du Marais et de la route de la Ferrière;Loire-Atlantique;PRINQUIAU;18I03758;17I09760;228084;47890;47890;44137;COMMUNE DE PRINQUIAU;2018-04-20;00044025;0;Estuaire et Sillon;61;112337.65867316;44;313121598.740399;Novembre 2017;sig.territoires.pdl_ctr.61;Communauté de communes d'Estuaire et Sillon;Estuaire et Sillon;CTR;44137;44;2018_04370_00;47.3735148609, -2.01845241954;11/2017;129
la requalification de l'entrée du site culturel et touristique de l'île MoulinSart   CTR 2020 - Communauté de communes du Pays Vallée de la Sarthe;Sarthe;LA SUZE SUR SARTHE;18I03764;17I09882;128589;18791;18791;72346;COMMUNAUTE DE COMMUNES DU VAL DE SARTHE;2018-04-20;00039453;0;;;;;;;;;;;72346;72;2018_04471;47.8772923207, 0.0251444644642;;
La rénovation énergétique du foyer Emile Thibault - médiathèque - Commune du Croisic - 44 - CTR 2020 - CAP ATLANTIQUE;Loire-Atlantique;LE CROISIC;18I07137;17I09003;227610;68283;68283;44049;COMMUNE DU CROISIC;2018-07-13;00041088;68283;Cap Atlantique;41;145725.47329518;44;395838108.965296;Septembre 2017;sig.territoires.pdl_ctr.41;Cap Atlantique;Cap Atlantique;CTR;44049;44;2018_08350;47.2922743449, -2.52277844422;09/2017;125
le projet citoyen participatif d'installation de panneaux photovoltaïques sur bâtiments communaux-CC Pays de Craon-53- CTR de la CC du Pays de Craon;Mayenne;POMMERIEUX;18I07148;17I09006;51000;13881;13881;53180;COMMUNE DE POMMERIEUX;2018-07-13;00039598;15300;Pays de Craon;62;169901.29669863;53;646041148.74744;Septembre 2017;sig.territoires.pdl_ctr.62;Pays de Craon;Pays de Craon;CTR;53180;53;2018_08552_00;47.8279468794, -0.899677522032;09/2017;77
L'aménagement intérieur et scénographie de l'Office de Tourisme Intercommunal -  OFFICE  DU TOURISME INTERCOMMUNAL (OTI) - 44 - CTR 2020 - PAYS ANCENIS (COMPA);Loire-Atlantique;ANCENIS;18I07141;17I09762;81420;45500;45500;44003;OFFICE DE TOURISME DU PAYS D ANCENIS;2018-07-13;00041079;0;Pays d'Ancenis;56;189953.08705022;44;865594442.852705;Novembre 2017;sig.territoires.pdl_ctr.56;Pays d'Ancenis;Pays d'Ancenis;CTR;44003;44;2018_08368;47.3833270209, -1.18241880879;11/2017;126
la mise en place de panneaux d'information numérique dans toutes les communes  -53-CTR ancien périmètre du Pays de Loiron;Mayenne;LOIRON-RUILLE;19I04425;18I00770;215257;134655;134655;53137;LAVAL AGGLOMERATION;2018-07-13;00039449;0;Pays de Loiron;63;104558.05453473;53;256504826.222709;Février 2018;sig.territoires.pdl_ctr.63;Pays de Loiron;Pays de Loiron;CTR;53137;53;2018_10514_01;48.0630179288, -0.919282481771;02/2018;80
L'acquisition d'un véhicule électrique pour le service mobilités - Communauté de Communes d'Erdre et Gesvres - 44 - CTR 2020 de la Communauté de communes d'Erdre et Gesvres;Loire-Atlantique;GRANDCHAMPS-DES-FONTAINES;18I08837;17I04913;14521;11617;11617;44066;COMMUNAUTE DE COMMUNES D ERDRE GESVRES;2018-09-28;00041253;11617;Erdre et Gesvres;13;166735.21638325;44;509712555.822317;Mai 2017;sig.territoires.pdl_ctr.13;Communauté de communes d'Erdre et Gesvres;Erdre et Gesvres;CTR;44066;44;2018_10157_00;47.3606796643, -1.61754475868;05/2017;113
L'achat de la boulangerie - COMMUNE DES RAIRIES - 49 - CTR 2020 Anjou Loir et Sarthe;Maine-et-Loire;LES RAIRIES;18I08796;17I06491;155220;38805;38805;49257;COMMUNE DES RAIRIES;2018-09-28;00041529;0;Anjou Loir et Sarthe;26;172077.9474839;49;457111657.097573;Juillet 2017;sig.territoires.pdl_ctr.26;Communauté de Communes Anjou Loir et Sarthe;Anjou Loir et Sarthe;CTR;49257;49;2018_11540;47.6517641258, -0.216889906219;07/2017;119
La transformation d'un restaurant scolaire en self-service -  Commune de Cheix en Retz - 44 - CTR 2020 de la CA Pornic Agglo Pays de Retz;Loire-Atlantique;CHEIX-EN-RETZ;18I08842;17I08233;49300;24000;24000;44039;COMMUNE DE CHEIX EN RETZ;2018-09-28;00039796;0;Pornic Agglo Pays de Retz;33;137060.38656142;44;451066582.29291;Septembre 2017;sig.territoires.pdl_ctr.33;Communauté d'Agglomération de Pornic Cœur Pays de Retz;Pornic Agglo Pays de Retz;CTR;44039;44;2018_10173;47.1811170912, -1.79840995834;09/2017;127
Le PEM d'Ancenis tranche 2 : Equipements des quais et du souterrain - aménagement des abords - SNCF Gares et connexions - 44 - CTR 2020 de la Communauté de communes du Pays d'Ancenis (COMPA);Loire-Atlantique;ANCENIS;18I08851;17I09762;405500;81100;81100;44003;SNCF GARES ET CONNEXIONS;2018-09-28;00041183;81100;Pays d'Ancenis;56;189953.08705022;44;865594442.852705;Novembre 2017;sig.territoires.pdl_ctr.56;Pays d'Ancenis;Pays d'Ancenis;CTR;44003;44;2018_11633;47.3833270209, -1.18241880879;11/2017;126
la rénovation et la réhabilitation de la salle des sports du Ronceray - COMMUNE DE CANTENAY EPINARD - 49 - CDM Angers Loire Métropole;Maine-et-Loire;CANTENAY-EPINARD;18I08786;18I06680;460000;161000;161000;49055;COMMUNE DE CANTENAY EPINARD;2018-09-28;00041469;0;Angers Loire Métropole;10;192445.630446;49;676496020.936854;Juillet 2018;sig.territoires.pdl_ctr.10;Angers Loire Métropole;Angers Loire Métropole;CDM;49055;49;2018_11431;47.5380581206, -0.566473143041;07/2018;116
Les études préopérationnelles pour le cinéma - Commune de Nort-sur-Erdre - 44 - CTR 2020 CC D'ERDRE ET GESVRES;Loire-Atlantique;NORT-SUR-ERDRE;18I10713;17I04913;76250;50000;50000;44110;COMMUNE DE NORT SUR ERDRE;2018-11-23;00042618;0;Erdre et Gesvres;13;166735.21638325;44;509712555.822317;Mai 2017;sig.territoires.pdl_ctr.13;Communauté de communes d'Erdre et Gesvres;Erdre et Gesvres;CTR;44110;44;2018_12529;47.447122285, -1.51824792558;05/2017;113
La transformation d'un parking en espace d'animations et de développement économique dans le centre bourg - COMMUNE DE PREFAILLES - 44  - CTR 2020 CA PORNIC AGGLO COEUR PAYS DE RETZ;Loire-Atlantique;PREFAILLES;18I10722;17I08233;770000;89749;89749;44136;COMMUNE DE PREFAILLES;2018-11-23;00043076;0;Pornic Agglo Pays de Retz;33;137060.38656142;44;451066582.29291;Septembre 2017;sig.territoires.pdl_ctr.33;Communauté d'Agglomération de Pornic Cœur Pays de Retz;Pornic Agglo Pays de Retz;CTR;44136;44;2018_12774;47.131466657, -2.21391536402;09/2017;127
La reconversion du Petit séminaire - Etudes préalables - CAP ATLANTIQUE - 44 - CTR 2020;Loire-Atlantique;GUERANDE;18I10718;17I09003;109000;21800;21800;44069;COMMUNAUTE D AGGLOMERATION DE LA PRESQU ILE DE GUERANDE ATLANTIQUE;2018-11-23;00042041;0;Cap Atlantique;41;145725.47329518;44;395838108.965296;Septembre 2017;sig.territoires.pdl_ctr.41;Cap Atlantique;Cap Atlantique;CTR;44069;44;2018_12726;47.3313320913, -2.41703658813;09/2017;125
l'acquisition d'une friche industrielle en vue de requalifier une ZA et développer hippodrome à Craon - 53 - CRAON - CC DU PAYS DE CRAON -;Mayenne;CRAON;19I00451;17I09006;160000;100000;100000;53084;CC DU PAYS DE CRAON;2018-11-23;00040724;0;Pays de Craon;62;169901.29669863;53;646041148.74744;Septembre 2017;sig.territoires.pdl_ctr.62;Pays de Craon;Pays de Craon;CTR;53084;53;2018_12865_00;47.8454412251, -0.943066490216;09/2017;77
L'action Trifibre - La création d'une star-up en production d'éco-matériaux innovants - COMMUNAUTE DE COMMUNES ESTUAIRE ET SILLON - 44 - CTR 2020 - CC ESTUAIRE ET SILLON;Loire-Atlantique;INTERCOMMUNALE;18I10724;17I09760;106200;75000;75000;44195;COMMUNAUTE DE COMMUNES ESTUAIRE ET SILLON;2018-11-23;00041342;0;Estuaire et Sillon;61;112337.65867316;44;313121598.740399;Novembre 2017;sig.territoires.pdl_ctr.61;Communauté de communes d'Estuaire et Sillon;Estuaire et Sillon;CTR;44195;44;2018_12786_00;47.3570647854, -1.91842119102;11/2017;129
La rénovation énergétique et l'agrandissement de la salle polyvalente - COMMUNE DE LA RABATELIERE - 85 - CTR 2020 CC Pays de Saint Fulgent - Les Essarts;Vendée;LA RABATELIERE;18I10396;18I01087;946820;260928;260928;85186;COMMUNE DE LA RABATELIERE;2018-11-23;85000156;207065;Pays de Saint-Fulgent – Les Essarts;36;123566.51305289;85;326545965.188948;Février 2018;sig.territoires.pdl_ctr.36;Pays de Saint-Fulgent – Les Essarts;Pays de Saint-Fulgent – Les Essarts;CTR;85186;85;2018_13317_00;46.8584147661, -1.2569733759;02/2018;99
La rénovation du foyer rural - COMMUNE DE LA GENETOUZE - 85 - CTR 2020 CC Vie et Boulogne;Vendée;LA GENETOUZE;18I10397;18I02800;1133313;57429;57429;85098;COMMUNE DE LA GENETOUZE;2018-11-23;85000205;58500;Vie et Boulogne;37;148814.1881539;85;492534760.430236;Avril 2018;sig.territoires.pdl_ctr.37;Vie et Boulogne;Vie et Boulogne;CTR;85098;85;2018_13318_00;46.7244524541, -1.50410719693;04/2018;102
La création d'une halle couverte - COMMUNE DE BELLEVIGNY - 85 - CTR 2020 CC Vie et Boulogne;Vendée;BELLEVIGNY;18I10657;18I02800;412600;63394;63394;85019;COMMUNE DE BELLEVIGNY;2018-11-23;85000219;0;Vie et Boulogne;37;148814.1881539;85;492534760.430236;Avril 2018;sig.territoires.pdl_ctr.37;Vie et Boulogne;Vie et Boulogne;CTR;85019;85;2018_13320_00;46.7756383534, -1.43313700054;04/2018;102
La restructuration - la reconfiguration - la mise aux normes de la Maison de services - COMMUNE DE LEGE - 44 - CTR 2020 - CC SUD RETZ ATLANTIQUE;Loire-Atlantique;LEGE;18I10727;18I05377;241510;75000;75000;44081;COMMUNE DE LEGE;2018-11-23;00043036;20772;Sud Retz Atlantique;25;169463.38998873;44;425092538.170903;Mai 2018;sig.territoires.pdl_ctr.25;Sud Retz Atlantique;Sud Retz Atlantique;CTR;44081;44;2018_12805;46.9003706986, -1.57917124705;05/2018;75
Le réaménagement et la construction de vestiaires de sport - COMMUNE DE SEGRE EN ANJOU BLEU - 49 - CTR 2020 Anjou Bleu Communauté;Maine-et-Loire;SEGRE EN ANJOU BLEU;18I10416;18I05642;800000;100000;100000;49331;COMMUNE DE SEGRE EN ANJOU BLEU;2018-11-23;00043263;0;Anjou Bleu Communauté;57;184223.75006092;49;654967768.886332;Mai 2018;sig.territoires.pdl_ctr.57;Anjou Bleu Communauté;Anjou Bleu Communauté;CTR;49331;49;2018_13290;47.7016654227, -0.863354104119;05/2018;118
La construction de vestiaires foot et club house -COMMUNE DE SAINT-PHILBERT-DE-GRAND-LIEU - 44 - CTR CC GRAND LIEU;Loire-Atlantique;SAINT-PHILBERT-DE-GRAND-LIEU;18I10730;18I06807;962690;274942;274942;44188;COMMUNE DE SAINT PHILBERT DE GRAND LIEU;2018-11-23;00043061;0;Grand Lieu;7;107565.11514829;44;300535663.006993;Juillet 2018;sig.territoires.pdl_ctr.7;Grand Lieu;Grand Lieu;CTR;44188;44;2018_12821;47.0602912538, -1.65711361304;07/2018;131
la mise en accessibilté de bâtiments communaux - COMMUNE DE SAINT MICHEL EN L'HERM - 85- CTR 2020 CC Sud Vendée Littoral;Vendée;SAINT-MICHEL-EN-L'HERM;18I10406;18I07459;98000;21420;21420;85255;COMMUNE DE SAINT MICHEL EN L HERM;2018-11-23;85000264;0;Sud Vendée Littoral;48;297801.82823589;85;950717267.472634;Juillet 2018;sig.territoires.pdl_ctr.48;CC Sud Vendée Littoral;Sud Vendée Littoral;CTR;85255;85;2018_13169;46.3366903175, -1.2483968538;07/2018;106
l'amenagement d'un local pour la bibliothèque - COMMUNE DE GRUES - 85-CTR 2020 CC Sud Vendée Littoral;Vendée;GRUES;18I10413;18I07459;142658;25393;25393;85104;COMMUNE DE GRUES;2018-11-23;85000220;25393;Sud Vendée Littoral;48;297801.82823589;85;950717267.472634;Juillet 2018;sig.territoires.pdl_ctr.48;CC Sud Vendée Littoral;Sud Vendée Littoral;CTR;85104;85;2018_13176;46.3813091348, -1.32364519268;07/2018;106
La construction d'une maison des jeunes - COMMUNE DE PONT-CHÂTEAU - 44 - CTR 2020 - CC PAYS DE PONT CHATEAU ST GILDAS DES BOIS;Loire-Atlantique;PONTCHATEAU;19I01591;17I06805;634634;146000;146000;44129;COMMUNE DE PONT CHATEAU;2019-02-08;00043541;0;Pays de Pontchâteau St Gildas des Bois;1;130121.86476614;44;327059918.271195;Juillet 2017;sig.territoires.pdl_ctr.1;Communauté de communes de Pont Château Saint Gildas des Bois;Pays de Pontchâteau St Gildas des Bois;CTR;44129;44;2019_01216;47.433636363, -2.09556089039;07/2017;115
La réalisation de l'aire multisport 'City stade' - COMMUNE DE CROSSAC - 44 - CTR 2020 - CC DU PAYS DE PONT CHATEAU ST GILDAS DES BOIS;Loire-Atlantique;CROSSAC;19I01592;17I06805;51002;37979;37979;44050;COMMUNE DE CROSSAC;2019-02-08;00044561;0;Pays de Pontchâteau St Gildas des Bois;1;130121.86476614;44;327059918.271195;Juillet 2017;sig.territoires.pdl_ctr.1;Communauté de communes de Pont Château Saint Gildas des Bois;Pays de Pontchâteau St Gildas des Bois;CTR;44050;44;2019_01221;47.4044611195, -2.15336667516;07/2017;115
l'extension des sanitaires du camping de la base de loisirs de la Rincerie -  CC DU PAYS DE CRAON - 53 -CTR 2020 CC PAYS DE CRAON;Mayenne;LA SELLE CRAONNAISE;19I01628;17I09006;76000;50000;50000;53258;CC DU PAYS DE CRAON;2019-02-08;00044761;0;Pays de Craon;62;169901.29669863;53;646041148.74744;Septembre 2017;sig.territoires.pdl_ctr.62;Pays de Craon;Pays de Craon;CTR;53258;53;2019_01438;47.8467586768, -1.05851023151;09/2017;77
l'Aménagement de la zone d'activité des Ponts Neufs à l'Ile d'Elle  - CC SUD VENDEE LITTORAL - 85 - CTR 2020 Sud Vendée Littoral;;;19I01603;18I07459;642000;448017;448017;;COMMUNAUTE DE COMMUNES SUD VENDEE LITTORAL;2019-02-08;85000323;;Sud Vendée Littoral;48;297801.82823589;85;950717267.472634;Juillet 2018;sig.territoires.pdl_ctr.48;CC Sud Vendée Littoral;Sud Vendée Littoral;CTR;;;2019_01151_01;;07/2018;106
l'élaboration du SCoT -  SYNDICAT MIXTE DU PAYS DE LA HAUTE SARTHE -72 - CTR 2020 CC HAUTE SARTHE ALPES MANCELLES -;Sarthe;VIVOIN;19I01631;18I09842;67689;20350;20350;72380;SYNDICAT MIXTE DU PAYS DE LA HAUTE SARTHE;2019-02-08;00044154;0;CC Haute Sarthe Alpes Mancelles;46;208876.08303841;72;922846721.323114;Novembre 2018;sig.territoires.pdl_ctr.46;Pays de la Haute Sarthe;Pays de la Haute Sarthe;CTR;72380;72;2019_01949;48.2401913817, 0.162292381772;11/2018;87
l'élaboration du SCoT- SYNDICAT MIXTE DU PAYS DE LA HAUTE SARTHE - 72 - CTR 2020 CC CHAMPAGNE CONLINOISE ET PAYS DE SILLE;Sarthe;VIVOIN;19I01633;18I09952;67689;18679;18679;72380;SYNDICAT MIXTE DU PAYS DE LA HAUTE SARTHE;2019-02-08;00044156;0;;;;;;;;;;;72380;72;2019_01951;48.2401913817, 0.162292381772;;
l'aménagement et la valorisation paysagère des abords de la Maison communale - Commune de Saint Martin des Tilleuls;Vendée;SAINT-MARTIN-DES-TILLEULS;19I03829;17I09578;300714;45563;45563;85247;COMMUNE DE SAINT MARTIN DES TILLEULS;2019-04-05;85000348;0;Pays de Mortagne;18;126807.36564022;85;228566018.366052;Novembre 2017;sig.territoires.pdl_ctr.18;Pays de Mortagne;Pays de Mortagne;CTR;85247;85;2019_04153;46.9711539531, -1.06282621567;11/2017;95
l'élaboration de la stratégie d'attractivité de Mayenne Communauté et son territoire-53 - CTR 2020 de MAYENNE COMMUNAUTE -;Mayenne;MAYENNE;19I03613;18I00723;50000;26565;26565;53147;MAYENNE COMMUNAUTE;2019-04-05;00046010;0;Mayenne Communauté;3;193726.21308398;53;626754357.991273;Février 2018;sig.territoires.pdl_ctr.3;Mayenne Communauté;Mayenne Communauté;CTR;53147;53;2019_04555_00;48.3074609449, -0.614799950799;02/2018;79
La requalification des espaces publics du centre-ville de Pouancé - Commune d'Ombrée d'Anjou;Maine-et-Loire;OMBREE D'ANJOU;19I03594;18I05642;857951;229228;229228;49248;COMMUNE DE OMBREE D ANJOU;2019-04-05;00045635;0;Anjou Bleu Communauté;57;184223.75006092;49;654967768.886332;Mai 2018;sig.territoires.pdl_ctr.57;Anjou Bleu Communauté;Anjou Bleu Communauté;CTR;49248;49;2019_04128;47.7629344972, -1.19300189799;05/2018;118
Les travaux de réaménagement et d'extension de la mairie, de la salle commune de loisirs et de la bibliothèque - Commune de Sarrigné;Maine-et-Loire;SARRIGNE;19I03584;18I06680;501133;175000;175000;49326;SARRIGNE;2019-04-05;00044595;0;Angers Loire Métropole;10;192445.630446;49;676496020.936854;Juillet 2018;sig.territoires.pdl_ctr.10;Angers Loire Métropole;Angers Loire Métropole;CDM;49326;49;2019_04102;47.5024740958, -0.385798724443;07/2018;116
L'extension de l'école Joachim du Bellay et la construction d'une salle d'évolution;Loire-Atlantique;THOUARE-SUR-LOIRE;19I03585;18I06834;5650981;69344;69344;44204;COMMUNE DE THOUARE SUR LOIRE;2019-04-05;00045487;0;Nantes Métropole;6;181264.28832122;44;534212730.160229;Juillet 2018;sig.territoires.pdl_ctr.6;Nantes Métropole;Nantes Métropole;CDM;44204;44;2019_04222;47.2763256866, -1.43162198248;07/2018;132
la rénovation de l'éclairage public -72 - COMUNE DE LAVARDIN - CTR 2020 DU PAYSDE LA HAUTE SARTHE;Sarthe;LAVARDIN;19I03618;18I09952;17022;10000;10000;72157;COMMUNE DE LAVARDIN;2019-04-05;00045137;10000;;;;;;;;;;;72157;72;2019_04560;48.0837900789, 0.0628095880232;;
la Rénovation et extension de l'ancienne école maternelle pour  transformation en médiathèque -72 - COMMUNE DE LA BAZOGE - CTR 2020 DU PAYS DU MANS;Sarthe;LA BAZOGE;19I03620;19I03413;415000;41500;41500;72024;COMMUNE DE LA BAZOGE;2019-04-05;00046293;41500;Pays du Mans;55;211770.96933046;72;515795064.742766;;sig.territoires.pdl_ctr.55;Pays du Mans;Pays du Mans;CTR;72024;72;2019_04563;48.1027362098, 0.14422733228;;89
Les aménagements d'arrêts de car;Loire-Atlantique;PETIT-MARS;19I06330;17I04913;39211;27448;27448;44122;COMMUNE DE PETIT MARS;2019-06-06;00047207;0;Erdre et Gesvres;13;166735.21638325;44;509712555.822317;Mai 2017;sig.territoires.pdl_ctr.13;Communauté de communes d'Erdre et Gesvres;Erdre et Gesvres;CTR;44122;44;2019_06605;47.4051549703, -1.45655214384;05/2017;113
Les travaux d'éclairage du stade des Alleuds;Maine-et-Loire;BRISSAC LOIRE AUBANCE;20I09512;17I08581;117541;62165;62165;49050;SI ENERGIES DE MAINE ET LOIRE;2019-06-06;00047474;64648;Loire Layon Aubance;29;220718.82914478;49;613435516.735679;Septembre 2017;sig.territoires.pdl_ctr.29;Loire Layon Aubance;Loire Layon Aubance;CTR;49050;49;2019_06280_02;47.3416678749, -0.441366325976;09/2017;121
La construction d'un pôle multifonctions communal et intercommunal;Vendée;LES HERBIERS;19I06184;18I06679;2253775;190000;190000;85109;COMMUNE DES HERBIERS;2019-06-06;85000385;0;Pays des Herbiers;17;117942.86919888;85;250332696.371675;Juillet 2018;sig.territoires.pdl_ctr.17;Pays des Herbiers;Pays des Herbiers;CTR;85109;85;2019_06596;46.8666125813, -1.02216086186;07/2018;104
L'acquisition de véhicules électriques par la Commune de Saint-Mars-du-Désert;Loire-Atlantique;SAINT-MARS-DU-DESERT;19I07525;17I04913;17903;14322;14322;44179;COMMUNE DE SAINT MARS DU DESERT;2019-07-12;00048833;14322;Erdre et Gesvres;13;166735.21638325;44;509712555.822317;Mai 2017;sig.territoires.pdl_ctr.13;Communauté de communes d'Erdre et Gesvres;Erdre et Gesvres;CTR;44179;44;2019_08515_01;47.357199355, -1.44530337399;05/2017;113
L'acquisition d'un véhicule électrique à Sucé-sur-Erdre;Loire-Atlantique;SUCE-SUR-ERDRE;19I07526;17I04913;13165;10532;10532;44201;COMMUNE DE SUCE SUR ERDRE;2019-07-12;00048561;10532;Erdre et Gesvres;13;166735.21638325;44;509712555.822317;Mai 2017;sig.territoires.pdl_ctr.13;Communauté de communes d'Erdre et Gesvres;Erdre et Gesvres;CTR;44201;44;2019_08518_00;47.3536547402, -1.51945689724;05/2017;113
L'acquisition d'un véhicule utilitaire électrique par la Commune de Petit-Mars;Loire-Atlantique;PETIT-MARS;19I07532;17I04913;15416;12333;12333;44122;COMMUNE DE PETIT MARS;2019-07-12;00048815;12333;Erdre et Gesvres;13;166735.21638325;44;509712555.822317;Mai 2017;sig.territoires.pdl_ctr.13;Communauté de communes d'Erdre et Gesvres;Erdre et Gesvres;CTR;44122;44;2019_08529_00;47.4051549703, -1.45655214384;05/2017;113
La réfection de la toiture et de la charpente de la salle François Cevert;Maine-et-Loire;MAZE-MILON;19I07474;17I09576;378490;70031;70031;49194;COMMUNE DE MAZE MILON;2019-07-12;00047479;0;Baugeois Vallée;27;204904.66931563;49;738271608.292046;Novembre 2017;sig.territoires.pdl_ctr.27;Baugeois Vallée;Baugeois Vallée;CTR;49194;49;2019_07832_01;47.4603950447, -0.284298744303;11/2017;120
Le changement du mode de chauffage de l'ensemble scolaire;Mayenne;CHARCHIGNE;19I07509;18I00723;77896;27430;27430;53061;MAIRIE DE CHARCHIGNE;2019-07-12;00048430;29527;Mayenne Communauté;3;193726.21308398;53;626754357.991273;Février 2018;sig.territoires.pdl_ctr.3;Mayenne Communauté;Mayenne Communauté;CTR;53061;53;2019_08610_00;48.4142784855, -0.407005787666;02/2018;79
L'acquisition de bâtiments économiques à Mamers;Sarthe;MAMERS;19I07512;18I06858;406600;267210;267210;72180;COMMUNAUTE DE COMMUNES MAINE SAOSNOIS;2019-07-12;00048363;0;CC Maine Saosnois;31;160838.92939288;72;582200983.266689;Juillet 2018;sig.territoires.pdl_ctr.31;CC Maine Saosnois;CC Maine Saosnois;CTR;72180;72;2019_08732_00;48.3545313197, 0.370783494811;07/2018;86
L'aménagement des espaces publics du centre-ville de Louverné;Mayenne;LOUVERNE;19I07503;19I00770;3600754;80000;80000;53140;COMMUNE DE LOUVERNE;2019-07-12;00047886;0;Laval Agglomération;53;160270.39281569;53;438471285.378152;Février 2019;sig.territoires.pdl_ctr.53;Laval Agglomération;Laval Agglomération;CTR;53140;53;2019_08598;48.1255057038, -0.711543672275;02/2019;84
La rénovation du réseau communal d'éclairage public;Mayenne;PARNE-SUR-ROC;19I07505;19I00770;83735;37141;37141;53175;COMMUNE DE PARNE SUR ROC;2019-07-12;00048422;37141;Laval Agglomération;53;160270.39281569;53;438471285.378152;Février 2019;sig.territoires.pdl_ctr.53;Laval Agglomération;Laval Agglomération;CTR;53175;53;2019_08602_00;48.0096895482, -0.66530040528;02/2019;84
L'extension de la maison de quartier de Grenoux;Mayenne;LAVAL;19I07511;19I00770;58028;22157;22157;53130;COMMUNE DE LAVAL;2019-07-12;00048608;0;Laval Agglomération;53;160270.39281569;53;438471285.378152;Février 2019;sig.territoires.pdl_ctr.53;Laval Agglomération;Laval Agglomération;CTR;53130;53;2019_08645;48.0608565468, -0.766005687142;02/2019;84
La construction d'un atelier municipal;Sarthe;LA MILESSE;19I07792;19I04948;816619;156000;156000;72198;COMMUNE DE LA MILESSE;2019-07-12;00048517;0;CU Le Mans Métropole;20;141570.43537983;72;268048561.841433;Juin 2019;sig.territoires.pdl_ctr.20;CU Le Mans Métropole;CU Le Mans Métropole;CDM;72198;72;2019_08731_00;48.0667169973, 0.135919277684;06/2019;91
La construction d'une maison petite enfance à Noyant;Maine-et-Loire;NOYANT-VILLAGES;19I08991;17I09576;938192;187638;187638;49228;COMMUNE DE NOYANT VILLAGES;2019-09-27;00049488;0;Baugeois Vallée;27;204904.66931563;49;738271608.292046;Novembre 2017;sig.territoires.pdl_ctr.27;Baugeois Vallée;Baugeois Vallée;CTR;49228;49;2019_10952;47.5070164198, 0.109706678066;11/2017;120
La rénovation de la toiture terrasse de l'école de la Vallée;Maine-et-Loire;BEAUFORT-EN-ANJOU;19I08995;17I09576;199417;69795;69795;49021;COMMUNE DE BEAUFORT EN ANJOU;2019-09-27;00049507;69795;Baugeois Vallée;27;204904.66931563;49;738271608.292046;Novembre 2017;sig.territoires.pdl_ctr.27;Baugeois Vallée;Baugeois Vallée;CTR;49021;49;2019_10957;47.4363863926, -0.206986791966;11/2017;120
L'aménagement d'un multisports à Fontaine Guérin;;;19I09010;17I09576;65114;12471;12471;;COMMUNE DES BOIS D ANJOU;2019-09-27;00049513;;Baugeois Vallée;27;204904.66931563;49;738271608.292046;Novembre 2017;sig.territoires.pdl_ctr.27;Baugeois Vallée;Baugeois Vallée;CTR;;;2019_12079_00;;11/2017;120
Le réaménagement et la mise en accessibilité des locaux de l'Hôtel intercommunal;;;19I08931;17I09608;313000;181142;181142;;COMMUNAUTE DE COMMUNES DU PAYS DE LA CHATAIGNERAIE;2019-09-27;85000461;;Pays de la Châtaigneraie;45;135086.67917683;85;317950472.872367;Novembre 2017;sig.territoires.pdl_ctr.45;Pays de la Châtaigneraie;Pays de la Châtaigneraie;CTR;;;2019_10390_00;;11/2017;97
La rénovation de l'ancien prieuré;Sarthe;AUVERS-LE-HAMON;19I08927;17I09881;1084356;45000;45000;72016;MAIRIE D AUVERS LE HAMON;2019-09-27;00049383;45000;;;;;;;;;;;72016;72;2019_10380;47.903917058, -0.345078374369;;
L'aménagement d'un point d'information touristique intercommunal;Vendée;LE PERRIER;19I08938;18I02799;261000;40000;40000;85172;COMMUNAUTE DE COMMUNES OCEAN MARAIS DE MONTS;2019-09-27;85000457;34000;Océan Marais de Monts;43;97448.69013118;85;184686424.300016;Avril 2018;sig.territoires.pdl_ctr.43;Océan Marais de Monts;Océan Marais de Monts;CTR;85172;85;2019_11051_00;46.8196487652, -1.97926629071;04/2018;101
La création d'une Maison de Services au Public (MSAP);Maine-et-Loire;ALLONNES;19I09004;18I05643;250493;40708;40708;49002;COMMUNE D ALLONNES;2019-09-27;00049417;40708;Saumur Val de Loire;28;222936.82254543;49;1244790494.62575;Mai 2018;sig.territoires.pdl_ctr.28;Saumur Val de Loire;Saumur Val de Loire;CTR;49002;49;2019_10976;47.3034746947, 0.0111127082363;05/2018;123
La rénovation de la couverture du centre sportif de haut niveau Athlétis;Maine-et-Loire;LES PONTS-DE-CE;19I08936;18I06680;781357;388000;388000;49246;COMMUNE DES PONTS DE CE;2019-09-27;00049052;0;Angers Loire Métropole;10;192445.630446;49;676496020.936854;Juillet 2018;sig.territoires.pdl_ctr.10;Angers Loire Métropole;Angers Loire Métropole;CDM;49246;49;2019_10982;47.4272536106, -0.512677371617;07/2018;116
La rénovation de la salle de sports Jules Léauté;Loire-Atlantique;LES SORINIERES;19I08945;18I06834;114000;60014;60014;44198;COMMUNE DES SORINIERES;2019-09-27;00048379;0;Nantes Métropole;6;181264.28832122;44;534212730.160229;Juillet 2018;sig.territoires.pdl_ctr.6;Nantes Métropole;Nantes Métropole;CDM;44198;44;2019_10106;47.1414647152, -1.5202224711;07/2018;132
L'aménagement des allées du Jardin Potager;Sarthe;BONNETABLE;19I08910;18I06858;50000;15000;15000;72039;COMMUNAUTE DE COMMUNES MAINE SAOSNOIS;2019-09-27;00049395;0;CC Maine Saosnois;31;160838.92939288;72;582200983.266689;Juillet 2018;sig.territoires.pdl_ctr.31;CC Maine Saosnois;CC Maine Saosnois;CTR;72039;72;2019_10342;48.18474164, 0.452449305895;07/2018;86
L'extension des bureaux de l'antenne de la Communauté de communes à Mamers;Sarthe;MAMERS;19I08912;18I06858;102500;82000;82000;72180;COMMUNAUTE DE COMMUNES MAINE SAOSNOIS;2019-09-27;00049396;0;CC Maine Saosnois;31;160838.92939288;72;582200983.266689;Juillet 2018;sig.territoires.pdl_ctr.31;CC Maine Saosnois;CC Maine Saosnois;CTR;72180;72;2019_10344;48.3545313197, 0.370783494811;07/2018;86
La création d'un cheminement piéton;;;19I08913;18I09952;113131;33969;33969;;COMMUNE DE CURES;2019-09-27;00048728;;;;;;;;;;;;;;2019_10346;;;
Les travaux d'extension de la salle polyvalente;Loire-Atlantique;MOISDON LA RIVIERE;19I10725;17I04914;840530;40000;40000;44099;COMMUNE DE MOISDON LA RIVIERE;2019-11-15;00050371;0;Châteaubriant-Derval;19;192160.53583929;44;884476807.089572;Mai 2017;sig.territoires.pdl_ctr.19;Communauté de communes Châteaubriant Derval;Châteaubriant-Derval;CTR;44099;44;2019_15531;47.6222503824, -1.37465777304;05/2017;114
L'agrandissement et la rénovation de la bibliothèque municipale de St Melaine;Maine-et-Loire;SAINT MELAINE SUR AUBANCE;19I10536;17I08581;431978;49270;49270;49308;COMMUNE DE SAINT MELAINE SUR AUBANCE;2019-11-15;00051784;49270;Loire Layon Aubance;29;220718.82914478;49;613435516.735679;Septembre 2017;sig.territoires.pdl_ctr.29;Loire Layon Aubance;Loire Layon Aubance;CTR;49308;49;2019_15602;47.3818008704, -0.50194349373;09/2017;121
L'aménagement d'un centre culturel et commercial;Vendée;TIFFAUGES;19I10525;17I09578;600000;52000;52000;85293;COMMUNE DE TIFFAUGES;2019-11-15;85000478;52000;Pays de Mortagne;18;126807.36564022;85;228566018.366052;Novembre 2017;sig.territoires.pdl_ctr.18;Pays de Mortagne;Pays de Mortagne;CTR;85293;85;2019_15621;47.0020573556, -1.09858009203;11/2017;95
La rénovation de l'éclairage public;Sarthe;CERANS FOULLETOURTE;19I10572;17I09882;181106;25000;25000;72051;MAIRIE DE CERANS FOULLETOURTE;2019-11-15;00052107;25000;;;;;;;;;;;72051;72;2019_15861;47.8339032596, 0.0696644872215;;
La réalisation d'un Plan Climat Air Energie Territorial (PCAET);;;19I10524;18I02799;45000;14400;14400;;COMMUNAUTE DE COMMUNES OCEAN MARAIS DE MONTS;2019-11-15;85000482;;Océan Marais de Monts;43;97448.69013118;85;184686424.300016;Avril 2018;sig.territoires.pdl_ctr.43;Océan Marais de Monts;Océan Marais de Monts;CTR;;;2019_15618_00;;04/2018;101
La construction d'un local pour la protection civile;Vendée;SAINT-ETIENNE-DU-BOIS;19I10529;18I02800;333833;54500;54500;85210;COMMUNE DE SAINT ETIENNE DU BOIS;2019-11-15;85000539;0;Vie et Boulogne;37;148814.1881539;85;492534760.430236;Avril 2018;sig.territoires.pdl_ctr.37;Vie et Boulogne;Vie et Boulogne;CTR;85210;85;2019_15627;46.8418481774, -1.59617737479;04/2018;102
L'aménagement de la zone d'activités du Tesseau à Candé;Maine-et-Loire;CANDE;19I10531;18I05642;200268;160000;160000;49054;CC ANJOU BLEU COMMUNAUTE;2019-11-15;00051130;0;Anjou Bleu Communauté;57;184223.75006092;49;654967768.886332;Mai 2018;sig.territoires.pdl_ctr.57;Anjou Bleu Communauté;Anjou Bleu Communauté;CTR;49054;49;2019_15591;47.5585230813, -1.03503351449;05/2018;118
La construction d'une salle de raquettes;Loire-Atlantique;LA CHEVROLIERE;19I10739;18I06807;1600000;167608;167608;44041;MAIRIE DE LA CHEVROLIERE;2019-11-15;00051311;0;Grand Lieu;7;107565.11514829;44;300535663.006993;Juillet 2018;sig.territoires.pdl_ctr.7;Grand Lieu;Grand Lieu;CTR;44041;44;2019_15547_00;47.0891104813, -1.596195347;07/2018;131
La réhabilitation de la piste cyclable en crête de la digue ouest;Vendée;LA FAUTE-SUR-MER (85307);19I10841;18I07459;54995;43996;43996;85128;COMMUNAUTE DE COMMUNES SUD VENDEE LITTORAL;2019-11-15;85000530;0;Sud Vendée Littoral;48;297801.82823589;85;950717267.472634;Juillet 2018;sig.territoires.pdl_ctr.48;CC Sud Vendée Littoral;Sud Vendée Littoral;CTR;85128;85;2019_15810;46.4510564854, -1.16449285012;07/2018;106
L'aménagement de sanitaires à l'école de Thévalles;Mayenne;LAVAL;19I10548;19I00770;28282;11795;11795;53130;COMMUNE DE LAVAL;2019-11-15;00050420;0;Laval Agglomération;53;160270.39281569;53;438471285.378152;Février 2019;sig.territoires.pdl_ctr.53;Laval Agglomération;Laval Agglomération;CTR;53130;53;2019_15294_00;48.0608565468, -0.766005687142;02/2019;84
La rénovation de l'éclairage public;Mayenne;L'HUISSERIE;19I10550;19I00770;30550;21385;21385;53119;COMMUNE DE L HUISSERIE;2019-11-15;00051742;21385;Laval Agglomération;53;160270.39281569;53;438471285.378152;Février 2019;sig.territoires.pdl_ctr.53;Laval Agglomération;Laval Agglomération;CTR;53119;53;2019_15296_00;48.0167338344, -0.766387903128;02/2019;84
L'extension des locaux périscolaires La Marelle;;;19I10552;19I00770;1311763;91036;91036;;COMMUNE DE CHANGE;2019-11-15;00049600;;Laval Agglomération;53;160270.39281569;53;438471285.378152;Février 2019;sig.territoires.pdl_ctr.53;Laval Agglomération;Laval Agglomération;CTR;;;2019_15301_00;;02/2019;84
L'aménagement du centre bourg;Sarthe;MONTAILLE;19I10569;19I00771;75130;13991;13991;72204;COMMUNE DE MONTAILLE;2019-11-15;00049946;0;CC du Pays de l'Huisne Sarthoise;35;265241.4780676;72;1290421266.50866;Février 2019;sig.territoires.pdl_ctr.35;Pays du Perche Sarthois;Pays du Perche Sarthois;CTR;72204;72;2019_15796_00;47.954960355, 0.685903280988;02/2019;88
L'aménagement d'un espace sportif et de loisirs;Sarthe;TRANGE;19I10542;19I04948;319517;63000;63000;72360;COMMUNE DE TRANGE;2019-11-15;00051817;0;CU Le Mans Métropole;20;141570.43537983;72;268048561.841433;Juin 2019;sig.territoires.pdl_ctr.20;CU Le Mans Métropole;CU Le Mans Métropole;CDM;72360;72;2019_15775;48.0291229026, 0.115747157927;06/2019;91
La modification des éclairages sur les salles de sport Jean HERVY et Noel GERARD;Loire-Atlantique;BLAIN;20I02231;17I04912;43340;34672;34672;44015;COMMUNE DE BLAIN;2020-02-14;00052438;0;Région de Blain;12;104466.22577119;44;214288660.02636;Mai 2017;sig.territoires.pdl_ctr.12;Communauté de communes de la Région de Blain;Région de Blain;CTR;44015;44;2020_00914;47.4628210409, -1.76789479614;05/2017;112
L'aménagement des places de l'Eglise et des Lauriers;;;20I02251;17I08584;305000;80522;80522;;COMMUNE DE LA GUERINIERE;2020-02-14;85000581;;Ile de Noirmoutier;42;58228.61267806;85;49215409.8708768;Septembre 2017;sig.territoires.pdl_ctr.42;Ile de Noirmoutier;Ile de Noirmoutier;CTR;;;2020_01756_00;;09/2017;93
La construction d'un centre aquatique communautaire à Herbignac;Loire-Atlantique;HERBIGNAC;20I02247;17I09003;6200000;1440000;1005120;44072;COMMUNAUTE D AGGLOMERATION DE LA PRESQU ILE DE GUERANDE ATLANTIQUE;2020-02-14;00045938;;Cap Atlantique;41;145725.47329518;44;395838108.965296;Septembre 2017;sig.territoires.pdl_ctr.41;Cap Atlantique;Cap Atlantique;CTR;44072;44;2020_00951;47.4472411995, -2.31338629512;09/2017;125
L'installation de panneaux photovoltaïques sur le local technique;Maine-et-Loire;LA MENITRE;20I02286;17I09576;187313;65560;65560;49201;COMMUNE DE LA MENITRE;2020-02-14;00053824;65560;Baugeois Vallée;27;204904.66931563;49;738271608.292046;Novembre 2017;sig.territoires.pdl_ctr.27;Baugeois Vallée;Baugeois Vallée;CTR;49201;49;2020_02394;47.4070050575, -0.256671293231;11/2017;120
L'aménagement de la place de la liberté;Loire-Atlantique;MALVILLE;20I02236;17I09760;725000;44767;44767;44089;COMMUNE DE MALVILLE;2020-02-14;00053803;;Estuaire et Sillon;61;112337.65867316;44;313121598.740399;Novembre 2017;sig.territoires.pdl_ctr.61;Communauté de communes d'Estuaire et Sillon;Estuaire et Sillon;CTR;44089;44;2020_00923_00;47.3431404212, -1.85411536756;11/2017;129
La création d'un guichet unique à destination des porteurs de projets d'entreprises;;;20I02239;17I09762;1624000;350000;350000;;COMMUNAUTE DE COMMUNES DU PAYS D ANCENIS;2020-02-14;00049704;;Pays d'Ancenis;56;189953.08705022;44;865594442.852705;Novembre 2017;sig.territoires.pdl_ctr.56;Pays d'Ancenis;Pays d'Ancenis;CTR;;;2020_00926_00;;11/2017;126
La construction d'une Maison de Santé Pluridisciplinaire;Mayenne;ERNEE;20I02288;18I04046;3302223;549000;549000;53096;COMMUNAUTE DE COMMUNES DE L ERNEE;2020-02-14;00052682;0;L'Ernée;8;134446.67084716;53;485109090.730026;Avril 2018;sig.territoires.pdl_ctr.8;L'Ernée;L'Ernée;CTR;53096;53;2020_01287_00;48.3039992806, -0.93628278715;04/2018;82
La création d'un atelier relais dans la zone Actipôle les Fours;Vendée;SAINT MARTIN DES NOYERS;20I02252;18I06678;260000;86000;86000;85246;COMMUNAUTE DE COMMUNES DU PAYS DE CHANTONNAY;2020-02-14;85000567;0;Pays de Chantonnay;44;130417.27851046;85;319474713.690402;Avril 2018;sig.territoires.pdl_ctr.44;Pays de Chantonnay;Pays de Chantonnay;CTR;85246;85;2020_01757;46.7239461187, -1.20379080965;04/2018;103
L'aménagement de la zone d'activités 'Beaulieu';Vendée;MOUCHAMPS;20I02255;18I06679;313878;66255;63763;85153;COMMUNAUTE DE COMMUNES DU PAYS DES HERBIERS;2020-02-14;85000594;0;Pays des Herbiers;17;117942.86919888;85;250332696.371675;Juillet 2018;sig.territoires.pdl_ctr.17;Pays des Herbiers;Pays des Herbiers;CTR;85153;85;2020_01760_00;46.7870550926, -1.05454102867;07/2018;104
L'élaboration, l'animation et la mise en oeuvre du PCAET;Loire-Atlantique;VALLET;20I02245;19I00785;65000;51576;51576;44212;COMMUNAUTE DE COMMUNES SEVRE ET LOIRE;2020-02-14;00051988;51576;Sèvre et Loire;24;96321.1295473;44;277438576.414423;Février 2019;sig.territoires.pdl_ctr.24;"Communauté de communes de Sèvre et Loire
 Communauté de communes de Sèvre et Loire";Sèvre et Loire;CTR;44212;44;2020_00948;47.1715153308, -1.26146566077;02/2019;134
L'achat d'un véhicule de service électrique;Sarthe;SAINT PIERRE DE CHEVILLE;20I02310;19I03414;13320;10000;10000;72311;COMMUNE DE SAINT PIERRE DE CHEVILLE;2020-02-14;00054366;10000;CC du Pays Fléchois;49;306001.78232882;72;1427230046.65579;;sig.territoires.pdl_ctr.49;PETR Pays Vallée du Loir;Pays Vallée du Loir;CTR;72311;72;2020_01372;47.6357786169, 0.434044707817;;90
L'achat d'un véhicule de service électrique;Sarthe;MONTVAL SUR LOIR;20I02311;19I03414;13500;10000;10000;72071;COMMUNE DE MONTVAL SUR LOIR;2020-02-14;00054365;10000;CC du Pays Fléchois;49;306001.78232882;72;1427230046.65579;;sig.territoires.pdl_ctr.49;PETR Pays Vallée du Loir;Pays Vallée du Loir;CTR;72071;72;2020_01374;47.702207042, 0.430642762781;;90
La rénovation de la mairie et la construction d'un bâtiment pour la salle de conseil municipal et une salle d'activités;Sarthe;PRUILLE LE CHETIF;20I02561;19I04948;793223;158645;158645;72247;COMMUNE DE PRUILLE LE CHETIF;2020-02-14;00053973;158645;CU Le Mans Métropole;20;141570.43537983;72;268048561.841433;Juin 2019;sig.territoires.pdl_ctr.20;CU Le Mans Métropole;CU Le Mans Métropole;CDM;72247;72;2020_01845;47.9926394002, 0.10552280267;06/2019;91
La création d'une bibliothèque, d'un accueil périscolaire et d'un restaurant scolaire à la Boissière sur Evre;Maine-et-Loire;MONTREVAULT SUR EVRE;20I04484;17I08582;492550;336400;336400;49218;MONTREVAULT SUR EVRE;2020-04-30;00055794;0;Mauges Communauté;5;274965.40485114;49;1318044533.54153;Septembre 2017;sig.territoires.pdl_ctr.5;Mauges Communauté;Mauges Communauté;CTR;49218;49;2020_04354;47.255395404, -1.05160971025;09/2017;122
La poursuite de la requalification du parc d'activités du Poull'Go - Le Pouliguen;Loire-Atlantique;LE POULIGUEN;20I04512;17I09003;0;0;;44135;COMMUNAUTE D AGGLOMERATION DE LA PRESQU ILE DE GUERANDE ATLANTIQUE;2020-04-30;00056265;0;Cap Atlantique;41;145725.47329518;44;395838108.965296;Septembre 2017;sig.territoires.pdl_ctr.41;Cap Atlantique;Cap Atlantique;CTR;44135;44;2020_04504_00;47.2716208982, -2.43210265977;09/2017;125
Les travaux d'amélioration énergétique de la Maison de Pays;;;20I04498;17I10745;256945;188763;188763;;COMMUNAUTE DE COMMUNES PAYS DE FONTENAY VENDEE;2020-04-30;85000642;;Pays de Fontenay Vendée;39;127878.18274983;85;464973283.791542;Novembre 2017;sig.territoires.pdl_ctr.39;Pays de Fontenay Vendée;Pays de Fontenay Vendée;CTR;;;2020_04772_00;;11/2017;98
L'aménagement du Vieux Bourg;Vendée;BAZOGES EN PAILLERS;20I04636;18I01087;392800;279529;279529;85013;COMMUNE DE BAZOGES EN PAILLERS;2020-04-30;85000634;0;Pays de Saint-Fulgent – Les Essarts;36;123566.51305289;85;326545965.188948;Février 2018;sig.territoires.pdl_ctr.36;Pays de Saint-Fulgent – Les Essarts;Pays de Saint-Fulgent – Les Essarts;CTR;85013;85;2020_04387;46.9213757643, -1.14415666313;02/2018;99
L'aménagement de la rue Saint Médard;Loire-Atlantique;SAINT MARS DE COUTAIS;20I04514;18I05377;595295;90000;90000;44178;COMMUNE DE SAINT MARS DE COUTAIS;2020-04-30;00053407;0;Sud Retz Atlantique;25;169463.38998873;44;425092538.170903;Mai 2018;sig.territoires.pdl_ctr.25;Sud Retz Atlantique;Sud Retz Atlantique;CTR;44178;44;2020_04513;47.0798520838, -1.75208948345;05/2018;75
La création d'une liaison douce entre Vivy et Neuillé;Maine-et-Loire;NEUILLE;20I04486;18I05643;219251;54812;54812;49224;COMMUNE DE NEUILLE;2020-04-30;00055279;54812;Saumur Val de Loire;28;222936.82254543;49;1244790494.62575;Mai 2018;sig.territoires.pdl_ctr.28;Saumur Val de Loire;Saumur Val de Loire;CTR;49224;49;2020_04356;47.3363897029, -0.0184526935141;05/2018;123
Les travaux d'aménagement Porte de Gesvres;;;20I04505;18I06834;12125000;4000000;3200000;;NANTES METROPOLE - SIEGE;2020-04-30;00056276;;Nantes Métropole;6;181264.28832122;44;534212730.160229;Juillet 2018;sig.territoires.pdl_ctr.6;Nantes Métropole;Nantes Métropole;CDM;;;2020_04710;;07/2018;132
L'achat et l'aménagement d'un bâtiment à vocation industrielle à Durtal;Maine-et-Loire;DURTAL;20I05929;17I06491;811912;256000;256000;49127;ANJOU LOIR ET SARTHE;2020-05-29;00057568;0;Anjou Loir et Sarthe;26;172077.9474839;49;457111657.097573;Juillet 2017;sig.territoires.pdl_ctr.26;Communauté de Communes Anjou Loir et Sarthe;Anjou Loir et Sarthe;CTR;49127;49;2020_06892;47.6780515421, -0.254608332885;07/2017;119
La construction d'un préau chaumière à Gée;;;20I05930;17I09576;236519;82346;82346;;COMMUNE DE BEAUFORT EN ANJOU;2020-05-29;00057343;;Baugeois Vallée;27;204904.66931563;49;738271608.292046;Novembre 2017;sig.territoires.pdl_ctr.27;Baugeois Vallée;Baugeois Vallée;CTR;;;2020_06893_00;;11/2017;120
L'aménagement du carrefour de la Riottière;Maine-et-Loire;INGRANDES LE FRESNE SUR LOIRE;20I05914;17I09762;644716;200000;200000;49160;COMMUNE D INGRANDES LE FRESNE SUR LOIRE;2020-05-29;00057838;0;Pays d'Ancenis;56;189953.08705022;44;865594442.852705;Novembre 2017;sig.territoires.pdl_ctr.56;Pays d'Ancenis;Pays d'Ancenis;CTR;49160;49;2020_06826;47.4154942142, -0.920314202965;11/2017;126
La rénovation et l'extension de l'espace culturel du Tilleul;;;20I05941;18I06680;235300;92400;;;MAIRIE DE SOULAINES SUR AUBANCE;2020-05-29;00057608;;Angers Loire Métropole;10;192445.630446;49;676496020.936854;Juillet 2018;sig.territoires.pdl_ctr.10;Angers Loire Métropole;Angers Loire Métropole;CDM;;;2020_06884_00;;07/2018;116
L'acquisition de véhicules à motorisation propre;;;20I05949;19I00773;37500;29076;29076;;COMMUNAUTE DE COMMUNES VENDEE SEVRE AUTISE;2020-05-29;85000663;;Vendée Sèvre Autise;22;164911.17006129;85;300390165.394669;Février 2019;sig.territoires.pdl_ctr.22;Communauté de communes de Vendée Sèvre Autise;Vendée Sèvre Autise;CTR;;;2020_06682_00;;02/2019;109
L'amélioration de l'attractivité en centre-bourg;Vendée;SAINTE-GEMME-LA-PLAINE;20I07232;18I07459;310333;77033;77033;85216;COMMUNE DE SAINTE GEMME LA PLAINE;2020-07-10;85000682;0;Sud Vendée Littoral;48;297801.82823589;85;950717267.472634;Juillet 2018;sig.territoires.pdl_ctr.48;CC Sud Vendée Littoral;Sud Vendée Littoral;CTR;85216;85;2020_08313;46.4732196212, -1.11103084694;07/2018;106
Les travaux de sécurisation de la charpente de la salle de l'Europe;Maine-et-Loire;SAINT GEORGES SUR LOIRE;20I09138;17I08581;283864;127091;127091;49283;CC LOIRE LAYON AUBANCE;2020-09-25;00068978;0;Loire Layon Aubance;29;220718.82914478;49;613435516.735679;Septembre 2017;sig.territoires.pdl_ctr.29;Loire Layon Aubance;Loire Layon Aubance;CTR;49283;49;2020_09911;47.4024678993, -0.756078071904;09/2017;121
La reconstruction de la salle des fêtes de Cuon;Maine-et-Loire;BAUGE EN ANJOU;20I09136;17I09576;639456;223810;223810;49018;COMMUNE DE BAUGE EN ANJOU;2020-09-25;00070243;0;Baugeois Vallée;27;204904.66931563;49;738271608.292046;Novembre 2017;sig.territoires.pdl_ctr.27;Baugeois Vallée;Baugeois Vallée;CTR;49018;49;2020_09908;47.5466894738, -0.109021794815;11/2017;120
La construction et la réhabilitation de la mairie;Loire-Atlantique;VAIR SUR LOIRE;20I09337;17I09762;1186100;240000;240000;44163;COMMUNE DE VAIR SUR LOIRE;2020-09-25;00068875;32000;Pays d'Ancenis;56;189953.08705022;44;865594442.852705;Novembre 2017;sig.territoires.pdl_ctr.56;Pays d'Ancenis;Pays d'Ancenis;CTR;44163;44;2020_10196;47.4063801215, -1.11538134874;11/2017;126
La construction d'un atelier communal;Maine-et-Loire;ECUILLE;20I09139;18I06680;427693;107613;107613;49130;COMMUNE D ECUILLE;2020-09-25;00063500;0;Angers Loire Métropole;10;192445.630446;49;676496020.936854;Juillet 2018;sig.territoires.pdl_ctr.10;Angers Loire Métropole;Angers Loire Métropole;CDM;49130;49;2020_09914_00;47.6151527391, -0.560819094743;07/2018;116
L'extension et la réhabilitation de l'école de l'Hermitage;;;20I09142;18I06834;2090468;59904;59904;;COMMUNE DU PELLERIN;2020-09-25;00056296;;Nantes Métropole;6;181264.28832122;44;534212730.160229;Juillet 2018;sig.territoires.pdl_ctr.6;Nantes Métropole;Nantes Métropole;CDM;;;2020_10202_00;;07/2018;132
L'acquisition de 2 véhicules électriques pour les services communautaires;Sarthe;MAROLLES-LES-BRAULTS;20I09158;18I06858;24550;19640;19640;72189;COMMUNAUTE DE COMMUNES MAINE SAOSNOIS;2020-09-25;00070985;19640;CC Maine Saosnois;31;160838.92939288;72;582200983.266689;Juillet 2018;sig.territoires.pdl_ctr.31;CC Maine Saosnois;CC Maine Saosnois;CTR;72189;72;2020_09857;48.2539587745, 0.320191786224;07/2018;86
L'équipement pour le service petite enfance de Mamers et le centre social de Marolles-les-Braults;Sarthe;MAROLLES-LES-BRAULTS;20I09160;18I06858;55586;22234;22234;72189;COMMUNAUTE DE COMMUNES MAINE SAOSNOIS;2020-09-25;00068981;0;CC Maine Saosnois;31;160838.92939288;72;582200983.266689;Juillet 2018;sig.territoires.pdl_ctr.31;CC Maine Saosnois;CC Maine Saosnois;CTR;72189;72;2020_09872;48.2539587745, 0.320191786224;07/2018;86
Les travaux du Café du Pont - Eaux et Paysages;Loire-Atlantique;SAINT MALO DE GUERSAC;20I09340;18I08406;1180000;525000;192202;44176;COMMUNAUTE D AGGLO DE LA REGION NAZAIRIENNE ET DE L ESTUAIRE;2020-09-25;00072344;0;CARENE;59;128866.92125478;44;316957860.724649;Septembre 2018;sig.territoires.pdl_ctr.59;CARENE;CARENE;CTR;44176;44;2020_10204_00;47.3561985163, -2.17203654541;09/2018;133
La rénovation de l'extension de l'Hôtel communautaire;Sarthe;ECOMMOY;20I09580;19I03413;195024;38500;38500;72124;COMMUNAUTE DE COMMUNES DE L OREE DE BERCE BELINOIS;2020-09-25;00057431;38500;Pays du Mans;55;211770.96933046;72;515795064.742766;;sig.territoires.pdl_ctr.55;Pays du Mans;Pays du Mans;CTR;72124;72;2020_10777;47.8249669123, 0.284900847455;;89
L'acquisition d'un ancien garage avec reprise et modernisation des pompes à essence;Sarthe;LA CHAPELLE D ALIGNE;20I09163;19I03414;312252;49200;49200;72061;COMMUNE DE LA CHAPELLE D ALIGNE;2020-09-25;00052563;0;CC du Pays Fléchois;49;306001.78232882;72;1427230046.65579;;sig.territoires.pdl_ctr.49;PETR Pays Vallée du Loir;Pays Vallée du Loir;CTR;72061;72;2020_09919;47.7357624962, -0.239313102989;;90
La rénovation de la salle socio-culturelle;Sarthe;REQUEIL;20I09171;19I03414;768056;100000;100000;72252;COMMUNE DE REQUEIL;2020-09-25;00058104;100000;CC du Pays Fléchois;49;306001.78232882;72;1427230046.65579;;sig.territoires.pdl_ctr.49;PETR Pays Vallée du Loir;Pays Vallée du Loir;CTR;72252;72;2020_10778;47.7866756494, 0.157684341786;;90
L'animation territoriale Mobilité;Sarthe;LE MANS;20I09511;20I08631;110000;20000;20000;72181;SYNDICAT MIXTE DU PAYS DU MANS;2020-09-25;00066624;0;;;;;;;;;;;72181;72;2020_12699_01;47.9885256718, 0.200030493539;;
Les travaux de construction du centre technique - secteur 4;Maine-et-Loire;BELLEVIGNE EN LAYON;20I11786;17I08581;1063510;161834;161834;49345;CC LOIRE LAYON AUBANCE;2020-11-13;00121232;0;Loire Layon Aubance;29;220718.82914478;49;613435516.735679;Septembre 2017;sig.territoires.pdl_ctr.29;Loire Layon Aubance;Loire Layon Aubance;CTR;49345;49;2020_13358;47.2592682331, -0.517923916545;09/2017;121
La réhabilitation du bassin principal de la piscine municipale;Sarthe;MALICORNE SUR SARTHE;20I12023;17I09882;31637;10000;10000;72179;COMMUNE DE MALICORNE SUR SARTHE;2020-11-13;00096479;0;;;;;;;;;;;72179;72;2020_13707;47.8125544281, -0.0874543104248;;
La réhabilitation de la salle municipale;;;20I12003;17I10745;242920;66371;66371;;COMMUNE DE MOUZEUIL SAINT MARTIN;2020-11-13;85000723;;Pays de Fontenay Vendée;39;127878.18274983;85;464973283.791542;Novembre 2017;sig.territoires.pdl_ctr.39;Pays de Fontenay Vendée;Pays de Fontenay Vendée;CTR;;;2020_13716_01;;11/2017;98
La création du parc d'activités des Chevreuils;Mayenne;ARON;20I12010;18I00723;0;0;;53008;MAYENNE COMMUNAUTE;2020-11-13;00115105;0;Mayenne Communauté;3;193726.21308398;53;626754357.991273;Février 2018;sig.territoires.pdl_ctr.3;Mayenne Communauté;Mayenne Communauté;CTR;53008;53;2020_13692_00;48.3036694505, -0.549695026744;02/2018;79
La réhabilitation et l'extension de la piscine communautaire;Vendée;AIZENAY;20I11771;18I02800;3851000;328800;328800;85003;CC DE VIE ET BOULOGNE;2020-11-13;85000726;0;Vie et Boulogne;37;148814.1881539;85;492534760.430236;Avril 2018;sig.territoires.pdl_ctr.37;Vie et Boulogne;Vie et Boulogne;CTR;85003;85;2020_13463;46.7384516809, -1.62702889721;04/2018;102
Les travaux de rénovation et mise aux normes de la piscine;Maine-et-Loire;TRELAZE;20I11765;18I06680;1598341;599999;599999;49353;COMMUNE DE TRELAZE;2020-11-13;00122231;0;Angers Loire Métropole;10;192445.630446;49;676496020.936854;Juillet 2018;sig.territoires.pdl_ctr.10;Angers Loire Métropole;Angers Loire Métropole;CDM;49353;49;2020_13382;47.451357179, -0.473458788346;07/2018;116
Le réaménagement du centre-bourg;Vendée;REAUMUR;20I11769;18I08141;301049;100000;100000;85187;COMMUNE DE REAUMUR;2020-11-13;85000715;0;Pays de Pouzauges;60;109218.55751266;85;320861396.374744;Septembre 2018;sig.territoires.pdl_ctr.60;Communauté de communes du Pays de Pouzauges;Pays de Pouzauges;CTR;85187;85;2020_13460_00;46.7145137269, -0.816742537248;09/2018;107
L'élaboration et le suivi du PCAET;Vendée;NOIRMOUTIER EN L'ILE;20I12486;20I11029;118107;36400;36400;85163;COMMUNAUTE DE COMMUNES DE L ILE DE NOIRMOUTIER;2020-11-13;85000748;36400;;;;;;;;;;;85163;85;2020_17031;47.0086655085, -2.26243620205;;
L'acquisition d'un  local pour une boulangerie;Loire-Atlantique;SAINTE ANNE SUR BRIVET;21I02591;17I06805;298777;103088;103088;44152;COMMUNE DE STE ANNE SUR BRIVET;2021-02-12;00134870;;Pays de Pontchâteau St Gildas des Bois;1;130121.86476614;44;327059918.271195;Juillet 2017;sig.territoires.pdl_ctr.1;Communauté de communes de Pont Château Saint Gildas des Bois;Pays de Pontchâteau St Gildas des Bois;CTR;44152;44;2021_04295_00;47.4517932363, -2.01858894478;07/2017;115
La réhabilitation du centre nautique du Fort Saint-Pierre;;;23I05073;17I08584;783800;136400;;;COMMUNE DE NOIRMOUTIER EN L ILE;2021-02-12;85000797;;Ile de Noirmoutier;42;58228.61267806;85;49215409.8708768;Septembre 2017;sig.territoires.pdl_ctr.42;Ile de Noirmoutier;Ile de Noirmoutier;CTR;;;2021_04252_01;;09/2017;93
La construction d'une salle commune séniors/actifs et cellule de soins;Loire-Atlantique;SAINT VIAUD;23I03181;17I09761;285000;56010;56010;44192;COMMUNE DE SAINT VIAUD;2021-02-12;00132760;;Sud Estuaire;40;69676.17445778;44;202807972.29704;Novembre 2017;sig.territoires.pdl_ctr.40;Sud Estuaire;Sud Estuaire;CTR;44192;44;2021_04243_01;47.2476012305, -1.99328592854;11/2017;128
La construction de l'extension de la Maison du développement intercommunal;Vendée;SAINT-JEAN-DE-MONTS;21I02729;18I02799;1326332;305727;305727;85234;COMMUNAUTE DE COMMUNES OCEAN MARAIS DE MONTS;2021-02-12;85000772;0;Océan Marais de Monts;43;97448.69013118;85;184686424.300016;Avril 2018;sig.territoires.pdl_ctr.43;Océan Marais de Monts;Océan Marais de Monts;CTR;85234;85;2021_04254;46.8021968737, -2.04839789308;04/2018;101
La réhabilitation de la déchetterie intercommunale;;;21I02582;18I07459;866931;232122;232122;;COMMUNAUTE DE COMMUNES SUD VENDEE LITTORAL;2021-02-12;85000776;;Sud Vendée Littoral;48;297801.82823589;85;950717267.472634;Juillet 2018;sig.territoires.pdl_ctr.48;CC Sud Vendée Littoral;Sud Vendée Littoral;CTR;;;2021_04269_00;;07/2018;106
La création d'un city et skate park;;;23I05079;18I08141;136862;90000;90000;;COMMUNE DE MONTOURNAIS;2021-02-12;85000758;;Pays de Pouzauges;60;109218.55751266;85;320861396.374744;Septembre 2018;sig.territoires.pdl_ctr.60;Communauté de communes du Pays de Pouzauges;Pays de Pouzauges;CTR;;;2021_04256_01;;09/2018;107
L'aménagement d'une aire de camping-cars;;;21I02579;19I00773;152332;68833;68833;;COMMUNE DE BENET;2021-02-12;85000786;;Vendée Sèvre Autise;22;164911.17006129;85;300390165.394669;Février 2019;sig.territoires.pdl_ctr.22;Communauté de communes de Vendée Sèvre Autise;Vendée Sèvre Autise;CTR;;;2021_04266_00;;02/2019;109
Les aménagements en centre-bourg pour les déplacements actifs;Vendée;BENET;21I02581;19I00773;240735;40000;40000;85020;COMMUNE DE BENET;2021-02-12;85000769;0;Vendée Sèvre Autise;22;164911.17006129;85;300390165.394669;Février 2019;sig.territoires.pdl_ctr.22;Communauté de communes de Vendée Sèvre Autise;Vendée Sèvre Autise;CTR;85020;85;2021_04268;46.368873213, -0.613959918706;02/2019;109
Aménagement rue des sports et de Gourap;Loire-Atlantique;SAINT GILDAS DES BOIS;23I02801;17I06805;1277567;106000;30210;44161;COMMUNE DE SAINT GILDAS DES BOIS;2021-03-31;00147124;;Pays de Pontchâteau St Gildas des Bois;1;130121.86476614;44;327059918.271195;Juillet 2017;sig.territoires.pdl_ctr.1;Communauté de communes de Pont Château Saint Gildas des Bois;Pays de Pontchâteau St Gildas des Bois;CTR;44161;44;2021_05278_01;47.5090375076, -2.05985402604;07/2017;115
Rénovation du Centre Culturel Saint-Michel;;;23I02803;18I05377;406200;42500;42500;;COMMUNE DE LEGE;2021-03-31;00141922;;Sud Retz Atlantique;25;169463.38998873;44;425092538.170903;Mai 2018;sig.territoires.pdl_ctr.25;Sud Retz Atlantique;Sud Retz Atlantique;CTR;;;2021_05281_01;;05/2018;75
La construction d'une médiathèque intercommunale (antenne);;;23I02777;18I07459;2353167;152851;152851;;COMMUNAUTE DE COMMUNES SUD VENDEE LITTORAL;2021-03-31;85000869;;Sud Vendée Littoral;48;297801.82823589;85;950717267.472634;Juillet 2018;sig.territoires.pdl_ctr.48;CC Sud Vendée Littoral;Sud Vendée Littoral;CTR;;;2021_05372_01;;07/2018;106
La réhabilitation de la salle Polyvalente Benjamin Merchin - Aménagement d'une salle de spectacles et de loisirs;;;23I05125;19I06842;2116188;350000;29470;;COMMUNE DE PRE EN PAIL SAINT SAMSON;2021-03-31;00144249;;Mont des Avaloirs;54;160156.70260044;53;546971565.364143;Juillet 2019;sig.territoires.pdl_ctr.54;Mont des Avaloirs;Mont des Avaloirs;CTR;;;2021_05351_01;;07/2019;85
La rénovation de la salle annexe à la salle de sports;;;21I07909;17I09578;251449;47065;47065;;COMMUNE DE TREIZE VENTS;2021-05-21;85000844;;Pays de Mortagne;18;126807.36564022;85;228566018.366052;Novembre 2017;sig.territoires.pdl_ctr.18;Pays de Mortagne;Pays de Mortagne;CTR;;;2021_09129_00;;11/2017;95
L'aménagement ZA Chantepie;;;23I04987;18I00770;405000;100000;100000;;LAVAL AGGLOMERATION;2021-05-21;00148443;;Pays de Loiron;63;104558.05453473;53;256504826.222709;Février 2018;sig.territoires.pdl_ctr.63;Pays de Loiron;Pays de Loiron;CTR;;;2021_08358_01;;02/2018;80
La création d'une maison des associations;;;23I02834;18I01923;2024530;650000;650000;;COMMUNAUTE DE COMMUNES DES COEVRONS;2021-05-21;00148617;;Les Coëvrons;2;193924.72196165;53;788955843.049511;Février 2018;sig.territoires.pdl_ctr.2;Les Coëvrons;Les Coëvrons;CTR;;;2021_08428_01;;02/2018;81
le renforcement du tri sélectif par le développement de la conteneurisation dans tous les foyers de la CC de Craon-CTR 2020 de la Communauté de Communes du Pays de Craon;Mayenne;CRAON;17I09653;17I09006;300000;100000;100000;53084;CC DU PAYS DE CRAON;2017-11-17;00041042;0;Pays de Craon;62;169901.29669863;53;646041148.74744;Septembre 2017;sig.territoires.pdl_ctr.62;Pays de Craon;Pays de Craon;CTR;53084;53;2017_10089;47.8454412251, -0.943066490216;09/2017;77
La voie douce entre les rues des Canaris et du Prince Bois (percée de la Touchelais) - COMMUNE DE SAVENAY - CTR 2020 -  44 - ESTUAIRE ET SILLON -;Loire-Atlantique;SAVENAY;17I09766;17I09760;200356;47890;47890;44195;MAIRIE DE SAVENAY;2017-11-17;00041306;47890;Estuaire et Sillon;61;112337.65867316;44;313121598.740399;Novembre 2017;sig.territoires.pdl_ctr.61;Communauté de communes d'Estuaire et Sillon;Estuaire et Sillon;CTR;44195;44;2017_10131_00;47.3570647854, -1.91842119102;11/2017;129
La construction d'un terrain multisports - CTR - CA Pornic Coeur Pays de Retz;Loire-Atlantique;CHEIX-EN-RETZ;18I02013;17I08233;41559;33000;33000;44039;COMMUNE DE CHEIX EN RETZ;2018-02-16;00036922;0;Pornic Agglo Pays de Retz;33;137060.38656142;44;451066582.29291;Septembre 2017;sig.territoires.pdl_ctr.33;Communauté d'Agglomération de Pornic Cœur Pays de Retz;Pornic Agglo Pays de Retz;CTR;44039;44;2018_00938;47.1811170912, -1.79840995834;09/2017;127
L'aménagement de l'étang de Choizeau - CTR 2020 - Communauté de communes d'Erdre et Gesvres;Loire-Atlantique;VIGNEUX DE BRETAGNE;18I03729;17I04913;152983;62500;62500;44217;COMMUNAUTE DE COMMUNES D ERDRE GESVRES;2018-04-20;00044047;0;Erdre et Gesvres;13;166735.21638325;44;509712555.822317;Mai 2017;sig.territoires.pdl_ctr.13;Communauté de communes d'Erdre et Gesvres;Erdre et Gesvres;CTR;44217;44;2018_04387;47.3196231868, -1.72042944177;05/2017;113
l'extension de l'accueil périscolaire et construction d'une classe élémentaire;Maine-et-Loire;JARZE VILLAGES;18I03723;17I06491;532157;106431;106431;49163;COMMUNE NOUVELLE JARZE VILLAGES;2018-04-20;00039760;0;Anjou Loir et Sarthe;26;172077.9474839;49;457111657.097573;Juillet 2017;sig.territoires.pdl_ctr.26;Communauté de Communes Anjou Loir et Sarthe;Anjou Loir et Sarthe;CTR;49163;49;2018_04334;47.5576434301, -0.24007574412;07/2017;119
La requalification du quai Jules SANDEAU - CTR 2020 - Communauté d'Agglomération de CAP ATLANTIQUE;Loire-Atlantique;LE POULIGUEN;18I03757;17I09003;1499999;150000;150000;44135;COMMUNE DU POULIGUEN;2018-04-20;00042372;0;Cap Atlantique;41;145725.47329518;44;395838108.965296;Septembre 2017;sig.territoires.pdl_ctr.41;Cap Atlantique;Cap Atlantique;CTR;44135;44;2018_03827;47.2716208982, -2.43210265977;09/2017;125
Le nouvel hôtel d'agglomération;Vendée;LA ROCHE-SUR-YON;18I02802;17I09579;2815956;580000;580000;85191;LA ROCHE SUR YON AGGLOMERATION;2018-04-20;85000044;209850;La Roche Sur Yon Agglomération;16;155815.38916483;85;500779101.845023;Novembre 2017;sig.territoires.pdl_ctr.16;La Roche Sur Yon Agglomération;La Roche Sur Yon Agglomération;CTR;85191;85;2018_02953_00;46.6675261644, -1.4077954093;11/2017;96
72 - LOUE-BRULON-NOYEN - CC LOUE - BRULON- NOYEN - Requalification de la zone industrielle Est 'Les Fourneaux' à Brûlon;Sarthe;BRULON;18I05640;17I09880;234238;70271;70271;72050;COMMUNAUTE DE COMMUNES LOUE BRULON NOYEN;2018-05-25;00039417;0;CC Loué - Brûlon - Noyen;52;226944.40757679;72;1117349894.39695;Novembre 2017;sig.territoires.pdl_ctr.52;Pays Vallée de la Sarthe;Pays Vallée de la Sarthe;CTR;72050;72;2018_07030_00;47.9808104506, -0.230196324503;11/2017;74
L'acquisition d'une propriété et réalisation de voies douces en centre bourg pour dynamiser le commerce local - COMMUNE DE LA CHAPELLE-GLAIN - 44 - CTR 2020 -  CC Châteaubriant - Derval;Loire-Atlantique;LA CHAPELLE-GLAIN;18I07157;17I04914;60000;36100;36100;44031;COMMUNE DE LA CHAPELLE GLAIN;2018-07-13;00039474;0;Châteaubriant-Derval;19;192160.53583929;44;884476807.089572;Mai 2017;sig.territoires.pdl_ctr.19;Communauté de communes Châteaubriant Derval;Châteaubriant-Derval;CTR;44031;44;2018_09260;47.6202560031, -1.19540234544;05/2017;114
La réhabilitation du gymnase - COMMUNE DE PAIMBOEUF - 44 - CTR 2020 - SUD ESTUAIRE;Loire-Atlantique;PAIMBŒUF;18I07136;17I09761;1924490;78042;78042;44116;COMMUNE DE PAIMBOEUF;2018-07-13;00041086;0;Sud Estuaire;40;69676.17445778;44;202807972.29704;Novembre 2017;sig.territoires.pdl_ctr.40;Sud Estuaire;Sud Estuaire;CTR;44116;44;2018_08347;47.2863992883, -2.02807425552;11/2017;128
la mise en accessibilité complexe au terrain de foot et extension des vestiaires sportifs- COMMUNE DE SAINT MICHEL LE CLOUCQ - 85- CTR 2020 de la CC Pays de Fontenay Vendée;Vendée;SAINT-MICHEL-LE-CLOUCQ;18I07155;17I10745;90700;31745;31745;85256;COMMUNE DE SAINT MICHEL LE CLOUCQ;2018-07-13;85000141;0;Pays de Fontenay Vendée;39;127878.18274983;85;464973283.791542;Novembre 2017;sig.territoires.pdl_ctr.39;Pays de Fontenay Vendée;Pays de Fontenay Vendée;CTR;85256;85;2018_08922;46.4861591475, -0.743056336646;11/2017;98
les travaux d'aménagement de la place des Halles et rue du Marchiou-Commune de MAREUIL SUR LAY DISSAIS -85- CTR 2020 Sud Vendée Littoral;Vendée;MAREUIL-SUR-LAY-DISSAIS;18I07630;18I07459;403776;92154;92154;85135;COMMUNE DE MAREUIL SUR LAY DISSAIS;2018-07-13;85000153;0;Sud Vendée Littoral;48;297801.82823589;85;950717267.472634;Juillet 2018;sig.territoires.pdl_ctr.48;CC Sud Vendée Littoral;Sud Vendée Littoral;CTR;85135;85;2018_08927_00;46.5335825488, -1.22688907859;07/2018;106
L'aménagement de la rue des 27 Otages favorisant la mobilité douce -  Commune de Châteaubriant - 44 - CTR de la CC de CHATEAUBRIANT DERVAL;Loire-Atlantique;CHATEAUBRIANT;18I08850;17I04914;1113741;300000;300000;44036;COMMUNE DE CHATEAUBRIANT;2018-09-28;00041380;0;Châteaubriant-Derval;19;192160.53583929;44;884476807.089572;Mai 2017;sig.territoires.pdl_ctr.19;Communauté de communes Châteaubriant Derval;Châteaubriant-Derval;CTR;44036;44;2018_11219;47.7221583524, -1.38664809937;05/2017;114
la réalisation d'un terrain de football synthétique et la création d'un ouvrage hydraulique au stade Conotte - COMMUNE DE MONTREUIL JUIGNE - 49 - CDM Angers Loire Métropole;Maine-et-Loire;MONTREUIL-JUIGNE;18I08787;18I06680;792559;231000;231000;49214;COMMUNE DE MONTREUIL JUIGNE;2018-09-28;00041474;0;Angers Loire Métropole;10;192445.630446;49;676496020.936854;Juillet 2018;sig.territoires.pdl_ctr.10;Angers Loire Métropole;Angers Loire Métropole;CDM;49214;49;2018_11432;47.5411858548, -0.616472796467;07/2018;116
Aménagement de la rue des Mottes et aménagement paysager d'un parking -SAINT JEAN DE BEUGNE-85-CTR de la CC Sud Vendée Littoral;Vendée;SAINT-JEAN-DE-BEUGNE;18I08791;18I07459;188979;34261;34261;85233;SAINT JEAN DE BEUGNE;2018-09-28;85000183;0;Sud Vendée Littoral;48;297801.82823589;85;950717267.472634;Juillet 2018;sig.territoires.pdl_ctr.48;CC Sud Vendée Littoral;Sud Vendée Littoral;CTR;85233;85;2018_11095_00;46.5196817523, -1.10826075013;07/2018;106
La desserte numérique - dorsale d'Herbignac - CAP ATLANTIQUE - 44 - CTR 2020;Loire-Atlantique;INTERCOMMUNALE;18I10719;17I09003;290000;58100;58100;44055;COMMUNAUTE D AGGLOMERATION DE LA PRESQU ILE DE GUERANDE ATLANTIQUE;2018-11-23;00041960;0;Cap Atlantique;41;145725.47329518;44;395838108.965296;Septembre 2017;sig.territoires.pdl_ctr.41;Cap Atlantique;Cap Atlantique;CTR;44055;44;2018_12727;47.2909720179, -2.3538291745;09/2017;125
La mise en accessibilité du tour du lac de Savenay - COMMUNAUTE DE COMMUNES ESTUAIRE ET SILLON  - 44 - CTR 2020 - CC ESTUAIRE ET SILLON;Loire-Atlantique;SAVENAY;18I10725;17I09760;474216;222055;222055;44195;COMMUNAUTE DE COMMUNES ESTUAIRE ET SILLON;2018-11-23;00043102;0;Estuaire et Sillon;61;112337.65867316;44;313121598.740399;Novembre 2017;sig.territoires.pdl_ctr.61;Communauté de communes d'Estuaire et Sillon;Estuaire et Sillon;CTR;44195;44;2018_12790;47.3570647854, -1.91842119102;11/2017;129
Les travaux des abords de la Chapelle de Planté - COMMUNE DE QUILLY - 44 - CTR 2020 - CC ESTUAIRE ET SILLON;Loire-Atlantique;QUILLY;18I10731;17I09760;131900;46443;46443;44139;COMMUNE DE QUILLY;2018-11-23;00043124;0;Estuaire et Sillon;61;112337.65867316;44;313121598.740399;Novembre 2017;sig.territoires.pdl_ctr.61;Communauté de communes d'Estuaire et Sillon;Estuaire et Sillon;CTR;44139;44;2018_12850_00;47.4618178033, -1.9408388462;11/2017;129
L'implantation d'un terrain multisports - COMMUNE DE FROSSAY - 44 - CTR 2020 - CC SUD ESTUAIRE;Loire-Atlantique;FROSSAY;18I10723;17I09761;73282;58626;58626;44061;COMMUNE DE FROSSAY;2018-11-23;00043122;0;Sud Estuaire;40;69676.17445778;44;202807972.29704;Novembre 2017;sig.territoires.pdl_ctr.40;Sud Estuaire;Sud Estuaire;CTR;44061;44;2018_12780;47.2455073631, -1.93405826107;11/2017;128
la rénovation de l'éclairage public -72 - COMMUNE DE TASSILLÉ - CC LOUE-BRULON-NOYEN;Sarthe;TASSILLE;18I10387;17I09880;39084;10000;10000;72348;COMMUNE DE TASSILLE;2018-11-23;00042787;10000;CC Loué - Brûlon - Noyen;52;226944.40757679;72;1117349894.39695;Novembre 2017;sig.territoires.pdl_ctr.52;Pays Vallée de la Sarthe;Pays Vallée de la Sarthe;CTR;72348;72;2018_12885;47.9881765912, -0.0946992624258;11/2017;74
La rénovation énergétique de l'Hôtel de Ville - COMMUNE DE L'ILE D'YEU - 85 - CTR 2020 ILE D'YEU;Vendée;L'ILE-D'YEU;18I10707;18I02798;2565225;300000;300000;85113;COMMUNE DE L ILE D YEU;2018-11-23;85000241;300000;L'Ile d'Yeu;51;32302.30182464;85;24658739.0;Avril 2018;sig.territoires.pdl_ctr.51;Communauté de communes de l'Île d'Yeu;L'Ile d'Yeu;CTR;85113;85;2018_13312;46.7093514816, -2.34712702345;04/2018;100
La réhabilitation énergétique de la Médiathèque de Doué la Fontaine - 49 - SAUMUR VAL DE LOIRE - CTR 2020 SAUMUR VAL DE LOIRE;Maine-et-Loire;DOUE EN ANJOU (49125);18I10418;18I05643;331434;41631;41631;49328;CA SAUMUR VAL DE LOIRE;2018-11-23;00043304;41631;Saumur Val de Loire;28;222936.82254543;49;1244790494.62575;Mai 2018;sig.territoires.pdl_ctr.28;Saumur Val de Loire;Saumur Val de Loire;CTR;49328;49;2018_13299;47.2673853525, -0.0830410591988;05/2018;123
La réhabilitation de l'école Maremaillette en éco-construction - COMMUNE DE SAUMUR - 49 - CTR 2020 Saumur Val de Loire;Maine-et-Loire;SAUMUR;18I10421;18I05643;1436487;250800;250800;49328;COMMUNE DE SAUMUR;2018-11-23;00043699;257575;Saumur Val de Loire;28;222936.82254543;49;1244790494.62575;Mai 2018;sig.territoires.pdl_ctr.28;Saumur Val de Loire;Saumur Val de Loire;CTR;49328;49;2018_13797_00;47.2673853525, -0.0830410591988;05/2018;123
La construction d'une salle multisports à dynamique Tir à l'Arc - CARQUEFOU - 44 - CDM Nantes Métropole;Loire-Atlantique;CARQUEFOU;18I10608;18I06834;1516678;144612;144612;44026;COMMUNE DE CARQUEFOU;2018-11-23;00043328;0;Nantes Métropole;6;181264.28832122;44;534212730.160229;Juillet 2018;sig.territoires.pdl_ctr.6;Nantes Métropole;Nantes Métropole;CDM;44026;44;2018_14049;47.3017191833, -1.47277200095;07/2018;132
"la fourniture et installation de conteneurs à déchets ménagers semi-enterrés - 72 - COMMUNAUTE DE COMMUNES ""MAINE SAOSNOIS""";Sarthe;MAROLLES-LES-BRAULTS;18I10752;18I06858;110000;88000;88000;72189;COMMUNAUTE DE COMMUNES MAINE SAOSNOIS;2018-11-23;00042732;0;CC Maine Saosnois;31;160838.92939288;72;582200983.266689;Juillet 2018;sig.territoires.pdl_ctr.31;CC Maine Saosnois;CC Maine Saosnois;CTR;72189;72;2018_12867;48.2539587745, 0.320191786224;07/2018;86
la réhabilitation de bâtiments pour les nouveaux locaux du centre social CASCADE - 72 - COMMUNAUTE DE COMMUNES 'MAINE SAOSNOIS';Sarthe;MAROLLES-LES-BRAULTS;18I10753;18I06858;1627495;363752;363752;72189;COMMUNAUTE DE COMMUNES MAINE SAOSNOIS;2018-11-23;00042731;43354;CC Maine Saosnois;31;160838.92939288;72;582200983.266689;Juillet 2018;sig.territoires.pdl_ctr.31;CC Maine Saosnois;CC Maine Saosnois;CTR;72189;72;2018_12868_00;48.2539587745, 0.320191786224;07/2018;86
la prolongation de la voie douce -72 - COMMUNE DE SAINT RÉMY DE SILLÉ - CC CHAMPAGNE CONLINOISE ET PAYS DE SILLE;Sarthe;SAINT-REMY-DE-SILLE;18I10389;18I09952;293954;88185;88185;72315;COMMUNE DE SAINT REMY DE SILLE;2018-11-23;00043966;88185;;;;;;;;;;;72315;72;2018_13064;48.1814893411, -0.102928256564;;
L'acquisition d'une salle multifonctions - COMMUNE DE PONTCHÂTEAU - 44 - CTR 2020 - CC DU PAYS DE PONT CHATEAU ST GILDAS DES BOIS;Loire-Atlantique;PONTCHATEAU;19I01594;17I06805;509586;137472;137472;44129;COMMUNE DE PONT CHATEAU;2019-02-08;00044877;0;Pays de Pontchâteau St Gildas des Bois;1;130121.86476614;44;327059918.271195;Juillet 2017;sig.territoires.pdl_ctr.1;Communauté de communes de Pont Château Saint Gildas des Bois;Pays de Pontchâteau St Gildas des Bois;CTR;44129;44;2019_01263;47.433636363, -2.09556089039;07/2017;115
La réhabilitation de 3 terrains de football - COMMUNE D'ORVAULT - CDM  DE NANTES METROPOLE;Loire-Atlantique;ORVAULT;19I01611;18I06834;1289848;194444;194444;44114;COMMUNE D ORVAULT;2019-02-08;00044550;0;Nantes Métropole;6;181264.28832122;44;534212730.160229;Juillet 2018;sig.territoires.pdl_ctr.6;Nantes Métropole;Nantes Métropole;CDM;44114;44;2019_01955;47.2739815478, -1.62323898524;07/2018;132
l'élaboration du Plan Climat Air Energie Territorial - COMMUNAUTE DE COMMUNES 'MAINE SAOSNOIS' -72- CTR 2020 CC MAINE SAOSNOIS -;Sarthe;MAROLLES-LES-BRAULTS;19I01620;18I06858;70000;48406;48406;72189;COMMUNAUTE DE COMMUNES MAINE SAOSNOIS;2019-02-08;00045009;56000;CC Maine Saosnois;31;160838.92939288;72;582200983.266689;Juillet 2018;sig.territoires.pdl_ctr.31;CC Maine Saosnois;CC Maine Saosnois;CTR;72189;72;2019_01115_00;48.2539587745, 0.320191786224;07/2018;86
l'aménagement d'une aire de covoiturage  - COMMUNE D'AMBRIERES-LES-VALLEES - 53 -CTR 2020 de la CC BOCAGE MAYENNAIS;Mayenne;AMBRIERES-LES-VALLEES;19I01614;18I07457;39675;28000;28000;53003;COMMUNE D AMBRIERES LES VALLEES;2019-02-08;00044014;0;Bocage Mayennais;9;189865.43542796;53;529745022.271069;Juillet 2018;sig.territoires.pdl_ctr.9;Communauté de communes du Bocage Mayennais;Bocage Mayennais;CTR;53003;53;2019_01053;48.4227200634, -0.624160085775;07/2018;83
l'aménagement du centre-bourg  - COMMUNE DE CHASNAIS - 85 - CTR 2020 CC Sud Vendée Littoral;;;19I01605;18I07459;278124;39202;39202;;COMMUNE DE CHASNAIS;2019-02-08;85000297;;Sud Vendée Littoral;48;297801.82823589;85;950717267.472634;Juillet 2018;sig.territoires.pdl_ctr.48;CC Sud Vendée Littoral;Sud Vendée Littoral;CTR;;;2019_01153_00;;07/2018;106
Les travaux de rénovation de la salle Ferchault - COMMUNE DE REAUMUR - 85 - CTR 2020 CC du Pays de Pouzauges;Vendée;REAUMUR;19I01575;18I08141;212385;50000;50000;85187;COMMUNE DE REAUMUR;2019-02-08;85000333;50000;Pays de Pouzauges;60;109218.55751266;85;320861396.374744;Septembre 2018;sig.territoires.pdl_ctr.60;Communauté de communes du Pays de Pouzauges;Pays de Pouzauges;CTR;85187;85;2019_00878;46.7145137269, -0.816742537248;09/2018;107
la rénovation de l'éclairage public - COMMUNE DE FRESNAY SUR SARTHE -  72 - CTR 2020 de la CC HAUTE SARTHE ALPES MANCELLES;Sarthe;SAINT-GERMAIN-SUR-SARTHE;19I01629;18I09842;19000;9942;9942;72284;COMMUNE DE FRESNAY SUR SARTHE;2019-02-08;00044854;10000;CC Haute Sarthe Alpes Mancelles;46;208876.08303841;72;922846721.323114;Novembre 2018;sig.territoires.pdl_ctr.46;Pays de la Haute Sarthe;Pays de la Haute Sarthe;CTR;72138;72;2019_01630_00;48.2796531655, 0.0781088012686;11/2018;87
la rénovation de l'éclairage public- COMMUNE DE NEUVILLALAIS - 72 - CTR 2020 CC CHAMPAGNE CONLINOISE ET PAYS DE SILLE -;Sarthe;NEUVILLALAIS;19I01623;18I09952;67165;10000;10000;72216;COMMUNE DE NEUVILLALAIS;2019-02-08;00044055;10000;;;;;;;;;;;72216;72;2019_01125;48.1540701215, -0.00726100705973;;
l'installation de panneaux photovoltaïques sur les vestiaires du stade de la commune - 53 -  ASTILLE - CTR 2020 PAYS DE CRAON;Mayenne;ASTILLE;19I03615;17I09006;68012;19419;19419;53011;COMMUNE D ASTILLE;2019-04-05;00045272;20403;Pays de Craon;62;169901.29669863;53;646041148.74744;Septembre 2017;sig.territoires.pdl_ctr.62;Pays de Craon;Pays de Craon;CTR;53011;53;2019_04557_00;47.9617911116, -0.846376343167;09/2017;77
L'aménagement de nouveaux ateliers municipaux - Commune de Saint Malô du Bois;Vendée;SAINT-MALO-DU-BOIS;19I03830;17I09578;159775;56583;56583;85240;COMMUNE DE SAINT MALO DU BOIS;2019-04-05;85000315;0;Pays de Mortagne;18;126807.36564022;85;228566018.366052;Novembre 2017;sig.territoires.pdl_ctr.18;Pays de Mortagne;Pays de Mortagne;CTR;85240;85;2019_04154;46.9248120291, -0.914182961099;11/2017;95
la rénovation et extension de l'éclairage public -72 -  COMMUNE DE FYÉ - CTR 2020 DU PAYS DE LA HAUTE SARTHE;Sarthe;FYE;19I03619;18I09842;67973;20000;20000;72139;COMMUNE DE FYE;2019-04-05;00046130;20000;CC Haute Sarthe Alpes Mancelles;46;208876.08303841;72;922846721.323114;Novembre 2018;sig.territoires.pdl_ctr.46;Pays de la Haute Sarthe;Pays de la Haute Sarthe;CTR;72139;72;2019_04562;48.3232043088, 0.081600822719;11/2018;87
L'aménagement de la liaison douce reliant Port-Mulon au centre ville à Nort-sur-Erdre;Loire-Atlantique;NORT-SUR-ERDRE;19I06311;17I04913;61160;40000;40000;44110;COMMUNE DE NORT SUR ERDRE;2019-06-06;00047275;0;Erdre et Gesvres;13;166735.21638325;44;509712555.822317;Mai 2017;sig.territoires.pdl_ctr.13;Communauté de communes d'Erdre et Gesvres;Erdre et Gesvres;CTR;44110;44;2019_06489;47.447122285, -1.51824792558;05/2017;113
La mise en oeuvre du Plan d'action communal pour les mobilités actives à Sucé-sur-Erdre;Loire-Atlantique;SUCE-SUR-ERDRE;19I06315;17I04913;261000;40000;40000;44201;COMMUNE DE SUCE SUR ERDRE;2019-06-06;00047308;40000;Erdre et Gesvres;13;166735.21638325;44;509712555.822317;Mai 2017;sig.territoires.pdl_ctr.13;Communauté de communes d'Erdre et Gesvres;Erdre et Gesvres;CTR;44201;44;2019_06500_00;47.3536547402, -1.51945689724;05/2017;113
La rénovation et la mise en accessibilité de la mairie;Maine-et-Loire;TIERCE;19I06171;17I06491;1568873;249650;249650;49347;COMMUNE DE TIERCE;2019-06-06;00046633;0;Anjou Loir et Sarthe;26;172077.9474839;49;457111657.097573;Juillet 2017;sig.territoires.pdl_ctr.26;Communauté de Communes Anjou Loir et Sarthe;Anjou Loir et Sarthe;CTR;49347;49;2019_06277_00;47.6245599519, -0.44344301136;07/2017;119
La revitalisation du centre-bourg de la commune déléguée de Saint Mathurin sur Loire - Commune de Loire-Authion;Maine-et-Loire;LOIRE-AUTHION;19I06191;18I06680;776536;265090;265090;49307;COMMUNE DE LOIRE AUTHION;2019-06-06;00047122;0;Angers Loire Métropole;10;192445.630446;49;676496020.936854;Juillet 2018;sig.territoires.pdl_ctr.10;Angers Loire Métropole;Angers Loire Métropole;CDM;49307;49;2019_06781_00;47.4219645317, -0.319673646947;07/2018;116
L'aménagement et la mise en sécurité de la rue de la Voie;Vendée;SAINTE-RADEGONDE-DES-NOYERS;19I06214;18I07459;455052;52579;52579;85267;COMMUNE DE SAINTE RADEGONDE DES NOYERS;2019-06-06;85000383;0;Sud Vendée Littoral;48;297801.82823589;85;950717267.472634;Juillet 2018;sig.territoires.pdl_ctr.48;CC Sud Vendée Littoral;Sud Vendée Littoral;CTR;85267;85;2019_06577;46.3694246909, -1.06671995264;07/2018;106
La réfection de l'éclairage public;Sarthe;CRISSE;19I06176;18I09952;58291;8965;8965;72109;COMMUNE DE CRISSE;2019-06-06;00047187;10000;;;;;;;;;;;72109;72;2019_06513_00;48.1802737725, -0.0645153355055;;
Les travaux de mise en sécurité et de confortement du barrage du lac de l'Espérance;Vendée;POUZAUGES;21I07906;18I08141;410286;123085;123085;85182;COMMUNE DE POUZAUGES;2021-05-21;85000893;;Pays de Pouzauges;60;109218.55751266;85;320861396.374744;Septembre 2018;sig.territoires.pdl_ctr.60;Communauté de communes du Pays de Pouzauges;Pays de Pouzauges;CTR;85182;85;2021_08060;46.7812581702, -0.828778359084;09/2018;107
L'aménagement d'aires de camping-car sur le territoire de la communauté de communes Sud Sarthe;Sarthe;AUBIGNE-RACAN;19I06180;19I03414;181235;93329;93329;72013;COMMUNAUTE DE COMMUNES SUD SARTHE;2019-06-06;00047250;0;CC du Pays Fléchois;49;306001.78232882;72;1427230046.65579;;sig.territoires.pdl_ctr.49;PETR Pays Vallée du Loir;Pays Vallée du Loir;CTR;72013;72;2019_06533;47.6839620406, 0.250420617503;;90
La déconstruction - reconstruction de l'école élémentaire du groupe scolaire H.Schmitt;;;23I05127;19I06842;1899314;348145;348145;;COMMUNE DE VILLAINES LA JUHEL;2021-05-21;00146134;;Mont des Avaloirs;54;160156.70260044;53;546971565.364143;Juillet 2019;sig.territoires.pdl_ctr.54;Mont des Avaloirs;Mont des Avaloirs;CTR;;;2021_08425_02;;07/2019;85
L'acquisition d'un véhicule utilitaire électrique par la Commune des Touches;Loire-Atlantique;LES TOUCHES;19I07533;17I04913;22197;17757;17757;44205;COMMUNE DES TOUCHES;2019-07-12;00048557;17757;Erdre et Gesvres;13;166735.21638325;44;509712555.822317;Mai 2017;sig.territoires.pdl_ctr.13;Communauté de communes d'Erdre et Gesvres;Erdre et Gesvres;CTR;44205;44;2019_08530_00;47.4523563976, -1.42756883238;05/2017;113
La réalisation d'une voie verte;Loire-Atlantique;FROSSAY;23I04875;17I09761;310280;97264;97264;44061;COMMUNAUTE DE COMMUNES DU SUD ESTUAIRE;2021-09-23;00148770;;Sud Estuaire;40;69676.17445778;44;202807972.29704;Novembre 2017;sig.territoires.pdl_ctr.40;Sud Estuaire;Sud Estuaire;CTR;44061;44;2021_11416_01;47.2455073631, -1.93405826107;11/2017;128
49 - ANJOU LOIR ET SARTHE - COMMUNE DE MORANNES SUR SARTHE-DAUMERAY - Les travaux de réhabilitation énergétique, d'aménagement et de mise aux normes de la salle des fêtes;Maine-et-Loire;MORANNES SUR SARTHE-DAUMERAY;19I07476;17I06491;300000;60000;60000;49220;COMMUNE DE MORANNES SUR SARTHE DAUMERAY;2019-07-12;00048502;60000;Anjou Loir et Sarthe;26;172077.9474839;49;457111657.097573;Juillet 2017;sig.territoires.pdl_ctr.26;Communauté de Communes Anjou Loir et Sarthe;Anjou Loir et Sarthe;CTR;49220;49;2019_07841;47.725500783, -0.403190245491;07/2017;119
L'aménagement de la ZAE Moulin Bertin n°2;Vendée;FONTENAY-LE-COMTE;23I00478;17I10745;2175000;1125781;900625;85092;COMMUNAUTE DE COMMUNES PAYS DE FONTENAY VENDEE;2021-09-23;85000920;;Pays de Fontenay Vendée;39;127878.18274983;85;464973283.791542;Novembre 2017;sig.territoires.pdl_ctr.39;Pays de Fontenay Vendée;Pays de Fontenay Vendée;CTR;85092;85;2021_12440_01;46.4563186117, -0.793449510859;11/2017;98
L'extension et la mise en formes de la déchetterie de Port-Brillet;Mayenne;PORT BRILLET;19I07500;18I00770;356816;49865;49865;53182;LAVAL AGGLOMERATION;2019-07-12;00047864;0;Pays de Loiron;63;104558.05453473;53;256504826.222709;Février 2018;sig.territoires.pdl_ctr.63;Pays de Loiron;Pays de Loiron;CTR;53182;53;2019_08595_00;48.1212899945, -0.963949064008;02/2018;80
L'achat de véhicules propres;Mayenne;MAYENNE;23I05004;18I00723;81239;64991;46787;53147;MAYENNE COMMUNAUTE;2021-09-23;00149785;;Mayenne Communauté;3;193726.21308398;53;626754357.991273;Février 2018;sig.territoires.pdl_ctr.3;Mayenne Communauté;Mayenne Communauté;CTR;53147;53;2021_14162_01;48.3074609449, -0.614799950799;02/2018;79
L'aménagement du bâtiment du Fief Callard à l'Ecomusée du Daviaud;Vendée;LA BARRE DE MONTS;19I07498;18I02799;162000;11000;11000;85012;COMMUNAUTE DE COMMUNES OCEAN MARAIS DE MONTS;2019-07-12;85000396;11000;Océan Marais de Monts;43;97448.69013118;85;184686424.300016;Avril 2018;sig.territoires.pdl_ctr.43;Océan Marais de Monts;Océan Marais de Monts;CTR;85012;85;2019_08341;46.8722784154, -2.09984018879;04/2018;101
La construction d'une salle de gymnastique;;;23I03178;18I03759;1083200;240000;128664;;COMMUNAUTE DE COMMUNES REGION DE NOZAY;2021-09-23;00150179;;Région de Nozay;23;98766.52204624;44;275618396.875015;Avril 2018;sig.territoires.pdl_ctr.23;Région de Nozay;Région de Nozay;CTR;;;2021_11403_01;;04/2018;130
La réfection de la déchèterie de l'Oseraye à Puceul;Loire-Atlantique;PUCEUL;19I07521;18I03759;1286230;350000;350000;44138;COMMUNAUTE DE COMMUNES REGION DE NOZAY;2019-07-12;00048478;0;Région de Nozay;23;98766.52204624;44;275618396.875015;Avril 2018;sig.territoires.pdl_ctr.23;Région de Nozay;Région de Nozay;CTR;44138;44;2019_08505;47.5188688924, -1.61966399474;04/2018;130
L'extension des consignes de tri;;;23I04991;18I03759;60000;42800;34240;;COMMUNAUTE DE COMMUNES REGION DE NOZAY;2021-09-23;00150162;;Région de Nozay;23;98766.52204624;44;275618396.875015;Avril 2018;sig.territoires.pdl_ctr.23;Région de Nozay;Région de Nozay;CTR;;;2021_11409_02;;04/2018;130
La modernisation de la piscine d'Offard;Maine-et-Loire;SAUMUR;19I07478;18I05643;305201;51300;51300;49328;CA SAUMUR VAL DE LOIRE;2019-07-12;00043117;0;Saumur Val de Loire;28;222936.82254543;49;1244790494.62575;Mai 2018;sig.territoires.pdl_ctr.28;Saumur Val de Loire;Saumur Val de Loire;CTR;49328;49;2019_07845;47.2673853525, -0.0830410591988;05/2018;123
La restructuration et l'agrandissement des services administratifs de la mairie;;;23I04876;18I05377;1100040;42500;;;COMMUNE DE CORCOUE SUR LOGNE;2021-09-23;00136306;;Sud Retz Atlantique;25;169463.38998873;44;425092538.170903;Mai 2018;sig.territoires.pdl_ctr.25;Sud Retz Atlantique;Sud Retz Atlantique;CTR;;;2021_11394_01;;05/2018;75
La réfection de la route forestière 'La Vallée Layée' en forêt de Perseigne;Sarthe;INTERCOMMUNALE;19I07796;18I06858;63222;25287;25287;72374;COMMUNE DE VILLAINES LA CARELLE;2019-07-12;00048357;0;CC Maine Saosnois;31;160838.92939288;72;582200983.266689;Juillet 2018;sig.territoires.pdl_ctr.31;CC Maine Saosnois;CC Maine Saosnois;CTR;72374;72;2019_08734_00;48.3873561577, 0.294814588667;07/2018;86
Les travaux de rénovation énergétique et de mise en accessibilité de la mairie;;;23I02512;18I06679;204000;47000;47000;;COMMUNE DE SAINT MARS LA REORTHE;2021-09-23;85000899;;Pays des Herbiers;17;117942.86919888;85;250332696.371675;Juillet 2018;sig.territoires.pdl_ctr.17;Pays des Herbiers;Pays des Herbiers;CTR;;;2021_11111_01;;07/2018;104
L'installation de panneaux photovoltaïques sur la nouvelle mairie;Loire-Atlantique;HERIC;19I09025;17I04913;163250;17970;17970;44073;COMMUNE D HERIC;2019-09-27;00049474;;Erdre et Gesvres;13;166735.21638325;44;509712555.822317;Mai 2017;sig.territoires.pdl_ctr.13;Communauté de communes d'Erdre et Gesvres;Erdre et Gesvres;CTR;44073;44;2019_10069_01;47.4207936826, -1.63717757742;05/2017;113
La construction de la nouvelle gendarmerie de Gorron;;;23I05215;18I07457;2733188;129050;129050;;COMMUNAUTE DE COMMUNES DU BOCAGE MAYENNAIS;2021-09-23;00150063;;Bocage Mayennais;9;189865.43542796;53;529745022.271069;Juillet 2018;sig.territoires.pdl_ctr.9;Communauté de communes du Bocage Mayennais;Bocage Mayennais;CTR;;;2021_12429_01;;07/2018;83
L'extension du presbytère pour réalisation d'une nouvelle mairie à Les Touches;Loire-Atlantique;LES TOUCHES;19I09039;17I04913;448049;30000;30000;44205;COMMUNE DES TOUCHES;2019-09-27;00049578;0;Erdre et Gesvres;13;166735.21638325;44;509712555.822317;Mai 2017;sig.territoires.pdl_ctr.13;Communauté de communes d'Erdre et Gesvres;Erdre et Gesvres;CTR;44205;44;2019_13146;47.4523563976, -1.42756883238;05/2017;113
L'acquisition de l'ensemble immobilier scolaire Beaussire;;;23I05180;18I07459;920000;500000;400000;;COMMUNE DE LUCON;2021-09-23;85000918;;Sud Vendée Littoral;48;297801.82823589;85;950717267.472634;Juillet 2018;sig.territoires.pdl_ctr.48;CC Sud Vendée Littoral;Sud Vendée Littoral;CTR;;;2021_12481_01;;07/2018;106
Le Pôle d'affaires et la Maison de l'Intercommunalité;Loire-Atlantique;LA BAULE-ESCOUBLAC;19I09037;17I09003;600000;120000;120000;44055;COMMUNAUTE D AGGLOMERATION DE LA PRESQU ILE DE GUERANDE ATLANTIQUE;2019-09-27;00045935;0;Cap Atlantique;41;145725.47329518;44;395838108.965296;Septembre 2017;sig.territoires.pdl_ctr.41;Cap Atlantique;Cap Atlantique;CTR;44055;44;2019_12005;47.2909720179, -2.3538291745;09/2017;125
La création d'une déchèterie à Ancinnes et d'un centre de collecte de proximité à Saint Paul le Gaultier;;;23I02687;18I09842;510600;177611;177611;;CC HAUTE SARTHE ALPES MANCELLES;2021-09-23;00130413;;CC Haute Sarthe Alpes Mancelles;46;208876.08303841;72;922846721.323114;Novembre 2018;sig.territoires.pdl_ctr.46;Pays de la Haute Sarthe;Pays de la Haute Sarthe;CTR;;;2021_12410_01;;11/2018;87
Le réaménagement du conservatoire de musique intercommunal;Vendée;SAINT-JEAN-DE-MONTS;19I08939;18I02799;175145;87573;87573;85234;COMMUNAUTE DE COMMUNES OCEAN MARAIS DE MONTS;2019-09-27;85000455;0;Océan Marais de Monts;43;97448.69013118;85;184686424.300016;Avril 2018;sig.territoires.pdl_ctr.43;Océan Marais de Monts;Océan Marais de Monts;CTR;85234;85;2019_11052;46.8021968737, -2.04839789308;04/2018;101
La création du Centre culturel Coféa;;;21I10751;18I09842;553700;0;;;COMMUNE DE FRESNAY SUR SARTHE;2021-09-23;00058155;;CC Haute Sarthe Alpes Mancelles;46;208876.08303841;72;922846721.323114;Novembre 2018;sig.territoires.pdl_ctr.46;Pays de la Haute Sarthe;Pays de la Haute Sarthe;CTR;;;2021_12411_00;;11/2018;87
La construction d'un atelier-relais à Doué en Anjou;Maine-et-Loire;DOUE EN ANJOU (49125);19I09002;18I05643;818686;204670;204670;49328;CA SAUMUR VAL DE LOIRE;2019-09-27;00049460;0;Saumur Val de Loire;28;222936.82254543;49;1244790494.62575;Mai 2018;sig.territoires.pdl_ctr.28;Saumur Val de Loire;Saumur Val de Loire;CTR;49328;49;2019_10974;47.2673853525, -0.0830410591988;05/2018;123
La réhabilitation et l'agrandissement de la garderie périscolaire;;;23I04999;19I03414;486917;96750;96750;;COMMUNE DE PONTVALLAIN;2021-09-23;00150056;;CC du Pays Fléchois;49;306001.78232882;72;1427230046.65579;;sig.territoires.pdl_ctr.49;PETR Pays Vallée du Loir;Pays Vallée du Loir;CTR;;;2021_12393_01;;;90
La rénovation de la salle omnisports;Loire-Atlantique;SAINT-LEGER-LES-VIGNES;19I08946;18I06834;146633;60000;60000;44171;MAIRIE DE SAINT LEGER LES VIGNES;2019-09-27;00049478;0;Nantes Métropole;6;181264.28832122;44;534212730.160229;Juillet 2018;sig.territoires.pdl_ctr.6;Nantes Métropole;Nantes Métropole;CDM;44171;44;2019_10111;47.1429694401, -1.7140364404;07/2018;132
L'acquisition d'un ancien local commercial;;;21I10773;19I03414;154315;76527;76527;;COMMUNE DE LE GRAND LUCE;2021-09-23;00149720;;CC du Pays Fléchois;49;306001.78232882;72;1427230046.65579;;sig.territoires.pdl_ctr.49;PETR Pays Vallée du Loir;Pays Vallée du Loir;CTR;;;2021_12398_00;;;90
La rénovation et la réhabilitation énergétique d'un bâtiment communal;Vendée;VOUILLE-LES-MARAIS;19I08935;18I07459;506883;147231;147231;85304;COMMUNE DE VOUILLE LES MARAIS;2019-09-27;85000454;147231;Sud Vendée Littoral;48;297801.82823589;85;950717267.472634;Juillet 2018;sig.territoires.pdl_ctr.48;CC Sud Vendée Littoral;Sud Vendée Littoral;CTR;85304;85;2019_10398;46.3891941167, -0.968106001439;07/2018;106
L'amélioration de l'efficacité énergétique de l'éclairage public;Sarthe;CURES;19I08914;18I09952;43816;10000;10000;72111;COMMUNE DE CURES;2019-09-27;00048729;10000;;;;;;;;;;;72111;72;2019_10347;48.0846394961, 0.0166005701727;;
La rénovation de l'éclairage public;;;19I08917;18I09952;43745;21842;21842;;COMMUNE DE CONLIE;2019-09-27;00049485;;;;;;;;;;;;;;2019_10353_01;;;
La rénovation de l'éclairage public;Sarthe;SAINT-SYMPHORIEN;19I08918;18I09952;13850;10000;10000;72321;COMMUNE DE SAINT SYMPHORIEN;2019-09-27;00048890;10000;;;;;;;;;;;72321;72;2019_10361;48.0785627545, -0.140972858304;;
La construction d'une maison d'assistantes maternelles;Sarthe;MULSANNE;19I08898;19I04948;313869;62774;62774;72213;COMMUNE DE MULSANNE;2019-09-27;00049371;0;CU Le Mans Métropole;20;141570.43537983;72;268048561.841433;Juin 2019;sig.territoires.pdl_ctr.20;CU Le Mans Métropole;CU Le Mans Métropole;CDM;72213;72;2019_10336;47.9186376268, 0.244158355853;06/2019;91
Le projet de cabinets médicaux;Loire-Atlantique;ROUGE;19I10724;17I04914;356684;115000;115000;44146;COMMUNE DE ROUGE;2019-11-15;00051437;0;Châteaubriant-Derval;19;192160.53583929;44;884476807.089572;Mai 2017;sig.territoires.pdl_ctr.19;Communauté de communes Châteaubriant Derval;Châteaubriant-Derval;CTR;44146;44;2019_15530_00;47.7704881323, -1.43409809918;05/2017;114
La réhabilitation du réseau de déchetteries;Loire-Atlantique;INTERCOMMUNALE;19I10726;17I06805;230000;40000;40000;44129;COMMUNAUTE DE COMMUNES DU PAYS DE PONTCHATEAU ST GILDAS DES BOIS;2019-11-15;00051769;0;Pays de Pontchâteau St Gildas des Bois;1;130121.86476614;44;327059918.271195;Juillet 2017;sig.territoires.pdl_ctr.1;Communauté de communes de Pont Château Saint Gildas des Bois;Pays de Pontchâteau St Gildas des Bois;CTR;44129;44;2019_15532;47.433636363, -2.09556089039;07/2017;115
Le réaménagement d'un  bâtiment en vue de la création d'une Maison France Services;Maine-et-Loire;BRISSAC LOIRE AUBANCE;19I10535;17I08581;446000;108161;108161;49050;COMMUNE DE BRISSAC LOIRE AUBANCE;2019-11-15;00051820;;Loire Layon Aubance;29;220718.82914478;49;613435516.735679;Septembre 2017;sig.territoires.pdl_ctr.29;Loire Layon Aubance;Loire Layon Aubance;CTR;49050;49;2019_15596_01;47.3416678749, -0.441366325976;09/2017;121
L'aménagement d'un espace jeunesse à St Aubin de Luigné;Maine-et-Loire;VAL DU LAYON;19I10537;17I08581;174900;35733;;49292;COMMUNE DE VAL DU LAYON;2019-11-15;00051811;35733;Loire Layon Aubance;29;220718.82914478;49;613435516.735679;Septembre 2017;sig.territoires.pdl_ctr.29;Loire Layon Aubance;Loire Layon Aubance;CTR;49292;49;2019_15603;47.3002199454, -0.640314853216;09/2017;121
L'aménagement d'une Liaison douce;Loire-Atlantique;CORSEPT;19I10732;17I09761;183000;72000;72000;44046;COMMUNAUTE DE COMMUNES DU SUD ESTUAIRE;2019-11-15;00050359;72000;Sud Estuaire;40;69676.17445778;44;202807972.29704;Novembre 2017;sig.territoires.pdl_ctr.40;Sud Estuaire;Sud Estuaire;CTR;44046;44;2019_15540;47.2600100383, -2.09386404628;11/2017;128
La rénovation de la piste d'athlétisme à Ancenis-Saint-Géréon;Loire-Atlantique;ANCENIS;19I10735;17I09762;1123342;250000;250000;44003;COMMUNE DE ANCENIS SAINT GEREON;2019-11-15;00049692;0;Pays d'Ancenis;56;189953.08705022;44;865594442.852705;Novembre 2017;sig.territoires.pdl_ctr.56;Pays d'Ancenis;Pays d'Ancenis;CTR;44003;44;2019_15543;47.3833270209, -1.18241880879;11/2017;126
La rénovation énergétique d'un bâtiment communal;Sarthe;SAINT REMY DE SILLE;19I10563;18I09952;51255;31778;31778;72315;COMMUNE DE SAINT REMY DE SILLE;2019-11-15;00051542;31778;;;;;;;;;;;72315;72;2019_15786;48.1814893411, -0.102928256564;;
La réhabilitation d'un circuit d'interprétation du patrimoine sur la commune déléguée de Saint Aubin de Luigné;Maine-et-Loire;VAL DU LAYON;20I02265;17I08581;32610;16000;;49292;COMMUNE DE VAL DU LAYON;2020-02-14;00053046;0;Loire Layon Aubance;29;220718.82914478;49;613435516.735679;Septembre 2017;sig.territoires.pdl_ctr.29;Loire Layon Aubance;Loire Layon Aubance;CTR;49292;49;2020_01069;47.3002199454, -0.640314853216;09/2017;121
La rénovation du gîte d'étape;Maine-et-Loire;BEAULIEU SUR LAYON;20I02266;17I08581;91080;15497;;49022;COMMUNE DE BEAULIEU SUR LAYON;2020-02-14;00054018;15497;Loire Layon Aubance;29;220718.82914478;49;613435516.735679;Septembre 2017;sig.territoires.pdl_ctr.29;Loire Layon Aubance;Loire Layon Aubance;CTR;49022;49;2020_01070;47.3187109536, -0.600035399851;09/2017;121
Les travaux de sécurisation des installations électrique du théâtre;Maine-et-Loire;LA POSSONNIERE;20I02269;17I08581;23720;15918;15918;49247;COMMUNE DE LA POSSONNIERE;2020-02-14;00053851;0;Loire Layon Aubance;29;220718.82914478;49;613435516.735679;Septembre 2017;sig.territoires.pdl_ctr.29;Loire Layon Aubance;Loire Layon Aubance;CTR;49247;49;2020_01073_00;47.3814407983, -0.708738811093;09/2017;121
Les travaux d'extension de vestiaires de Football au complexe sportif Calonna;Maine-et-Loire;CHALONNES SUR LOIRE;20I02282;17I08581;152748;98198;98198;49063;COMMUNE DE CHALONNES SUR LOIRE;2020-02-14;00054036;0;Loire Layon Aubance;29;220718.82914478;49;613435516.735679;Septembre 2017;sig.territoires.pdl_ctr.29;Loire Layon Aubance;Loire Layon Aubance;CTR;49063;49;2020_01119;47.3494785235, -0.772675582911;09/2017;121
L'achat de véhicules et vélos électriques sur Mauges Communauté;Maine-et-Loire;BEAUPREAU EN MAUGES;20I02285;17I08582;165000;96097;96097;49023;MAUGES COMMUNAUTE;2020-02-14;00052521;50000;Mauges Communauté;5;274965.40485114;49;1318044533.54153;Septembre 2017;sig.territoires.pdl_ctr.5;Mauges Communauté;Mauges Communauté;CTR;49023;49;2020_02393;47.2125984545, -0.983619028639;09/2017;122
Le réaménagement d'un commerce alimentaire à Belligné;Loire-Atlantique;LOIREAUXENCE;20I02240;17I09762;518825;162145;162145;44213;COMMUNE DE LOIREAUXENCE;2020-02-14;00049812;0;Pays d'Ancenis;56;189953.08705022;44;865594442.852705;Novembre 2017;sig.territoires.pdl_ctr.56;Pays d'Ancenis;Pays d'Ancenis;CTR;44213;44;2020_00927;47.4023133343, -1.0243274407;11/2017;126
La réfection de l'éclairage public;;;20I02299;18I09952;20619;8259;8259;;COMMUNE DE RUILLE EN CHAMPAGNE;2020-02-14;00053767;;;;;;;;;;;;;;2020_01326_00;;;
L'achat d'un véhicule de service électrique;Sarthe;DISSAY SOUS COURCILLON;20I02307;19I03414;13689;10000;10000;72115;COMMUNE DE DISSAY SOUS COURCILLON;2020-02-14;00054369;10000;CC du Pays Fléchois;49;306001.78232882;72;1427230046.65579;;sig.territoires.pdl_ctr.49;PETR Pays Vallée du Loir;Pays Vallée du Loir;CTR;72115;72;2020_01349;47.6664102233, 0.484524622495;;90
72 - LE MANS METROPOLE - VILLE DU MANS - Rénovation énergétique de la Maison George Sand au Mans;Sarthe;LE MANS;20I02560;19I04948;767722;100000;100000;72181;COMMUNE DU MANS;2020-02-14;00052428;100000;CU Le Mans Métropole;20;141570.43537983;72;268048561.841433;Juin 2019;sig.territoires.pdl_ctr.20;CU Le Mans Métropole;CU Le Mans Métropole;CDM;72181;72;2020_01844_00;47.9885256718, 0.200030493539;06/2019;91
La réalisation d'itinéraires cyclables communautaires;Loire-Atlantique;GRANDCHAMPS-DES-FONTAINES;20I04506;17I04913;525000;133750;133750;44066;COMMUNAUTE DE COMMUNES D ERDRE GESVRES;2020-04-30;00056303;133750;Erdre et Gesvres;13;166735.21638325;44;509712555.822317;Mai 2017;sig.territoires.pdl_ctr.13;Communauté de communes d'Erdre et Gesvres;Erdre et Gesvres;CTR;44066;44;2020_04476;47.3606796643, -1.61754475868;05/2017;113
Le plan de signalétique : refonte de la signalisation directionnelle et informative globale de la commune dans un but d'attractivité touristique;Loire-Atlantique;LA PLAINE-SUR-MER;20I04507;17I08233;138797;61293;61293;44126;COMMUNE DE LA PLAINE SUR MER;2020-04-30;00055835;0;Pornic Agglo Pays de Retz;33;137060.38656142;44;451066582.29291;Septembre 2017;sig.territoires.pdl_ctr.33;Communauté d'Agglomération de Pornic Cœur Pays de Retz;Pornic Agglo Pays de Retz;CTR;44126;44;2020_04479;47.1443222693, -2.18345496077;09/2017;127
L'acquisition de véhicules électriques par la commune d'Ombrée d'Anjou;;;20I04479;18I05642;179688;133070;133070;;COMMUNE DE OMBREE D ANJOU;2020-04-30;00055509;;Anjou Bleu Communauté;57;184223.75006092;49;654967768.886332;Mai 2018;sig.territoires.pdl_ctr.57;Anjou Bleu Communauté;Anjou Bleu Communauté;CTR;;;2020_04339_00;;05/2018;118
La construction d'un multi-accueil à la Chabossière;Loire-Atlantique;COUERON;20I04502;18I06834;1777000;153262;153262;44047;COMMUNE DE COUERON;2020-04-30;00056284;0;Nantes Métropole;6;181264.28832122;44;534212730.160229;Juillet 2018;sig.territoires.pdl_ctr.6;Nantes Métropole;Nantes Métropole;CDM;44047;44;2020_04706;47.2309985029, -1.72929002573;07/2018;132
Les études préliminaires à l'aménagement de trois chronolignes;Sarthe;LE MANS;20I04492;19I04948;304404;60880;60880;72181;LE MANS METROPOLE COMMUNAUTE URBAINE;2020-04-30;00055451;0;CU Le Mans Métropole;20;141570.43537983;72;268048561.841433;Juin 2019;sig.territoires.pdl_ctr.20;CU Le Mans Métropole;CU Le Mans Métropole;CDM;72181;72;2020_04649;47.9885256718, 0.200030493539;06/2019;91
Le projet de la Cité des compétences;Loire-Atlantique;MACHECOUL-SAINT-MEME;20I04721;20I03661;75000;43000;43000;44087;COMMUNAUTE DE COMMUNES SUD RETZ ATLANTIQUE;2020-04-30;00056223;0;;;;;;;;;;;44087;44;2020_07140;46.9910784513, -1.82345670327;;
Attractivité du territoire - marque employeur;Mayenne;CRAON;20I04715;20I03662;41151;30000;30000;53084;CC DU PAYS DE CRAON;2020-04-30;00056177;0;;;;;;;;;;;53084;53;2020_07103;47.8454412251, -0.943066490216;;
La mise hors d'eau du bâtiment de la gare de Torfou-Le longeron-Tiffauges en vue de son aménagement futur;;;20I05938;17I08582;238919;171558;171558;;COMMUNE DE SEVREMOINE;2020-05-29;00057601;;Mauges Communauté;5;274965.40485114;49;1318044533.54153;Septembre 2017;sig.territoires.pdl_ctr.5;Mauges Communauté;Mauges Communauté;CTR;;;2020_06903_00;;09/2017;122
La requalification d'une friche industrielle en espace commercial et d'activités;;;20I05947;18I07459;373996;60473;60473;;COMMUNE DE L ILE D ELLE;2020-05-29;85000640;;Sud Vendée Littoral;48;297801.82823589;85;950717267.472634;Juillet 2018;sig.territoires.pdl_ctr.48;CC Sud Vendée Littoral;Sud Vendée Littoral;CTR;;;2020_06569_00;;07/2018;106
La construction d'une salle de gymnastique;Vendée;MOUTIERS LES MAUXFAITS;20I05948;19I06843;2755233;638100;638100;85156;COMMUNAUTE DE COMMUNES VENDEE GRAND LITTORAL;2020-05-29;85000660;0;Vendée Grand Littoral;50;130718.72390863;85;506742589.437246;Juillet 2019;sig.territoires.pdl_ctr.50;Vendée Grand Littoral;Vendée Grand Littoral;CTR;85156;85;2020_06681;46.489279204, -1.43622387207;07/2019;111
L'étude de faisabilité relative à une gestion des déchets en méthanisation;Sarthe;LOUE;20I07270;17I09880;18000;14400;14400;72168;COMMUNAUTE DE COMMUNES LOUE BRULON NOYEN;2020-07-10;00058630;0;CC Loué - Brûlon - Noyen;52;226944.40757679;72;1117349894.39695;Novembre 2017;sig.territoires.pdl_ctr.52;Pays Vallée de la Sarthe;Pays Vallée de la Sarthe;CTR;72168;72;2020_08342;47.9976308821, -0.138237768355;11/2017;74
L'extension de la salle des fêtes;Mayenne;LIGNIERES ORGERES;20I07265;19I06842;380842;150000;150000;53133;COMMUNE DE LIGNIERES ORGERES;2020-07-10;00054433;0;Mont des Avaloirs;54;160156.70260044;53;546971565.364143;Juillet 2019;sig.territoires.pdl_ctr.54;Mont des Avaloirs;Mont des Avaloirs;CTR;53133;53;2020_08316;48.5288919372, -0.212232237721;07/2019;85
La construction d'un équipement culturel;Maine-et-Loire;LES GARENNES SUR LOIRE;20I09130;17I08581;978950;67142;67142;49167;COMMUNES DES GARENNES SUR LOIRE;2020-09-25;00069016;0;Loire Layon Aubance;29;220718.82914478;49;613435516.735679;Septembre 2017;sig.territoires.pdl_ctr.29;Loire Layon Aubance;Loire Layon Aubance;CTR;49167;49;2020_09868;47.40011602, -0.484584915233;09/2017;121
Les acquisitions foncières en vue de la réalisation d'un foyer logement pour personnes âgées;Sarthe;NOTRE DAME DU PE;20I09165;17I09881;61340;45000;45000;72232;COMMUNE DE NOTRE DAME DU PE;2020-09-25;00069453;0;;;;;;;;;;;72232;72;2020_09921;47.7258292037, -0.337170709008;;
La création d'un city-stade;;;20I09326;18I06679;91992;27373;27373;;COMMUNE DES EPESSES;2020-09-25;85000716;;Pays des Herbiers;17;117942.86919888;85;250332696.371675;Juillet 2018;sig.territoires.pdl_ctr.17;Pays des Herbiers;Pays des Herbiers;CTR;;;2020_09825_00;;07/2018;104
La création d'une liaison douce entre les bourgs de Bernay et de Neuvy;Sarthe;BERNAY NEUVY EN CHAMPAGNE;20I09161;18I09952;114000;34200;34200;72219;COMMUNE DE BERNAY NEUVY EN CHAMPAGNE;2020-09-25;00071803;34200;;;;;;;;;;;72219;72;2020_09880;48.0792849605, -0.0218826401128;;
La mise en oeuvre d'équipements sportifs cyclistes sur le site du Vélodrome Léon Bollée;Sarthe;LE MANS;20I09144;19I04948;896761;160000;160000;72181;COMMUNE DU MANS;2020-09-25;00058668;0;CU Le Mans Métropole;20;141570.43537983;72;268048561.841433;Juin 2019;sig.territoires.pdl_ctr.20;CU Le Mans Métropole;CU Le Mans Métropole;CDM;72181;72;2020_10655;47.9885256718, 0.200030493539;06/2019;91
La rénovation d'un logement communal;Loire-Atlantique;VUE;20I11973;17I08233;18231;11412;11412;44220;COMMUNE DE VUE;2020-11-13;00121412;0;Pornic Agglo Pays de Retz;33;137060.38656142;44;451066582.29291;Septembre 2017;sig.territoires.pdl_ctr.33;Communauté d'Agglomération de Pornic Cœur Pays de Retz;Pornic Agglo Pays de Retz;CTR;44220;44;2020_13638;47.1941974605, -1.9008768965;09/2017;127
Les travaux de réhabilitation de la MSAP, commune déléguée de Thouarcé;Maine-et-Loire;BELLEVIGNE EN LAYON;20I11787;17I08581;998216;224517;224517;49345;COMMUNE DE BELLEVIGNE EN LAYON;2020-11-13;00121260;188654;Loire Layon Aubance;29;220718.82914478;49;613435516.735679;Septembre 2017;sig.territoires.pdl_ctr.29;Loire Layon Aubance;Loire Layon Aubance;CTR;49345;49;2020_13363;47.2592682331, -0.517923916545;09/2017;121
Les travaux d'installation de panneaux photovoltaïques sur la toiture du cercle Léon LEGAULT;Maine-et-Loire;SAINT JEAN DE LA CROIX;20I11789;17I08581;43356;10000;10000;49288;COMMUNE DE SAINT JEAN DE LA CROIX;2020-11-13;00120481;10000;Loire Layon Aubance;29;220718.82914478;49;613435516.735679;Septembre 2017;sig.territoires.pdl_ctr.29;Loire Layon Aubance;Loire Layon Aubance;CTR;49288;49;2020_13366;47.4108613803, -0.588351617749;09/2017;121
La construction d'une halle de sports et loisirs;Vendée;BARBATRE;20I11774;17I08584;1637059;299600;299600;85011;COMMUNE DE BARBATRE;2020-11-13;85000751;36400;Ile de Noirmoutier;42;58228.61267806;85;49215409.8708768;Septembre 2017;sig.territoires.pdl_ctr.42;Ile de Noirmoutier;Ile de Noirmoutier;CTR;85011;85;2020_13596;46.9335754783, -2.16743559847;09/2017;93
Les études et l'acquisition de terrains pour la ZA des Rues;Mayenne;COSSE LE VIVIEN;20I12007;17I09006;141650;113000;113000;53077;CC DU PAYS DE CRAON;2020-11-13;00122288;0;Pays de Craon;62;169901.29669863;53;646041148.74744;Septembre 2017;sig.territoires.pdl_ctr.62;Pays de Craon;Pays de Craon;CTR;53077;53;2020_13689;47.94585879, -0.934606329089;09/2017;77
La requalification-extension de la ZA  la Maladrerie;Mayenne;ANDOUILLE;20I12009;18I04046;542231;203400;129220;53005;COMMUNAUTE DE COMMUNES DE L ERNEE;2020-11-13;00121237;0;L'Ernée;8;134446.67084716;53;485109090.730026;Avril 2018;sig.territoires.pdl_ctr.8;L'Ernée;L'Ernée;CTR;53005;53;2020_13691;48.1771432995, -0.792693064482;04/2018;82
L'installation de huit terrains multisports et d'un skatepark;Maine-et-Loire;OMBREE D ANJOU;20I11783;18I05642;468277;115000;115000;49248;COMMUNE DE OMBREE D ANJOU;2020-11-13;00109511;0;Anjou Bleu Communauté;57;184223.75006092;49;654967768.886332;Mai 2018;sig.territoires.pdl_ctr.57;Anjou Bleu Communauté;Anjou Bleu Communauté;CTR;49248;49;2020_13339;47.7629344972, -1.19300189799;05/2018;118
La valorisation de l'identité de la Communauté de communes par la mise en place d'une signalétique harmonisée;Sarthe;MAROLLES-LES-BRAULTS;20I12014;18I06858;44377;35501;35501;72189;COMMUNAUTE DE COMMUNES MAINE SAOSNOIS;2020-11-13;00123546;0;CC Maine Saosnois;31;160838.92939288;72;582200983.266689;Juillet 2018;sig.territoires.pdl_ctr.31;CC Maine Saosnois;CC Maine Saosnois;CTR;72189;72;2020_13698;48.2539587745, 0.320191786224;07/2018;86
La rénovation de la mairie et du foyer rural;Vendée;MONSIREIGNE;20I11773;18I08141;435376;100000;100000;85145;COMMUNE DE MONSIREIGNE;2020-11-13;85000730;100000;Pays de Pouzauges;60;109218.55751266;85;320861396.374744;Septembre 2018;sig.territoires.pdl_ctr.60;Communauté de communes du Pays de Pouzauges;Pays de Pouzauges;CTR;85145;85;2020_13595;46.7383480028, -0.931953130855;09/2018;107
La rénovation et extension de l'aire d'accueil des gens du voyage;Loire-Atlantique;NORT SUR ERDRE;23I02800;17I04913;733978;100000;100000;44110;COMMUNAUTE DE COMMUNES D ERDRE GESVRES;2021-02-12;00139643;;Erdre et Gesvres;13;166735.21638325;44;509712555.822317;Mai 2017;sig.territoires.pdl_ctr.13;Communauté de communes d'Erdre et Gesvres;Erdre et Gesvres;CTR;44110;44;2021_04340_01;47.447122285, -1.51824792558;05/2017;113
La réalisation du Schéma de COhérence Territoriale;Loire-Atlantique;ANCENIS SAINT GEREON;23I00672;17I09762;166560;50000;20160;44003;COMMUNAUTE DE COMMUNES DU PAYS D ANCENIS;2021-02-12;00140282;0;Pays d'Ancenis;56;189953.08705022;44;865594442.852705;Novembre 2017;sig.territoires.pdl_ctr.56;Pays d'Ancenis;Pays d'Ancenis;CTR;44003;44;2021_04301_00;47.3833270209, -1.18241880879;11/2017;126
Les travaux complémentaires de viabilité sur les zones d'activités de Beaufay et Bonnétable;;;23I05121;18I06858;46900;37520;;;COMMUNAUTE DE COMMUNES MAINE SAOSNOIS;2021-02-12;00137686;;CC Maine Saosnois;31;160838.92939288;72;582200983.266689;Juillet 2018;sig.territoires.pdl_ctr.31;CC Maine Saosnois;CC Maine Saosnois;CTR;;;2021_04344_01;;07/2018;86
La construction de bâtiments à vocation économique sur le parc d'activités de LoirEcopark;;;23I04994;19I03414;1242493;614071;614071;;COMMUNAUTE DE COMMUNES SUD SARTHE;2021-02-12;00123879;;CC du Pays Fléchois;49;306001.78232882;72;1427230046.65579;;sig.territoires.pdl_ctr.49;PETR Pays Vallée du Loir;Pays Vallée du Loir;CTR;;;2021_04356_01;;;90
La transformation d'un bâtiment industriel en salle polyvalente;;;23I05101;19I00771;795000;100000;100000;;COMMUNE DE LOMBRON;2021-03-31;00137374;;CC du Pays de l'Huisne Sarthoise;35;265241.4780676;72;1290421266.50866;Février 2019;sig.territoires.pdl_ctr.35;Pays du Perche Sarthois;Pays du Perche Sarthois;CTR;;;2021_05387_01;;02/2019;88
La réhabiliation du logement de la mairie;;;23I05126;19I06842;260000;49910;49910;;COMMUNE DE SAINT AUBIN DU DESERT;2021-03-31;00138364;;Mont des Avaloirs;54;160156.70260044;53;546971565.364143;Juillet 2019;sig.territoires.pdl_ctr.54;Mont des Avaloirs;Mont des Avaloirs;CTR;;;2021_05352_02;;07/2019;85
L'aménagement d'une plateforme à la déchetterie de Craon;Mayenne;CRAON;23I05005;17I09006;525000;230000;230000;53084;CC DU PAYS DE CRAON;2021-05-21;00148450;;Pays de Craon;62;169901.29669863;53;646041148.74744;Septembre 2017;sig.territoires.pdl_ctr.62;Pays de Craon;Pays de Craon;CTR;53084;53;2021_08426_01;47.8454412251, -0.943066490216;09/2017;77
L'acquisition de véhicules électriques et l'installation de bornes de recharge;Loire-Atlantique;SAVENAY;21I07878;17I09760;134353;107482;107482;44195;COMMUNAUTE DE COMMUNES ESTUAIRE ET SILLON;2021-05-21;00148679;107482;Estuaire et Sillon;61;112337.65867316;44;313121598.740399;Novembre 2017;sig.territoires.pdl_ctr.61;Communauté de communes d'Estuaire et Sillon;Estuaire et Sillon;CTR;44195;44;2021_07611;47.3570647854, -1.91842119102;11/2017;129
La restructuration de l'école Nicolas Grippon;;;23I02681;18I09952;460000;102000;102000;;COMMUNE DE ROUESSE VASSE;2021-05-21;00135088;;;;;;;;;;;;;;2021_08432_01;;;
L'aménagement et la requalification du cimetière communal;Loire-Atlantique;LE GAVRE;23I04873;17I04912;202000;51509;;44062;COMMUNE DU GAVRE;2021-09-23;00150483;;Région de Blain;12;104466.22577119;44;214288660.02636;Mai 2017;sig.territoires.pdl_ctr.12;Communauté de communes de la Région de Blain;Région de Blain;CTR;44062;44;2021_11410_01;47.5279203716, -1.79412055817;05/2017;112
La revitalisation du centre-ville de Chemillé;Maine-et-Loire;CHEMILLE EN ANJOU;23I00506;17I08582;1672505;778428;778428;49092;COMMUNE DE CHEMILLE EN ANJOU;2021-09-23;00149298;;Mauges Communauté;5;274965.40485114;49;1318044533.54153;Septembre 2017;sig.territoires.pdl_ctr.5;Mauges Communauté;Mauges Communauté;CTR;49092;49;2021_11106_00;47.2272268469, -0.730188160448;09/2017;122
La rénovation extérieure de la salle de la cité et de ses abords;;;23I02742;17I09578;204336;35041;35041;;COMMUNE DE MALLIEVRE;2021-09-23;85000904;;Pays de Mortagne;18;126807.36564022;85;228566018.366052;Novembre 2017;sig.territoires.pdl_ctr.18;Pays de Mortagne;Pays de Mortagne;CTR;;;2021_11112_01;;11/2017;95
Les travaux de rénovation de l'église Saint-Pierre;;;23I05081;17I09578;886352;88291;88291;;LA GAUBRETIERE;2021-09-23;85000951;;Pays de Mortagne;18;126807.36564022;85;228566018.366052;Novembre 2017;sig.territoires.pdl_ctr.18;Pays de Mortagne;Pays de Mortagne;CTR;;;2021_11115_01;;11/2017;95
La réhabilitation du siège de la CCSE;Loire-Atlantique;PAIMBŒUF;23I04906;17I09761;415400;188000;188000;44116;COMMUNAUTE DE COMMUNES DU SUD ESTUAIRE;2021-09-23;00148773;;Sud Estuaire;40;69676.17445778;44;202807972.29704;Novembre 2017;sig.territoires.pdl_ctr.40;Sud Estuaire;Sud Estuaire;CTR;44116;44;2021_11438_01;47.2863992883, -2.02807425552;11/2017;128
La construction de plateformes de déchets verts et les aménagements de déchèteries;Sarthe;LOUE;23I05128;17I09880;570300;202170;202170;72168;LBN COMMUNAUTE;2021-09-23;00150511;;CC Loué - Brûlon - Noyen;52;226944.40757679;72;1117349894.39695;Novembre 2017;sig.territoires.pdl_ctr.52;Pays Vallée de la Sarthe;Pays Vallée de la Sarthe;CTR;72168;72;2021_12389_02;47.9976308821, -0.138237768355;11/2017;74
La rénovation du logement du gardien du camping;Mayenne;MAYENNE;21I11203;18I00723;122000;94240;94240;53147;MAYENNE COMMUNAUTE;2021-09-23;00150495;94240;Mayenne Communauté;3;193726.21308398;53;626754357.991273;Février 2018;sig.territoires.pdl_ctr.3;Mayenne Communauté;Mayenne Communauté;CTR;53147;53;2021_14166;48.3074609449, -0.614799950799;02/2018;79
L' acquisition d'un immeuble du centre-bourg en vue de la création de logements locatifs communaux à Landivy;Mayenne;LANDIVY;21I10784;18I07457;142593;86400;86400;53125;COMMUNE DE LANDIVY;2021-09-23;00150506;;Bocage Mayennais;9;189865.43542796;53;529745022.271069;Juillet 2018;sig.territoires.pdl_ctr.9;Communauté de communes du Bocage Mayennais;Bocage Mayennais;CTR;53125;53;2021_12430;48.4787671606, -1.03882246254;07/2018;83
La viabilisation de la Zone d'Activités de Oisseau;;;23I05216;18I07457;137383;100000;100000;;COMMUNAUTE DE COMMUNES DU BOCAGE MAYENNAIS;2021-09-23;00150494;;Bocage Mayennais;9;189865.43542796;53;529745022.271069;Juillet 2018;sig.territoires.pdl_ctr.9;Communauté de communes du Bocage Mayennais;Bocage Mayennais;CTR;;;2021_12432_02;;07/2018;83
Les aménagements de la rue Sainte-Marie;;;23I10820;18I07459;173397;28579;28579;;COMMUNE DE GRUES;2021-09-23;85000896;;Sud Vendée Littoral;48;297801.82823589;85;950717267.472634;Juillet 2018;sig.territoires.pdl_ctr.48;CC Sud Vendée Littoral;Sud Vendée Littoral;CTR;;;2021_12488_02;;07/2018;106
La requalification du centre bourg;;;23I05038;19I00771;922590;90000;90000;;COMMUNE DE SILLE LE PHILIPPE;2021-09-23;00057826;;CC du Pays de l'Huisne Sarthoise;35;265241.4780676;72;1290421266.50866;Février 2019;sig.territoires.pdl_ctr.35;Pays du Perche Sarthois;Pays du Perche Sarthois;CTR;;;2021_12399_01;;02/2019;88
La réhabilitation de l'éclairage public;Sarthe;THORIGNE SUR DUE;21I10759;19I00771;99900;24975;24975;72358;COMMUNE DE THORIGNE SUR DUE;2021-09-23;00150551;24975;CC du Pays de l'Huisne Sarthoise;35;265241.4780676;72;1290421266.50866;Février 2019;sig.territoires.pdl_ctr.35;Pays du Perche Sarthois;Pays du Perche Sarthois;CTR;72358;72;2021_12401;48.0297154005, 0.519874230361;02/2019;88
la construction d'une salle sportive multi-activités;;;23I05042;19I00771;1200000;558572;;;COMMUNE DE CONNERRE;2021-09-23;00149993;;CC du Pays de l'Huisne Sarthoise;35;265241.4780676;72;1290421266.50866;Février 2019;sig.territoires.pdl_ctr.35;Pays du Perche Sarthois;Pays du Perche Sarthois;CTR;;;2021_12405_02;;02/2019;88
L'extension du Village d'artisans - ZAE La Chicane;;;23I05116;19I00773;480481;340190;340190;;COMMUNAUTE DE COMMUNES VENDEE SEVRE AUTISE;2021-09-23;85000939;;Vendée Sèvre Autise;22;164911.17006129;85;300390165.394669;Février 2019;sig.territoires.pdl_ctr.22;Communauté de communes de Vendée Sèvre Autise;Vendée Sèvre Autise;CTR;;;2021_12446_01;;02/2019;109
L'extension et la réhabilitation de l'école Aimé Césaire;;;23I06486;19I04943;669450;60628;60628;;COMMUNAUTE DE COMMUNES DU PAYS DES ACHARDS;2021-09-23;85000948;;Pays des Achards;21;104278.42393642;85;226747782.653686;Juin 2019;sig.territoires.pdl_ctr.21;Pays des Achards;Pays des Achards;CTR;;;2021_12438_02;;06/2019;110
L'aménagement de voies de circulation pour les mobilités douces;;;23I04990;19I06781;250000;120000;120000;;COMMUNE DE PLESSE;2021-09-23;00148795;;Redon Bretagne Sud;58;222098.45592879;44;975206076.430979;Juillet 2019;sig.territoires.pdl_ctr.58;Redon Bretagne Sud;Redon Bretagne Sud;CTR;;;2021_11419_01;;07/2019;136
L'extension de l'école;;;23I05448;19I06781;650000;90000;90000;;COMMUNE DE CONQUEREUIL;2021-09-23;00128502;;Redon Bretagne Sud;58;222098.45592879;44;975206076.430979;Juillet 2019;sig.territoires.pdl_ctr.58;Redon Bretagne Sud;Redon Bretagne Sud;CTR;;;2021_11435_01;;07/2019;136
Programme de rénovation thermique et d'efficacité énergétique de 3 logements de la CCMA;;;23I05130;19I06842;190720;109000;;;COMMUNAUTE DE COMMUNES DU MONT DES AVALOIRS;2021-09-23;00150603;;Mont des Avaloirs;54;160156.70260044;53;546971565.364143;Juillet 2019;sig.territoires.pdl_ctr.54;Mont des Avaloirs;Mont des Avaloirs;CTR;;;2021_12426_01;;07/2019;85
49 - CC Loire Layon Aubance - CC LOIRE LAYON AUBANCE - Construction de 2 ateliers relais - zone d'activités l'Eperonnerie - Chalonnes sur Loire;Maine-et-Loire;CHALONNES SUR LOIRE;17I09587;17I08581;409022;87968;87968;49063;CC LOIRE LAYON AUBANCE;2017-11-17;00039407;0;Loire Layon Aubance;29;220718.82914478;49;613435516.735679;Septembre 2017;sig.territoires.pdl_ctr.29;Loire Layon Aubance;Loire Layon Aubance;CTR;49063;49;2017_09989_00;47.3494785235, -0.772675582911;09/2017;121
La rénovation-extension du pôle sportif Maxime Bossis - CC TERRES DE MONTAIGU, CC MONTAIGU-ROCHESERVIERE - CTR 2020 - 85;Vendée;SAINT HILAIRE DE LOULAY;17I09589;17I08583;4397000;1210000;1210000;85224;TERRES DE MONTAIGU COMMUNAUTE D AGGLOMERATION;2017-11-17;85000031;210000;Terres-de-Montaigu;38;167747.72730024;85;383219163.87398;Septembre 2017;sig.territoires.pdl_ctr.38;Terres de Montaigu - Montaigu Rocheservière;Terres-de-Montaigu;CTR;85146;85;2017_09996_00;47.008536823, -1.32766740632;09/2017;92
L'aménagement du Parc d'Activités de la Noë Grée à le Gâvre phase 2 : tranche 1 des travaux - CTR 2020 - Communauté de communes de la Région de Blain;Loire-Atlantique;LE GAVRE;18I03754;17I04912;302000;147600;147600;44062;COMMUNAUTE DE COMMUNES DE LA REGION DE BLAIN;2018-04-20;00044120;0;Région de Blain;12;104466.22577119;44;214288660.02636;Mai 2017;sig.territoires.pdl_ctr.12;Communauté de communes de la Région de Blain;Région de Blain;CTR;44062;44;2018_04388;47.5279203716, -1.79412055817;05/2017;112
Réhabilitation, restructuration extension de l'école maternelle et du restaurant scolaire.;Maine-et-Loire;SEICHES-SUR-LE-LOIR;18I07143;17I06491;1827051;250000;250000;49333;COMMUNE DE SEICHES SUR LE LOIR;2018-07-13;00039864;250000;Anjou Loir et Sarthe;26;172077.9474839;49;457111657.097573;Juillet 2017;sig.territoires.pdl_ctr.26;Communauté de Communes Anjou Loir et Sarthe;Anjou Loir et Sarthe;CTR;49333;49;2018_08379;47.6039171793, -0.358897551801;07/2017;119
la réhabilitation et l'extension de la bibliothèque - Commune de Mozé sur Louet - 49 - CTR CC Loire Layon Aubance;Maine-et-Loire;MOZE-SUR-LOUET;18I07145;17I08581;369388;22381;22381;49222;COMMUNE DE MOZE SUR LOUET;2018-07-13;00039629;0;Loire Layon Aubance;29;220718.82914478;49;613435516.735679;Septembre 2017;sig.territoires.pdl_ctr.29;Loire Layon Aubance;Loire Layon Aubance;CTR;49222;49;2018_08439;47.3588616971, -0.568969169001;09/2017;121
la rénovation de l'éclairage public;Sarthe;JOUE-EN-CHARNIE;18I07671;17I09880;37725;10000;10000;72149;COMMUNE DE JOUE EN CHARNIE;2018-07-13;00040045;10000;CC Loué - Brûlon - Noyen;52;226944.40757679;72;1117349894.39695;Novembre 2017;sig.territoires.pdl_ctr.52;Pays Vallée de la Sarthe;Pays Vallée de la Sarthe;CTR;72149;72;2018_11038_00;48.0154941417, -0.194716478104;11/2017;74
La construction d'une médiathèque - Commune de Saint-Fulgent - 85 - CTR 2020 CC du Pays de Saint Fulgent les Essarts;Vendée;SAINT-FULGENT;18I07154;18I01087;881757;64094;64094;85215;COMMUNE DE SAINT FULGENT;2018-07-13;85000194;0;Pays de Saint-Fulgent – Les Essarts;36;123566.51305289;85;326545965.188948;Février 2018;sig.territoires.pdl_ctr.36;Pays de Saint-Fulgent – Les Essarts;Pays de Saint-Fulgent – Les Essarts;CTR;85215;85;2018_08917_00;46.8705618525, -1.16246465678;02/2018;99
la rénovation thermique et énergétique de l'école Alfred Clément - Commune de Bouillé-Ménard - 49 - CTR 2020 CC Anjou Bleu Communauté;Maine-et-Loire;BOUILLE-MENARD;18I07144;18I05642;55832;22638;22638;49036;COMMUNE DE BOUILLE MENARD;2018-07-13;00040590;22638;Anjou Bleu Communauté;57;184223.75006092;49;654967768.886332;Mai 2018;sig.territoires.pdl_ctr.57;Anjou Bleu Communauté;Anjou Bleu Communauté;CTR;49036;49;2018_08438;47.7381032955, -0.969364603994;05/2018;118
L'acquisition d'un véhicule utilitaire électrique - Commune de Treillières - 44 - CTR 2020 de la Communauté de communes d'Erdre et Gesvres;Loire-Atlantique;TREILLIERES;18I08836;17I04913;19690;15752;15752;44209;COMMUNE DE TREILLIERES;2018-09-28;00041251;15752;Erdre et Gesvres;13;166735.21638325;44;509712555.822317;Mai 2017;sig.territoires.pdl_ctr.13;Communauté de communes d'Erdre et Gesvres;Erdre et Gesvres;CTR;44209;44;2018_10154;47.3178218372, -1.62577302041;05/2017;113
La rénovation thermique des locaux de la mairie - Commune de la Plaine-sur-Mer - 44 - CTR 2020 de la CA Pornic Agglo Pays de Retz;Loire-Atlantique;LA PLAINE-SUR-MER;18I08844;17I08233;408000;73695;73695;44126;COMMUNE DE LA PLAINE SUR MER;2018-09-28;00041209;75000;Pornic Agglo Pays de Retz;33;137060.38656142;44;451066582.29291;Septembre 2017;sig.territoires.pdl_ctr.33;Communauté d'Agglomération de Pornic Cœur Pays de Retz;Pornic Agglo Pays de Retz;CTR;44126;44;2018_10175_00;47.1443222693, -2.18345496077;09/2017;127
Le restaurant de Messan - Acquisition - Commune de Rouans - 44 - CTR 2020 de la CA Pornic agglo Pays de Retz;Loire-Atlantique;ROUANS;18I08852;17I08233;130000;82686;82686;44145;COMMUNE DE ROUANS;2018-09-28;00041333;0;Pornic Agglo Pays de Retz;33;137060.38656142;44;451066582.29291;Septembre 2017;sig.territoires.pdl_ctr.33;Communauté d'Agglomération de Pornic Cœur Pays de Retz;Pornic Agglo Pays de Retz;CTR;44145;44;2018_11636;47.1763592414, -1.84313535499;09/2017;127
L'aménagement d'une ZAC à la Romazière - CC Challans Gois Communauté - 85 - CTR 2020 CC CHALLANS GOIS COMMUNAUTE;;;19I00509;17I09577;1242000;294736;294736;;CC CHALLANS GOIS COMMUNAUTE;2018-09-28;85000129;;Challans Gois Communauté;47;136267.76513018;85;445042641.491996;Novembre 2017;sig.territoires.pdl_ctr.47;Challans Gois Communauté;Challans Gois Communauté;CTR;;;2018_10315_02;;11/2017;94
la réhabilitation et rénovation du restaurant scolaire- COMMUNE DE COEX - 85 - CTR Du Pays de Saint-Gilles Croix de Vie;Vendée;COEX;18I08789;18I07458;240000;53035;53035;85070;COMMUNE DE COEX;2018-09-28;85000200;53035;Pays de St Gilles-Croix-de-Vie;4;126534.03790467;85;293800477.999917;Avril 2018;sig.territoires.pdl_ctr.4;Communauté de communes du Pays de St Gilles-Croix-de-Vie;Pays de St Gilles-Croix-de-Vie;CTR;85070;85;2018_11088;46.7078707764, -1.75788339462;04/2018;105
L'extension de la station de transfert de Guérande - CAP ATLANTIQUE - 44 - CTR 2020  - CA CAP ATLANTIQUE;Loire-Atlantique;GUERANDE (44069);21I04889;17I09003;750000;150000;150000;44055;COMMUNAUTE D AGGLOMERATION DE LA PRESQU ILE DE GUERANDE ATLANTIQUE;2018-11-23;00042058;0;Cap Atlantique;41;145725.47329518;44;395838108.965296;Septembre 2017;sig.territoires.pdl_ctr.41;Cap Atlantique;Cap Atlantique;CTR;44055;44;2018_12725_02;47.2909720179, -2.3538291745;09/2017;125
l'aménagement de la ZAE de la Fleurissonnerie à Thouarsais Bouildroux - 85 - CTR 2020 CC PAYS DE LA CHATAIGNERAIE -;;;18I10391;17I09608;140440;105217;105217;;COMMUNAUTE DE COMMUNES DU PAYS DE LA CHATAIGNERAIE;2018-11-23;85000235;;Pays de la Châtaigneraie;45;135086.67917683;85;317950472.872367;Novembre 2017;sig.territoires.pdl_ctr.45;Pays de la Châtaigneraie;Pays de la Châtaigneraie;CTR;;;2018_13073_00;;11/2017;97
44 - ESTUAIRE ET SILLON - COMMUNE DE SAVENAY - Aménagement d'espaces publics et de voiries aux abords du lac de Savenay;Loire-Atlantique;SAVENAY;18I10732;17I09760;437611;150000;150000;44195;COMMUNE DE SAVENAY;2018-11-23;00043099;0;Estuaire et Sillon;61;112337.65867316;44;313121598.740399;Novembre 2017;sig.territoires.pdl_ctr.61;Communauté de communes d'Estuaire et Sillon;Estuaire et Sillon;CTR;44195;44;2018_12851_00;47.3570647854, -1.91842119102;11/2017;129
la rénovation énergétique du gymnase - 72 - COMMUNE DE GUÉCELARD - CC VAL DE SARTHE -;Sarthe;GUECELARD;18I10388;17I09882;400740;25000;25000;72146;COMMUNE DE GUECELARD;2018-11-23;00041686;25000;;;;;;;;;;;72146;72;2018_12886;47.8842699845, 0.142030828594;;
Le renouvellement de la flotte automobile de la Communauté d'Agglomération Saumur Val de Loire - 49 - Saumur Val de Loire - CTR 2020 Saumur Val de Loire;Maine-et-Loire;SAUMUR;18I10419;18I05643;224000;56000;56000;49328;CA SAUMUR VAL DE LOIRE;2018-11-23;00043520;56000;Saumur Val de Loire;28;222936.82254543;49;1244790494.62575;Mai 2018;sig.territoires.pdl_ctr.28;Saumur Val de Loire;Saumur Val de Loire;CTR;49328;49;2018_13304;47.2673853525, -0.0830410591988;05/2018;123
L'amélioration et la sécurisation de la piscine Val de Thouet - SAUMUR VAL DE LOIRE - 49 - CTR 2020 Saumur Val de Loire;Maine-et-Loire;SAUMUR;18I10420;18I05643;326709;57837;57837;49328;CA SAUMUR VAL DE LOIRE;2018-11-23;00043120;0;Saumur Val de Loire;28;222936.82254543;49;1244790494.62575;Mai 2018;sig.territoires.pdl_ctr.28;Saumur Val de Loire;Saumur Val de Loire;CTR;49328;49;2018_13306_00;47.2673853525, -0.0830410591988;05/2018;123
La modernisation et la rénovation du Centre des Congrès d'Angers dont performances énergétiques - COMMUNE D'ANGERS - 49 - CDM ANGERS LOIRE METROPOLE;Maine-et-Loire;ANGERS;18I10606;18I06680;18457162;1690000;1690000;49007;COMMUNE D ANGERS;2018-11-23;00043067;1690000;Angers Loire Métropole;10;192445.630446;49;676496020.936854;Juillet 2018;sig.territoires.pdl_ctr.10;Angers Loire Métropole;Angers Loire Métropole;CDM;49007;49;2018_13950;47.476837416, -0.556125995444;07/2018;116
L'aménagement d'un magasin (épicerie-boulangerie-café) - COMMUNE DE CHAVAGNE LES REDOUX - 85 - CTR 2020 CC Pays de Pouzauges;;;18I10395;18I08141;37408;8264;8264;;COMMUNE DE CHAVAGNES LES REDOUX;2018-11-23;85000233;;Pays de Pouzauges;60;109218.55751266;85;320861396.374744;Septembre 2018;sig.territoires.pdl_ctr.60;Communauté de communes du Pays de Pouzauges;Pays de Pouzauges;CTR;;;2018_13316_00;;09/2018;107
L'aménagement de la salle Saint Jean - COMMUNE DE MOISDON LA RIVIERE - 44 - CTR 2020 - CC Châteaubriant - Derval;Loire-Atlantique;MOISDON-LA-RIVIERE;19I01590;17I04914;225204;74340;74340;44099;COMMUNE DE MOISDON LA RIVIERE;2019-02-08;00039413;74340;Châteaubriant-Derval;19;192160.53583929;44;884476807.089572;Mai 2017;sig.territoires.pdl_ctr.19;Communauté de communes Châteaubriant Derval;Châteaubriant-Derval;CTR;44099;44;2019_01197_01;47.6222503824, -1.37465777304;05/2017;114
44 - PORNIC AGGLO - CA PORNIC AGGLO PAYS DE RETZ - Construction d'une déchèterie nouvelle génération (Pôle environnemental) à Saint Hilaire de Chaléons;Loire-Atlantique;SAINT-HILAIRE-DE-CHALEONS (44164);19I01595;17I08233;1795907;823000;823000;44131;PORNIC AGGLO PAYS DE RETZ;2019-02-08;00044724;0;Pornic Agglo Pays de Retz;33;137060.38656142;44;451066582.29291;Septembre 2017;sig.territoires.pdl_ctr.33;Communauté d'Agglomération de Pornic Cœur Pays de Retz;Pornic Agglo Pays de Retz;CTR;44131;44;2019_01278;47.1223972452, -2.05182334479;09/2017;127
l'extension des locaux administratifs de la Communauté de communes de l'Ernée - COMMUNAUTÉ DE COMMUNES DE L'ERNÉE - 53 -CTR 2020 CC ERNEE;Mayenne;ERNEE;19I01618;18I04046;896015;240000;240000;53096;COMMUNAUTE DE COMMUNES DE L ERNEE;2019-02-08;00044149;0;L'Ernée;8;134446.67084716;53;485109090.730026;Avril 2018;sig.territoires.pdl_ctr.8;L'Ernée;L'Ernée;CTR;53096;53;2019_01094;48.3039992806, -0.93628278715;04/2018;82
l'extension de la Zone d'Activités de La Chauvière à Landivy- COMMUNAUTE DE COMMUNES DU BOCAGE MAYENNAIS - 53 -CTR 2020  CC BOCAGE MAYENNAIS;Mayenne;LANDIVY;19I01615;18I07457;538559;150000;150000;53125;COMMUNAUTE DE COMMUNES DU BOCAGE MAYENNAIS;2019-02-08;00043702;0;Bocage Mayennais;9;189865.43542796;53;529745022.271069;Juillet 2018;sig.territoires.pdl_ctr.9;Communauté de communes du Bocage Mayennais;Bocage Mayennais;CTR;53125;53;2019_01056_00;48.4787671606, -1.03882246254;07/2018;83
la rénovation énergétique et restructuration de la salle polyvalente - COMMUNE DE CORPE - 85 - CTR 2020 de la CC Sud Vendée Littoral -;Vendée;CORPE;19I01609;18I07459;325128;56122;56122;85073;COMMUNE DE CORPE;2019-02-08;85000284;56122;Sud Vendée Littoral;48;297801.82823589;85;950717267.472634;Juillet 2018;sig.territoires.pdl_ctr.48;CC Sud Vendée Littoral;Sud Vendée Littoral;CTR;85073;85;2019_01674;46.5050234767, -1.17034425311;07/2018;106
la rénovation de l'éclairage public- COMMUNE DE LE TRONCHET -72 - CTR 2020 CC HAUTE SARTHE ALPES MANCELLES;Sarthe;LE TRONCHET;19I01625;18I09842;53407;20000;20000;72362;COMMUNE DE LE TRONCHET;2019-02-08;00044560;20000;CC Haute Sarthe Alpes Mancelles;46;208876.08303841;72;922846721.323114;Novembre 2018;sig.territoires.pdl_ctr.46;Pays de la Haute Sarthe;Pays de la Haute Sarthe;CTR;72362;72;2019_01129;48.1800998557, 0.0814798946478;11/2018;87
l'élaboration et mise en oeuvre de la stratégie tourisme - SYNDICAT MIXTE DU PAYS DE LA HAUTE SARTHE - 72 - CTR 2020 CC HAUTE SARTHE ALPES MANCELLES;Sarthe;VIVOIN;19I01634;18I09842;57860;20350;20350;72380;SYNDICAT MIXTE DU PAYS DE LA HAUTE SARTHE;2019-02-08;00044211;0;CC Haute Sarthe Alpes Mancelles;46;208876.08303841;72;922846721.323114;Novembre 2018;sig.territoires.pdl_ctr.46;Pays de la Haute Sarthe;Pays de la Haute Sarthe;CTR;72380;72;2019_01954;48.2401913817, 0.162292381772;11/2018;87
la création d'un terrain multisports 'city park'- BENET - 85 - CTR 2020 CC Vendée Sèvre Autise;Vendée;BENET;19I01610;19I00773;34050;25000;25000;85020;COMMUNE DE BENET;2019-02-08;85000318;0;Vendée Sèvre Autise;22;164911.17006129;85;300390165.394669;Février 2019;sig.territoires.pdl_ctr.22;Communauté de communes de Vendée Sèvre Autise;Vendée Sèvre Autise;CTR;85020;85;2019_01675;46.368873213, -0.613959918706;02/2019;109
La desserte routière du nouvel hôpital intercommunal Sèvre et Loire - tranches 1 et 2 - COMMUNE DU LOROUX-BOTTEREAU - 44 - CTR - CC SEVRE ET LOIRE;Loire-Atlantique;LE LOROUX-BOTTEREAU;19I01599;19I00785;721485;92928;92928;44084;COMMUNE DU LOROUX BOUTTEREAU;2019-02-08;00045940;0;Sèvre et Loire;24;96321.1295473;44;277438576.414423;Février 2019;sig.territoires.pdl_ctr.24;"Communauté de communes de Sèvre et Loire
 Communauté de communes de Sèvre et Loire";Sèvre et Loire;CTR;44084;44;2019_01473;47.2333976166, -1.33170187264;02/2019;134
L'extension d'un restaurant scolaire;Loire-Atlantique;LE GAVRE;19I03587;17I04912;263000;55000;55000;44062;COMMUNE DU GAVRE;2019-04-05;00046044;0;Région de Blain;12;104466.22577119;44;214288660.02636;Mai 2017;sig.territoires.pdl_ctr.12;Communauté de communes de la Région de Blain;Région de Blain;CTR;44062;44;2019_03825_00;47.5279203716, -1.79412055817;05/2017;112
L'aménagement entrées de bourg : travaux 'rue de Rolieu et place de la Martinais';Loire-Atlantique;SAINT-JULIEN-DE-VOUVANTES;19I03593;17I04914;148058;61477;61477;44170;COMMUNE DE SAINT JULIEN DE VOUVANTES;2019-04-05;00045455;0;Châteaubriant-Derval;19;192160.53583929;44;884476807.089572;Mai 2017;sig.territoires.pdl_ctr.19;Communauté de communes Châteaubriant Derval;Châteaubriant-Derval;CTR;44170;44;2019_04436_01;47.653118581, -1.22941680644;05/2017;114
Les aménagements des itinéraires de randonnée et des liaisons douces;Loire-Atlantique;LA BAULE-ESCOUBLAC;19I03588;17I09003;193405;24259;24259;44055;COMMUNAUTE D AGGLOMERATION DE LA PRESQU ILE DE GUERANDE ATLANTIQUE;2019-04-05;00046049;24259;Cap Atlantique;41;145725.47329518;44;395838108.965296;Septembre 2017;sig.territoires.pdl_ctr.41;Cap Atlantique;Cap Atlantique;CTR;44055;44;2019_04217;47.2909720179, -2.3538291745;09/2017;125
l' acquisition de 2 véhicules électriques-85- CTR 2020 de la Communauté de communes du Pays de la Chataigneraie;Vendée;LA CHATAIGNERAIE;19I03625;17I09608;37000;29600;29600;85059;COMMUNAUTE DE COMMUNES DU PAYS DE LA CHATAIGNERAIE;2019-04-05;85000338;29600;Pays de la Châtaigneraie;45;135086.67917683;85;317950472.872367;Novembre 2017;sig.territoires.pdl_ctr.45;Pays de la Châtaigneraie;Pays de la Châtaigneraie;CTR;85059;85;2019_04571;46.6416143401, -0.739561966419;11/2017;97
La reconstruction d'un restaurant social de la Maison de la Solidarité;;;19I03586;18I06834;840658;140109;140109;;COMMUNE DE LA CHAPELLE SUR ERDRE;2019-04-05;00044818;;Nantes Métropole;6;181264.28832122;44;534212730.160229;Juillet 2018;sig.territoires.pdl_ctr.6;Nantes Métropole;Nantes Métropole;CDM;;;2019_04224_00;;07/2018;132
l' extension et le réaménagement de la mairie -85- Commune de Landevieille - CTR 2020 du Pays de Saint-Gilles Croix de Vie;Vendée;LANDEVIEILLE;19I03626;18I07458;420000;53035;53035;85120;COMMUNE DE LANDEVIEILLE;2019-04-05;85000320;53035;Pays de St Gilles-Croix-de-Vie;4;126534.03790467;85;293800477.999917;Avril 2018;sig.territoires.pdl_ctr.4;Communauté de communes du Pays de St Gilles-Croix-de-Vie;Pays de St Gilles-Croix-de-Vie;CTR;85120;85;2019_04572;46.6444349925, -1.7854367847;04/2018;105
L'aménagement de liaisons douces à Fay-de-Bretagne;Loire-Atlantique;FAY-DE-BRETAGNE;19I06312;17I04913;66572;40000;40000;44056;COMMUNE DE FAY DE BRETAGNE;2019-06-06;00047276;40000;Erdre et Gesvres;13;166735.21638325;44;509712555.822317;Mai 2017;sig.territoires.pdl_ctr.13;Communauté de communes d'Erdre et Gesvres;Erdre et Gesvres;CTR;44056;44;2019_06491;47.3905699563, -1.79530261946;05/2017;113
Le projet de liaison douce vers le Brossais à Grandchamps-des-Fontaines;Loire-Atlantique;GRANDCHAMPS-DES-FONTAINES;19I06322;17I04913;131450;40000;40000;44066;COMMUNE DE GRANDCHAMP DES FONTAINES;2019-06-06;00047470;40000;Erdre et Gesvres;13;166735.21638325;44;509712555.822317;Mai 2017;sig.territoires.pdl_ctr.13;Communauté de communes d'Erdre et Gesvres;Erdre et Gesvres;CTR;44066;44;2019_06511;47.3606796643, -1.61754475868;05/2017;113
La rénovation des rues d'Herbauges, de Verdun et du Stade;Loire-Atlantique;SAINT-LUMINE-DE-COUTAIS;19I06323;18I06807;263311;92567;92567;44174;COMMUNE DE SAINT LUMINE DE COUTAIS;2019-06-06;00046903;0;Grand Lieu;7;107565.11514829;44;300535663.006993;Juillet 2018;sig.territoires.pdl_ctr.7;Grand Lieu;Grand Lieu;CTR;44174;44;2019_06536;47.0525345648, -1.72353750567;07/2018;131
La construction d'un nouvel accueil périscolaire de la Reinetière;Loire-Atlantique;SAINTE-LUCE-SUR-LOIRE;19I06186;18I06834;716764;112050;112050;44172;COMMUNE DE SAINTE LUCE SUR LOIRE;2019-06-06;00047121;0;Nantes Métropole;6;181264.28832122;44;534212730.160229;Juillet 2018;sig.territoires.pdl_ctr.6;Nantes Métropole;Nantes Métropole;CDM;44172;44;2019_06600;47.2536231327, -1.4728987153;07/2018;132
La construction d'un nouvel équipement sportif -salle de la Gagnerie;Loire-Atlantique;BOUGUENAIS;19I06187;18I06834;1797046;143865;143865;44020;COMMUNE DE BOUGUENAIS;2019-06-06;00047318;0;Nantes Métropole;6;181264.28832122;44;534212730.160229;Juillet 2018;sig.territoires.pdl_ctr.6;Nantes Métropole;Nantes Métropole;CDM;44020;44;2019_06601;47.1709061678, -1.61739752858;07/2018;132
La pose de panneaux photovoltaïques sur le bâtiment de stockage des boues station d'épuration à Laval;Mayenne;LAVAL;19I06175;19I00770;249950;199960;199960;53130;LAVAL AGGLOMERATION;2019-06-06;00046908;199960;Laval Agglomération;53;160270.39281569;53;438471285.378152;Février 2019;sig.territoires.pdl_ctr.53;Laval Agglomération;Laval Agglomération;CTR;53130;53;2019_06512;48.0608565468, -0.766005687142;02/2019;84
L'acquisition d'un véhicule électrique pour la flotte intercommunale;Loire-Atlantique;GRANDCHAMPS-DES-FONTAINES;19I07529;17I04913;21205;18000;18000;44066;COMMUNAUTE DE COMMUNES D ERDRE GESVRES;2019-07-12;;;Erdre et Gesvres;13;166735.21638325;44;509712555.822317;Mai 2017;sig.territoires.pdl_ctr.13;Communauté de communes d'Erdre et Gesvres;Erdre et Gesvres;CTR;44066;44;2019_08522_00;47.3606796643, -1.61754475868;05/2017;113
La création d'une maison de santé pluridisciplinaire à Saint Laurent des Autels - Orée d'Anjou;Maine-et-Loire;OREE D'ANJOU;19I08027;17I08582;1098956;778428;778428;49069;COMMUNE D OREE D ANJOU;2019-07-12;00048476;0;Mauges Communauté;5;274965.40485114;49;1318044533.54153;Septembre 2017;sig.territoires.pdl_ctr.5;Mauges Communauté;Mauges Communauté;CTR;49069;49;2019_11630;47.3218941947, -1.26053581871;09/2017;122
Construction d'un hangar de stockage pour le bois déchiqueté;Mayenne;SAINT-GEORGES-BUTTAVENT;19I07507;18I00723;156000;30000;30000;53219;COMMUNE DE SAINT GEORGES BUTTAVENT;2019-07-12;00048597;30000;Mayenne Communauté;3;193726.21308398;53;626754357.991273;Février 2018;sig.territoires.pdl_ctr.3;Mayenne Communauté;Mayenne Communauté;CTR;53219;53;2019_08608;48.3009765177, -0.709948140576;02/2018;79
Les aménagements de sécurité rue du Château et rue de la Poste;;;19I07518;18I07459;253762;38686;38686;;COMMUNE DE LA JAUDONNIERE;2019-07-12;85000433;;Sud Vendée Littoral;48;297801.82823589;85;950717267.472634;Juillet 2018;sig.territoires.pdl_ctr.48;CC Sud Vendée Littoral;Sud Vendée Littoral;CTR;;;2019_08741_00;;07/2018;106
La rénovation du bâtiment CIL pour l'accueil de l'école des Beaux-Arts Nantes St-Nazaire;Loire-Atlantique;SAINT-NAZAIRE;19I07522;18I08406;4993900;630000;630000;44184;COMMUNAUTE D AGGLO DE LA REGION NAZAIRIENNE ET DE L ESTUAIRE;2019-07-12;00048547;630000;CARENE;59;128866.92125478;44;316957860.724649;Septembre 2018;sig.territoires.pdl_ctr.59;CARENE;CARENE;CTR;44184;44;2019_08510;47.2802857028, -2.25379927249;09/2018;133
La rénovation de l'éclairage public;Sarthe;DOMFRONT-EN-CHAMPAGNE;19I07513;18I09952;27957;5172;5172;72119;COMMUNE DE DOMFRONT EN CHAMPAGNE;2019-07-12;00048512;10000;;;;;;;;;;;72119;72;2019_08736_00;48.1091722798, 0.0450026971482;;
L'aménagement de la rue de Laval;Mayenne;SOULGE-SUR-OUETTE;19I07502;19I00770;681000;35527;35527;53262;COMMUNE DE SOULGE SUR OUETTE;2019-07-12;00048555;0;Laval Agglomération;53;160270.39281569;53;438471285.378152;Février 2019;sig.territoires.pdl_ctr.53;Laval Agglomération;Laval Agglomération;CTR;53262;53;2019_08597;48.0623593247, -0.558425301844;02/2019;84
L'Aménagement urbain et paysager du centre-bourg;Mayenne;BONCHAMP-LES-LAVAL;19I07504;19I00770;938042;93183;93183;53034;COMMUNE DE BONCHAMP LES LAVAL;2019-07-12;00048481;0;Laval Agglomération;53;160270.39281569;53;438471285.378152;Février 2019;sig.territoires.pdl_ctr.53;Laval Agglomération;Laval Agglomération;CTR;53034;53;2019_08600;48.067608658, -0.698304870899;02/2019;84
L'aménagement d'une halte fluviale sur la commune de Morannes sur Sarthe Daumeray;Maine-et-Loire;MORANNES SUR SARTHE DAUMERAY (49220);19I08999;17I06491;88750;15419;15419;49347;ANJOU LOIR ET SARTHE;2019-09-27;00049156;0;Anjou Loir et Sarthe;26;172077.9474839;49;457111657.097573;Juillet 2017;sig.territoires.pdl_ctr.26;Communauté de Communes Anjou Loir et Sarthe;Anjou Loir et Sarthe;CTR;49347;49;2019_10963_00;47.6245599519, -0.44344301136;07/2017;119
L'achat de véhicules électriques et bornes de recharge de véhicules électriques;Loire-Atlantique;PORNIC;19I09027;17I08233;147921;111855;111855;44131;PORNIC AGGLO PAYS DE RETZ;2019-09-27;00049462;111855;Pornic Agglo Pays de Retz;33;137060.38656142;44;451066582.29291;Septembre 2017;sig.territoires.pdl_ctr.33;Communauté d'Agglomération de Pornic Cœur Pays de Retz;Pornic Agglo Pays de Retz;CTR;44131;44;2019_10084_00;47.1223972452, -2.05182334479;09/2017;127
L'élaboration de la Charte d'aménagement et de développement, volet territorial du projet de territoire;Maine-et-Loire;SAINT-GEORGES-SUR-LOIRE;19I09000;17I08581;63000;24100;24100;49283;CC LOIRE LAYON AUBANCE;2019-09-27;00048644;0;Loire Layon Aubance;29;220718.82914478;49;613435516.735679;Septembre 2017;sig.territoires.pdl_ctr.29;Loire Layon Aubance;Loire Layon Aubance;CTR;49283;49;2019_10971;47.4024678993, -0.756078071904;09/2017;121
La coordination et l'animation de la politique de Transition énergétique de Mauges Communauté;Maine-et-Loire;BEAUPREAU-EN-MAUGES;19I09001;17I08582;95231;75000;75000;49023;MAUGES COMMUNAUTE;2019-09-27;00048432;75000;Mauges Communauté;5;274965.40485114;49;1318044533.54153;Septembre 2017;sig.territoires.pdl_ctr.5;Mauges Communauté;Mauges Communauté;CTR;49023;49;2019_10972;47.2125984545, -0.983619028639;09/2017;122
L'aménagement d'une école de musique - commune déléguée de Méon;Maine-et-Loire;NOYANT-VILLAGES;19I08993;17I09576;246639;86323;86323;49228;COMMUNE DE NOYANT VILLAGES;2019-09-27;00049502;0;Baugeois Vallée;27;204904.66931563;49;738271608.292046;Novembre 2017;sig.territoires.pdl_ctr.27;Baugeois Vallée;Baugeois Vallée;CTR;49228;49;2019_10954;47.5070164198, 0.109706678066;11/2017;120
La construction d'un Pôle Culturel (médiathèque et pôle associatif);Vendée;SAINT-DENIS-LA-CHEVASSE;19I08944;18I02800;1200594;130500;130500;85208;COMMUNE DE SAINT DENIS LA CHEVASSE;2019-09-27;85000458;0;Vie et Boulogne;37;148814.1881539;85;492534760.430236;Avril 2018;sig.territoires.pdl_ctr.37;Vie et Boulogne;Vie et Boulogne;CTR;85208;85;2019_11060;46.8325959261, -1.3830312677;04/2018;102
La création d'un bâtiment intergénérationnel et école de musique;Maine-et-Loire;LE MAY-SUR-EVRE;19I09007;19I03361;1323203;250000;250000;49193;COMMUNE DU MAY SUR EVRE;2019-09-27;00049569;0;Agglomération du Choletais;34;229029.73988845;49;785712045.648911;Avril 2019;sig.territoires.pdl_ctr.34;Communauté d'Agglomération de l'Agglomération du Choletais;Agglomération du Choletais;CTR;49193;49;2019_10979;47.1327247986, -0.875212635921;04/2019;117
La création d'une micro-centrale hydraulique au Moulin de la Bruère;Sarthe;LA FLECHE;19I08924;19I03414;166656;125000;125000;72154;COMMUNE DE LA FLECHE;2019-09-27;00048914;125000;CC du Pays Fléchois;49;306001.78232882;72;1427230046.65579;;sig.territoires.pdl_ctr.49;PETR Pays Vallée du Loir;Pays Vallée du Loir;CTR;72154;72;2019_10373;47.6893893794, -0.0646954849714;;90
Le projet de centre bourg;Loire-Atlantique;FEGREAC;19I09033;19I06781;1446440;300000;300000;44057;COMMUNE DE FEGREAC;2019-09-27;00048997;0;Redon Bretagne Sud;58;222098.45592879;44;975206076.430979;Juillet 2019;sig.territoires.pdl_ctr.58;Redon Bretagne Sud;Redon Bretagne Sud;CTR;44057;44;2019_11116_00;47.5805909749, -2.02458187409;07/2019;136
L'extension du Parc d'activités Abbaye II;Loire-Atlantique;PONTCHATEAU;19I10727;17I06805;509773;100000;100000;44129;COMMUNAUTE DE COMMUNES DU PAYS DE PONTCHATEAU ST GILDAS DES BOIS;2019-11-15;00050634;0;Pays de Pontchâteau St Gildas des Bois;1;130121.86476614;44;327059918.271195;Juillet 2017;sig.territoires.pdl_ctr.1;Communauté de communes de Pont Château Saint Gildas des Bois;Pays de Pontchâteau St Gildas des Bois;CTR;44129;44;2019_15533;47.433636363, -2.09556089039;07/2017;115
Les aménagements du parc de la Mévellière;Loire-Atlantique;BOUAYE;19I10667;18I06834;185000;60000;60000;44018;COMMUNE DE BOUAYE;2019-11-15;00051507;0;Nantes Métropole;6;181264.28832122;44;534212730.160229;Juillet 2018;sig.territoires.pdl_ctr.6;Nantes Métropole;Nantes Métropole;CDM;44018;44;2019_14466;47.1473396882, -1.6725437059;07/2018;132
L'aménagement de bâtiments industriels sur la ZA Charles Granger;Sarthe;MAMERS;19I10556;18I06858;58900;47120;47120;72180;COMMUNAUTE DE COMMUNES MAINE SAOSNOIS;2019-11-15;00051761;0;CC Maine Saosnois;31;160838.92939288;72;582200983.266689;Juillet 2018;sig.territoires.pdl_ctr.31;CC Maine Saosnois;CC Maine Saosnois;CTR;72180;72;2019_15778;48.3545313197, 0.370783494811;07/2018;86
L'aménagement de la zone d'activités économiques 'Ferme Neuve Trois Fontaines';Vendée;LUCON;19I10840;18I07459;305152;167833;167833;85128;COMMUNAUTE DE COMMUNES SUD VENDEE LITTORAL;2019-11-15;85000546;0;Sud Vendée Littoral;48;297801.82823589;85;950717267.472634;Juillet 2018;sig.territoires.pdl_ctr.48;CC Sud Vendée Littoral;Sud Vendée Littoral;CTR;85128;85;2019_15809;46.4510564854, -1.16449285012;07/2018;106
La création d'une maison de services;Sarthe;DOMFRONT EN CHAMPAGNE;19I10559;18I09952;63200;18960;18960;72119;COMMUNE DE DOMFRONT EN CHAMPAGNE;2019-11-15;00052460;0;;;;;;;;;;;72119;72;2019_15782;48.1091722798, 0.0450026971482;;
La création d'un dojo;Sarthe;VIBRAYE;19I10568;19I00771;348500;46250;46250;72373;COMMUNE DE VIBRAYE;2019-11-15;00052432;0;CC du Pays de l'Huisne Sarthoise;35;265241.4780676;72;1290421266.50866;Février 2019;sig.territoires.pdl_ctr.35;Pays du Perche Sarthois;Pays du Perche Sarthois;CTR;72373;72;2019_15794;48.0480142116, 0.739798488483;02/2019;88
La mise en valeur de l'embarcadère au Grand Port à Souil;;;19I10846;19I00773;46000;29694;29694;;COMMUNE DE SAINT PIERRE LE VIEUX;2019-11-15;85000488;;Vendée Sèvre Autise;22;164911.17006129;85;300390165.394669;Février 2019;sig.territoires.pdl_ctr.22;Communauté de communes de Vendée Sèvre Autise;Vendée Sèvre Autise;CTR;;;2019_15817_00;;02/2019;109
Le réaménagement intérieur de la Mairie et de l'agence postale;;;19I10543;19I04948;216710;42692;42692;;COMMUNE DE SAINT GEORGES DU BOIS;2019-11-15;00051837;;CU Le Mans Métropole;20;141570.43537983;72;268048561.841433;Juin 2019;sig.territoires.pdl_ctr.20;CU Le Mans Métropole;CU Le Mans Métropole;CDM;;;2019_15776_00;;06/2019;91
Les travaux d'aménagement des abords du camping sur la commune déléguée de Saint Aubin de Luigné;Maine-et-Loire;VAL DU LAYON;20I02267;17I08581;60720;21614;21614;49292;COMMUNE DE VAL DU LAYON;2020-02-14;00053143;0;Loire Layon Aubance;29;220718.82914478;49;613435516.735679;Septembre 2017;sig.territoires.pdl_ctr.29;Loire Layon Aubance;Loire Layon Aubance;CTR;49292;49;2020_01071_00;47.3002199454, -0.640314853216;09/2017;121
La création d'une Maison de l'Enfance;;;20I02250;17I09577;2100000;382929;382929;;CC CHALLANS GOIS COMMUNAUTE;2020-02-14;85000065;;Challans Gois Communauté;47;136267.76513018;85;445042641.491996;Novembre 2017;sig.territoires.pdl_ctr.47;Challans Gois Communauté;Challans Gois Communauté;CTR;;;2020_01755_01;;11/2017;94
L'aménagement d'une liaison douce 'Venansault/La Roche-sur-Yon';Vendée;LA ROCHE SUR YON;20I02258;17I09579;138189;109886;109886;85191;LA ROCHE SUR YON AGGLOMERATION;2020-02-14;85000553;110551;La Roche Sur Yon Agglomération;16;155815.38916483;85;500779101.845023;Novembre 2017;sig.territoires.pdl_ctr.16;La Roche Sur Yon Agglomération;La Roche Sur Yon Agglomération;CTR;85191;85;2020_01775_00;46.6675261644, -1.4077954093;11/2017;96
Les travaux connexes suite à la reconstruction de l'école publique;;;20I02291;18I00770;95000;52827;52827;;COMMUNE DE LE GENEST SAINT ISLE;2020-02-14;00054174;;Pays de Loiron;63;104558.05453473;53;256504826.222709;Février 2018;sig.territoires.pdl_ctr.63;Pays de Loiron;Pays de Loiron;CTR;;;2020_01291_00;;02/2018;80
La réhabilitation et l'extension de la Mairie;Loire-Atlantique;TOUVOIS;20I02241;18I05377;414720;90000;90000;44206;COMMUNE DE TOUVOIS;2020-02-14;00052479;9000;Sud Retz Atlantique;25;169463.38998873;44;425092538.170903;Mai 2018;sig.territoires.pdl_ctr.25;Sud Retz Atlantique;Sud Retz Atlantique;CTR;44206;44;2020_00928;46.9065013281, -1.67969033397;05/2018;75
L'aménagement de l'entrée de bourg route du Boupère;;;20I02254;18I08141;260000;48851;48851;;COMMUNE DE SEVREMONT;2020-02-14;85000593;;Pays de Pouzauges;60;109218.55751266;85;320861396.374744;Septembre 2018;sig.territoires.pdl_ctr.60;Communauté de communes du Pays de Pouzauges;Pays de Pouzauges;CTR;;;2020_01759_00;;09/2018;107
Le parking du 08 mai;Loire-Atlantique;PORNICHET;20I02248;18I08406;1346581;315000;315000;44132;COMMUNE DE PORNICHET;2020-02-14;00053857;0;CARENE;59;128866.92125478;44;316957860.724649;Septembre 2018;sig.territoires.pdl_ctr.59;CARENE;CARENE;CTR;44132;44;2020_00954;47.2615791665, -2.31415650821;09/2018;133
La création de voies douces;;;20I02298;18I09952;24615;8206;8206;;COMMUNE DE MONT SAINT JEAN;2020-02-14;00052545;;;;;;;;;;;;;;2020_01325_00;;;
La création d'un pôle culturel : bibliothèque et école de musique  à Lys Haut Layon;;;20I02275;19I03361;1479464;725400;725400;;COMMUNE DE LYS HAUT LAYON;2020-02-14;00053251;;Agglomération du Choletais;34;229029.73988845;49;785712045.648911;Avril 2019;sig.territoires.pdl_ctr.34;Communauté d'Agglomération de l'Agglomération du Choletais;Agglomération du Choletais;CTR;;;2020_01090_00;;04/2019;117
La réhabilitation et l'extension de I'EHPA du Bosquet;Maine-et-Loire;CHOLET;20I02276;19I03361;8171900;1811000;1811000;49099;CA AGGLOMERATION DU CHOLETAIS;2020-02-14;00053938;1147876;Agglomération du Choletais;34;229029.73988845;49;785712045.648911;Avril 2019;sig.territoires.pdl_ctr.34;Communauté d'Agglomération de l'Agglomération du Choletais;Agglomération du Choletais;CTR;49099;49;2020_01091;47.0454402992, -0.877886189605;04/2019;117
L'achat d'un véhicule de service électrique;Sarthe;CHAHAIGNES;20I02306;19I03414;13320;10000;10000;72052;COMMUNE DE CHAHAIGNES;2020-02-14;00054234;10000;CC du Pays Fléchois;49;306001.78232882;72;1427230046.65579;;sig.territoires.pdl_ctr.49;PETR Pays Vallée du Loir;Pays Vallée du Loir;CTR;72052;72;2020_01347;47.752016178, 0.513758960916;;90
L'achat d'un véhicule de service électrique;Sarthe;LE GRAND LUCE;20I02308;19I03414;14150;10000;10000;72143;COMMUNE DE LE GRAND LUCE;2020-02-14;00054360;10000;CC du Pays Fléchois;49;306001.78232882;72;1427230046.65579;;sig.territoires.pdl_ctr.49;PETR Pays Vallée du Loir;Pays Vallée du Loir;CTR;72143;72;2020_01368;47.8672204186, 0.463121636019;;90
L'achat d'un véhicule de service électrique;Sarthe;LOIR EN VALLEE;20I02309;19I03414;14150;10000;10000;72262;COMMUNE NOUVELLE DE LOIR EN VALLEE;2020-02-14;00054362;10000;CC du Pays Fléchois;49;306001.78232882;72;1427230046.65579;;sig.territoires.pdl_ctr.49;PETR Pays Vallée du Loir;Pays Vallée du Loir;CTR;72262;72;2020_01370;47.7854221078, 0.618393311988;;90
L'achat d'un véhicule de service électrique;Sarthe;LA CHARTRE SUR LE LOIR;20I02313;19I03414;13320;10000;10000;72068;COMMUNE DE LA CHARTRE SUR LE LOIR;2020-02-14;00054357;10000;CC du Pays Fléchois;49;306001.78232882;72;1427230046.65579;;sig.territoires.pdl_ctr.49;PETR Pays Vallée du Loir;Pays Vallée du Loir;CTR;72068;72;2020_01403;47.7303686417, 0.582042206339;;90
La restructuration du restaurant l'Escale dans le cadre de la revitalisation du centre-bourg;Sarthe;SARGE LES LE MANS;20I02562;19I04948;606385;121200;121200;72328;COMMUNE DE SARGE LES LE MANS;2020-02-14;00053792;0;CU Le Mans Métropole;20;141570.43537983;72;268048561.841433;Juin 2019;sig.territoires.pdl_ctr.20;CU Le Mans Métropole;CU Le Mans Métropole;CDM;72328;72;2020_01846;48.0418982247, 0.247286439875;06/2019;91
La réalisation d'un City-stade;Loire-Atlantique;VUE;20I04509;17I08233;83408;65945;65945;44220;COMMUNE DE VUE;2020-04-30;00056004;;Pornic Agglo Pays de Retz;33;137060.38656142;44;451066582.29291;Septembre 2017;sig.territoires.pdl_ctr.33;Communauté d'Agglomération de Pornic Cœur Pays de Retz;Pornic Agglo Pays de Retz;CTR;44220;44;2020_04481_00;47.1941974605, -1.9008768965;09/2017;127
La poursuite de la requalification du parc d'activités de Villejames - Guérande;Loire-Atlantique;GUERANDE;20I04511;17I09003;1070531;400000;272040;44069;COMMUNAUTE D AGGLOMERATION DE LA PRESQU ILE DE GUERANDE ATLANTIQUE;2020-04-30;00056262;0;Cap Atlantique;41;145725.47329518;44;395838108.965296;Septembre 2017;sig.territoires.pdl_ctr.41;Cap Atlantique;Cap Atlantique;CTR;44069;44;2020_04499_00;47.3313320913, -2.41703658813;09/2017;125
La réalisation de travaux de rénovation et d'isolation de logements;Mayenne;LE BOURGNEUF LA FORET;20I04618;18I00770;215320;47200;47200;53039;COMMUNE DE LE BOURGNEUF LA FORET;2020-04-30;00054424;47200;Pays de Loiron;63;104558.05453473;53;256504826.222709;Février 2018;sig.territoires.pdl_ctr.63;Pays de Loiron;Pays de Loiron;CTR;53039;53;2020_04881;48.164229969, -0.977903623792;02/2018;80
L'aménagement des abords du pôle culturel;;;20I04634;18I02799;312376;50000;50000;;COMMUNE DU PERRIER;2020-04-30;85000637;;Océan Marais de Monts;43;97448.69013118;85;184686424.300016;Avril 2018;sig.territoires.pdl_ctr.43;Océan Marais de Monts;Océan Marais de Monts;CTR;;;2020_04376;;04/2018;101
L'espace social et culturel 'Au cœur de bourg';;;20I04616;18I04046;1525034;174539;174539;;COMMUNE DE SAINT DENIS DE GASTINES;2020-04-30;00056342;;L'Ernée;8;134446.67084716;53;485109090.730026;Avril 2018;sig.territoires.pdl_ctr.8;L'Ernée;L'Ernée;CTR;;;2020_04879_01;;04/2018;82
La restructuration et extension du Groupe scolaire Houssais;Loire-Atlantique;REZE;20I04501;18I06834;1500000;305545;305545;44143;COMMUNE DE REZE;2020-04-30;00056256;0;Nantes Métropole;6;181264.28832122;44;534212730.160229;Juillet 2018;sig.territoires.pdl_ctr.6;Nantes Métropole;Nantes Métropole;CDM;44143;44;2020_04705;47.1762338904, -1.54966399893;07/2018;132
L'élaboration et la mise en oeuvre du Plan Climat Air Energie Territorial (PCAET);Maine-et-Loire;SAUMUR;20I04714;20I03658;300000;74992;74992;49328;CA SAUMUR VAL DE LOIRE;2020-04-30;00054864;75000;;;;;;;;;;;49328;49;2020_07101_00;47.2673853525, -0.0830410591988;;
L'installation de panneaux photovoltaïques sur des bâtiments communaux de Beaupréau-en-Mauges;;;20I05935;17I08582;260000;197662;197662;;COMMUNE DE BEAUPREAU EN MAUGES;2020-05-29;00057615;;Mauges Communauté;5;274965.40485114;49;1318044533.54153;Septembre 2017;sig.territoires.pdl_ctr.5;Mauges Communauté;Mauges Communauté;CTR;;;2020_06898_00;;09/2017;122
